Department Family,Entity,Payment Date,Expense Type,Expense Area,Supplier,Transaction Number,Amount,Description
BIS,Skills Funding Agency,24/12/2013,Additional Car Parking,Finance Division - Financial Control North,CHARITY COMMISSION FOR ENGLAND AND WALES,SPINVB_20023,712.65,Purchase Invoice
BIS,Skills Funding Agency,24/12/2013,Additional Car Parking,Finance Division - Financial Control North,Q PARK LTD,SPINVB_19996,24342.96,Purchase Invoice
BIS,Skills Funding Agency,24/12/2013,Archiving,Finance Division - Financial Control South - UK Skills,CITY DIGITAL LTD,SPINVB_19980,4491.60,Purchase Invoice
BIS,Skills Funding Agency,24/12/2013,Books,Communications & Campaigns - Corporate Communications,Agency Staff Member,SCLAIM_34874,10.50,Staff Expenses Claim
BIS,Skills Funding Agency,24/12/2013,Communications Team Expenditure,Communications & Campaigns - Business Communications,BYTES SOFTWARE SERVICES,SPINVB_19222,3657.60,Purchase Invoice
BIS,Skills Funding Agency,24/12/2013,Communications Team Expenditure,Communications & Campaigns - Business Communications,BYTES SOFTWARE SERVICES,SPINVB_19642,2782.19,Purchase Invoice
BIS,Skills Funding Agency,24/12/2013,Conferences & Workshops,"Business Development, Sales & Marketing",EXPOTEL HOTEL RESERVATIONS LTD,IPINVELECT3_1522,5749.30,Purchase Invoice
BIS,Skills Funding Agency,24/12/2013,Conferences & Workshops,Skills Competitions National,EXPOTEL HOTEL RESERVATIONS LTD,IPINVELECT3_1522,4531.24,Purchase Invoice
BIS,Skills Funding Agency,24/12/2013,Department For Education Non Participation Action Plan,Communications & Marketing,MUNRO & FORSTER COMMUNICATIONS LIMITED,SPINVB_19752,3536.40,Purchase Invoice
BIS,Skills Funding Agency,24/12/2013,Department For Education Non Participation Action Plan,Communications & Marketing,MUNRO & FORSTER COMMUNICATIONS LIMITED,SPINVB_19753,1700.33,Purchase Invoice
BIS,Skills Funding Agency,24/12/2013,Diesel Car Mileage Passenger Supplement,Central Division,Agency Staff Member,SCLAIM_34845,10.00,Staff Expenses Claim
BIS,Skills Funding Agency,24/12/2013,Diesel Car Mileage Passenger Supplement,Funding & Programmes - Employer Ownership Programme,Agency Staff Member,SCLAIM_34852,1.20,Staff Expenses Claim
BIS,Skills Funding Agency,24/12/2013,Diesel Car Mileage Passenger Supplement,Provider Management - Strategic Intervention,Agency Staff Member,SCLAIM_34834,7.7,Staff Expenses Claim
BIS,Skills Funding Agency,24/12/2013,Diesel Car Mileage Passenger Supplement,Relationship Team - South,Agency Staff Member,SCLAIM_34900,12.10,Staff Expenses Claim
BIS,Skills Funding Agency,24/12/2013,Diesel Car Mileage,"Business Development, Sales & Marketing",Agency Staff Member,SCLAIM_34800,240.30,Staff Expenses Claim
BIS,Skills Funding Agency,24/12/2013,Diesel Car Mileage,"Business Development, Sales & Marketing",Agency Staff Member,SCLAIM_34866,182.7,Staff Expenses Claim
BIS,Skills Funding Agency,24/12/2013,Diesel Car Mileage,Central Division,Agency Staff Member,SCLAIM_34813,202.50,Staff Expenses Claim
BIS,Skills Funding Agency,24/12/2013,Diesel Car Mileage,Central Division,Agency Staff Member,SCLAIM_34843,31.50,Staff Expenses Claim
BIS,Skills Funding Agency,24/12/2013,Diesel Car Mileage,Central Division,Agency Staff Member,SCLAIM_34844,4.50,Staff Expenses Claim
BIS,Skills Funding Agency,24/12/2013,Diesel Car Mileage,Central Division,Agency Staff Member,SCLAIM_34845,146.7,Staff Expenses Claim
BIS,Skills Funding Agency,24/12/2013,Diesel Car Mileage,Central Division,Agency Staff Member,SCLAIM_34846,324,Staff Expenses Claim
BIS,Skills Funding Agency,24/12/2013,Diesel Car Mileage,Central Division,Agency Staff Member,SCLAIM_34848,450.00,Staff Expenses Claim
BIS,Skills Funding Agency,24/12/2013,Diesel Car Mileage,Central Division,Agency Staff Member,SCLAIM_34849,-262.35,Staff Expenses Claim
BIS,Skills Funding Agency,24/12/2013,Diesel Car Mileage,Central Division,Agency Staff Member,SCLAIM_34850,162.00,Staff Expenses Claim
BIS,Skills Funding Agency,24/12/2013,Diesel Car Mileage,Central Division,Agency Staff Member,SCLAIM_34851,224.1,Staff Expenses Claim
BIS,Skills Funding Agency,24/12/2013,Diesel Car Mileage,Central Division,Agency Staff Member,SCLAIM_34865,423,Staff Expenses Claim
BIS,Skills Funding Agency,24/12/2013,Diesel Car Mileage,Central Division,Agency Staff Member,SCLAIM_34906,332.10,Staff Expenses Claim
BIS,Skills Funding Agency,24/12/2013,Diesel Car Mileage,Central Division,Agency Staff Member,SCLAIM_34907,241.2,Staff Expenses Claim
BIS,Skills Funding Agency,24/12/2013,Diesel Car Mileage,Central Division,Agency Staff Member,SCLAIM_34908,203.40,Staff Expenses Claim
BIS,Skills Funding Agency,24/12/2013,Diesel Car Mileage,Communications & Campaigns - Corporate Communications,Agency Staff Member,SCLAIM_34824,30.60,Staff Expenses Claim
BIS,Skills Funding Agency,24/12/2013,Diesel Car Mileage,Communications & Campaigns - Corporate Communications,Agency Staff Member,SCLAIM_34825,18,Staff Expenses Claim
BIS,Skills Funding Agency,24/12/2013,Diesel Car Mileage,Finance Division - Financial Control North,Agency Staff Member,SCLAIM_34897,100.80,Staff Expenses Claim
BIS,Skills Funding Agency,24/12/2013,Diesel Car Mileage,Finance Division - Financial Control North,Agency Staff Member,SCLAIM_34914,257.40,Staff Expenses Claim
BIS,Skills Funding Agency,24/12/2013,Diesel Car Mileage,Finance Division - Provider Finance,Agency Staff Member,SCLAIM_34829,660.6,Staff Expenses Claim
BIS,Skills Funding Agency,24/12/2013,Diesel Car Mileage,Finance Division - Provider Finance,Agency Staff Member,SCLAIM_34881,64.80,Staff Expenses Claim
BIS,Skills Funding Agency,24/12/2013,Diesel Car Mileage,Finance Division - Provider Finance,Agency Staff Member,SCLAIM_34882,289.35,Staff Expenses Claim
BIS,Skills Funding Agency,24/12/2013,Diesel Car Mileage,Finance Division - Provider Financial Assurance Audit,Agency Staff Member,SCLAIM_34909,53.10,Staff Expenses Claim
BIS,Skills Funding Agency,24/12/2013,Diesel Car Mileage,Finance Division - Provider Financial Assurance Audit,Agency Staff Member,SCLAIM_34910,266.40,Staff Expenses Claim
BIS,Skills Funding Agency,24/12/2013,Diesel Car Mileage,Finance Division - Provider Financial Assurance Audit,Agency Staff Member,SCLAIM_34911,97.20,Staff Expenses Claim
BIS,Skills Funding Agency,24/12/2013,Diesel Car Mileage,Finance Division - Provider Financial Assurance Audit,Agency Staff Member,SCLAIM_34919,170.10,Staff Expenses Claim
BIS,Skills Funding Agency,24/12/2013,Diesel Car Mileage,Funding & Programmes - Employer Ownership Programme,Agency Staff Member,SCLAIM_34852,133.20,Staff Expenses Claim
BIS,Skills Funding Agency,24/12/2013,Diesel Car Mileage,Funding & Programmes - Funding Policy,Agency Staff Member,SCLAIM_34797,257.40,Staff Expenses Claim
BIS,Skills Funding Agency,24/12/2013,Diesel Car Mileage,Funding & Programmes - Funding Systems and Information,Agency Staff Member,SCLAIM_34839,34.20,Staff Expenses Claim
BIS,Skills Funding Agency,24/12/2013,Diesel Car Mileage,Marketing & Communications,Agency Staff Member,SCLAIM_34802,72.00,Staff Expenses Claim
BIS,Skills Funding Agency,24/12/2013,Diesel Car Mileage,Northern Division,Agency Staff Member,SCLAIM_34863,148.50,Staff Expenses Claim
BIS,Skills Funding Agency,24/12/2013,Diesel Car Mileage,Northern Division,Agency Staff Member,SCLAIM_34878,349.65,Staff Expenses Claim
BIS,Skills Funding Agency,24/12/2013,Diesel Car Mileage,Northern Division,Agency Staff Member,SCLAIM_34903,597.60,Staff Expenses Claim
BIS,Skills Funding Agency,24/12/2013,Diesel Car Mileage,Programme Delivery - Centre of Excellence,Agency Staff Member,SCLAIM_34895,32.40,Staff Expenses Claim
BIS,Skills Funding Agency,24/12/2013,Diesel Car Mileage,Programme Delivery - Centre of Excellence,Agency Staff Member,SCLAIM_34896,162,Staff Expenses Claim
BIS,Skills Funding Agency,24/12/2013,Diesel Car Mileage,Provider Management - Capital,Agency Staff Member,SCLAIM_34815,297.90,Staff Expenses Claim
BIS,Skills Funding Agency,24/12/2013,Diesel Car Mileage,Provider Management - Strategic Intervention,Agency Staff Member,SCLAIM_34834,69.30,Staff Expenses Claim
BIS,Skills Funding Agency,24/12/2013,Diesel Car Mileage,Relationship Team - North,Agency Staff Member,SCLAIM_34791,482.4,Staff Expenses Claim
BIS,Skills Funding Agency,24/12/2013,Diesel Car Mileage,Relationship Team - North,Agency Staff Member,SCLAIM_34794,223.2,Staff Expenses Claim
BIS,Skills Funding Agency,24/12/2013,Diesel Car Mileage,Relationship Team - North,Agency Staff Member,SCLAIM_34795,149.85,Staff Expenses Claim
BIS,Skills Funding Agency,24/12/2013,Diesel Car Mileage,Relationship Team - North,Agency Staff Member,SCLAIM_34831,246.60,Staff Expenses Claim
BIS,Skills Funding Agency,24/12/2013,Diesel Car Mileage,Relationship Team - South,Agency Staff Member,SCLAIM_34835,199.8,Staff Expenses Claim
BIS,Skills Funding Agency,24/12/2013,Diesel Car Mileage,Relationship Team - South,Agency Staff Member,SCLAIM_34856,147.60,Staff Expenses Claim
BIS,Skills Funding Agency,24/12/2013,Diesel Car Mileage,Relationship Team - South,Agency Staff Member,SCLAIM_34857,229.05,Staff Expenses Claim
BIS,Skills Funding Agency,24/12/2013,Diesel Car Mileage,Relationship Team - South,Agency Staff Member,SCLAIM_34879,111.15,Staff Expenses Claim
BIS,Skills Funding Agency,24/12/2013,Diesel Car Mileage,Relationship Team - South,Agency Staff Member,SCLAIM_34884,280.80,Staff Expenses Claim
BIS,Skills Funding Agency,24/12/2013,Diesel Car Mileage,Relationship Team - South,Agency Staff Member,SCLAIM_34885,153,Staff Expenses Claim
BIS,Skills Funding Agency,24/12/2013,Diesel Car Mileage,Relationship Team - South,Agency Staff Member,SCLAIM_34888,90.00,Staff Expenses Claim
BIS,Skills Funding Agency,24/12/2013,Diesel Car Mileage,Relationship Team - South,Agency Staff Member,SCLAIM_34900,448.20,Staff Expenses Claim
BIS,Skills Funding Agency,24/12/2013,Diesel Car Mileage,Southern Division,Agency Staff Member,SCLAIM_34808,401.85,Staff Expenses Claim
BIS,Skills Funding Agency,24/12/2013,Diesel Car Mileage,Southern Division,Agency Staff Member,SCLAIM_34809,536.85,Staff Expenses Claim
BIS,Skills Funding Agency,24/12/2013,Diesel Car Mileage,Southern Division,Agency Staff Member,SCLAIM_34810,93.60,Staff Expenses Claim
BIS,Skills Funding Agency,24/12/2013,Diesel Car Mileage,Southern Division,Agency Staff Member,SCLAIM_34841,42.30,Staff Expenses Claim
BIS,Skills Funding Agency,24/12/2013,Diesel Car Mileage,Southern Division,Agency Staff Member,SCLAIM_34861,29.70,Staff Expenses Claim
BIS,Skills Funding Agency,24/12/2013,Further Education Capital Buildings Grant,Professional Services,INVESTMENT PROPERTY DATABANK HOLDING,SPINVB_19982,28275.60,Purchase Invoice
BIS,Skills Funding Agency,24/12/2013,Health and Safety Executive Supplies,HR - Human Resources,AXA PPP HEALTHCARE,SPINVB_19986,580.76,Purchase Invoice
BIS,Skills Funding Agency,24/12/2013,Health and Safety Executive Supplies,HR - Human Resources,AXA PPP HEALTHCARE,SPINVB_20027,17.34,Purchase Invoice
BIS,Skills Funding Agency,24/12/2013,Hospitality,Funding & Programmes - Employer Ownership Programme,Agency Staff Member,SCLAIM_34852,5.70,Staff Expenses Claim
BIS,Skills Funding Agency,24/12/2013,Hybrid Car Mileage,Chief Executive's Office - Internal Audit,Agency Staff Member,SCLAIM_34805,92.25,Staff Expenses Claim
BIS,Skills Funding Agency,24/12/2013,"Information, Advice and Guidance - Local",Main Funding,ECONOMIC SOLUTIONS LTD,SPINVB_20025,330905.13,Purchase Invoice
BIS,Skills Funding Agency,24/12/2013,Landline Telephone Service,Operational Services - Service Management - Operate,BT GROUP PLC,IPINVELECT3_1523,852.06,Purchase Invoice
BIS,Skills Funding Agency,24/12/2013,Medical Fees,HR - Human Resources,AXA PPP HEALTHCARE,SPINVB_19986,373.12,Purchase Invoice
BIS,Skills Funding Agency,24/12/2013,"National Apprenticeship Service - Business, Innovation & Skills - Non-Participation",Communications & Marketing,ACORN PRINT AND DESIGN LIMITED,SPINVB_19820,3150.00,Purchase Invoice
BIS,Skills Funding Agency,24/12/2013,"National Apprenticeship Service - Business, Innovation & Skills - Non-Participation",Communications & Marketing,ACORN PRINT AND DESIGN LIMITED,SPINVB_19892,15000.00,Purchase Invoice
BIS,Skills Funding Agency,24/12/2013,"National Apprenticeship Service - Business, Innovation & Skills - Non-Participation",Communications & Marketing,BROADSWORD PRODUCTIONS LTD,SPINVB_19739,13884.00,Purchase Invoice
BIS,Skills Funding Agency,24/12/2013,"National Apprenticeship Service - Business, Innovation & Skills - Non-Participation",Communications & Marketing,CITY DIGITAL LTD,SPINVB_19923,5654.56,Purchase Invoice
BIS,Skills Funding Agency,24/12/2013,"National Apprenticeship Service - Business, Innovation & Skills - Non-Participation",Communications & Marketing,PIXELTRIX LTD,SPINVB_19979,2461.20,Purchase Invoice
BIS,Skills Funding Agency,24/12/2013,"National Apprenticeship Service - Business, Innovation & Skills - Non-Participation",Communications & Marketing,Private Individual,SPINVNO_3234,97.09,Purchase Invoice
BIS,Skills Funding Agency,24/12/2013,"National Apprenticeship Service - Business, Innovation & Skills - Non-Participation",Communications & Marketing,Private Individual,SPINVNO_3237,274.73,Purchase Invoice
BIS,Skills Funding Agency,24/12/2013,"National Apprenticeship Service - Business, Innovation & Skills - Non-Participation",Communications & Marketing,Private Individual,SPINVNO_3238,38.89,Purchase Invoice
BIS,Skills Funding Agency,24/12/2013,"National Apprenticeship Service - Business, Innovation & Skills - Non-Participation",Communications & Marketing,Private Individual,SPINVNO_3239,105.66,Purchase Invoice
BIS,Skills Funding Agency,24/12/2013,"National Apprenticeship Service - Business, Innovation & Skills - Non-Participation",Communications & Marketing,PULSION TECHNOLOGY LTD,SPINVB_19683,660.00,Purchase Invoice
BIS,Skills Funding Agency,24/12/2013,"National Apprenticeship Service - Business, Innovation & Skills - Non-Participation",Communications & Marketing,WILLIAMS LEA LIMITED,SPINVB_19984,3290.56,Purchase Invoice
BIS,Skills Funding Agency,24/12/2013,"National Apprenticeship Service - Business, Innovation & Skills - Non-Participation",Main Funding,BRATHAY SERVICES LTD,SPINVB_19909,25000.00,Purchase Invoice
BIS,Skills Funding Agency,24/12/2013,"National Apprenticeship Service - Business, Innovation & Skills - Non-Participation",Main Funding,OXFORDSHIRE COUNTY COUNCIL,SPINVB_20033,3000,Purchase Invoice
BIS,Skills Funding Agency,24/12/2013,National Careers Service Youth Contract,Main Funding,ECONOMIC SOLUTIONS LTD,SPINVB_20026,8751.00,Purchase Invoice
BIS,Skills Funding Agency,24/12/2013,Next Step Helpline,Main Funding,ICONNECTEL TELCOM LTD,SPINVB_19693,12055.37,Purchase Invoice
BIS,Skills Funding Agency,24/12/2013,Off The Shelf Software,Projects - Programme Delivery Projects,FORDWAY SOLUTIONS LIMITED,SPINVB_19668,9360.00,Purchase Invoice
BIS,Skills Funding Agency,24/12/2013,Off The Shelf Software,Projects - Programme Delivery Projects,FORDWAY SOLUTIONS LIMITED,SPINVB_19699,150.72,Purchase Invoice
BIS,Skills Funding Agency,24/12/2013,Off The Shelf Software,Projects - Programme Delivery Projects,FORDWAY SOLUTIONS LIMITED,SPINVB_19700,7830.00,Purchase Invoice
BIS,Skills Funding Agency,24/12/2013,Offender Learning and Skills Service - Information & Guidance,Main Funding,CAREERS ENTERPRISE LTD,SPINVB_19890,107895.00,Purchase Invoice
BIS,Skills Funding Agency,24/12/2013,Offender Learning and Skills Service - Information & Guidance,Main Funding,CAREERS SOUTH WEST LTD,SPINVB_19823,26352.91,Purchase Invoice
BIS,Skills Funding Agency,24/12/2013,Offender Learning and Skills Service - Information & Guidance,Main Funding,ECONOMIC SOLUTIONS LTD,SPINVB_20024,23453.09,Purchase Invoice
BIS,Skills Funding Agency,24/12/2013,Offender Learning and Skills Service - Information & Guidance,Main Funding,SUFFOLK COUNTY COUNCIL,SPINVB_20021,72223.00,Purchase Invoice
BIS,Skills Funding Agency,24/12/2013,Offender Learning and Skills Service - Information & Guidance,Main Funding,TRIBAL EDUCATION LTD,SPINVB_19799,28549.00,Purchase Invoice
BIS,Skills Funding Agency,24/12/2013,Offender Learning and Skills Service Offender Learning Development,Main Funding,XMA LTD,SPINVB_19822,13680.70,Purchase Invoice
BIS,Skills Funding Agency,24/12/2013,Office Refreshments,Finance Division - Financial Control North,MARTIN J BROOKS LTD,SPINVB_20028,47.12,Purchase Invoice
BIS,Skills Funding Agency,24/12/2013,Other Fuel Car Mileage,London & South East Division,Agency Staff Member,SCLAIM_34890,562.05,Staff Expenses Claim
BIS,Skills Funding Agency,24/12/2013,Other Fuel Car Mileage,Relationship Team - North,Agency Staff Member,SCLAIM_34812,198,Staff Expenses Claim
BIS,Skills Funding Agency,24/12/2013,Other Fuel Car Mileage,Relationship Team - North,Agency Staff Member,SCLAIM_34836,211.95,Staff Expenses Claim
BIS,Skills Funding Agency,24/12/2013,Other Fuel Car Mileage,Relationship Team - North,Agency Staff Member,SCLAIM_34891,72.90,Staff Expenses Claim
BIS,Skills Funding Agency,24/12/2013,Other Fuel Car Mileage,Relationship Team - South,Agency Staff Member,SCLAIM_34880,434.7,Staff Expenses Claim
BIS,Skills Funding Agency,24/12/2013,Other Fuel Car Mileage,Relationship Team - South,Agency Staff Member,SCLAIM_34894,53.10,Staff Expenses Claim
BIS,Skills Funding Agency,24/12/2013,Other Fuel Car Mileage,Relationship Team - South,Agency Staff Member,SCLAIM_34912,252.45,Staff Expenses Claim
BIS,Skills Funding Agency,24/12/2013,Other Travel,"Business Development, Sales & Marketing",Agency Staff Member,SCLAIM_34800,6.10,Staff Expenses Claim
BIS,Skills Funding Agency,24/12/2013,Other Travel,"Business Development, Sales & Marketing",Agency Staff Member,SCLAIM_34823,55,Staff Expenses Claim
BIS,Skills Funding Agency,24/12/2013,Other Travel,"Business Development, Sales & Marketing",Agency Staff Member,SCLAIM_34853,31.00,Staff Expenses Claim
BIS,Skills Funding Agency,24/12/2013,Other Travel,"Business Development, Sales & Marketing",Agency Staff Member,SCLAIM_34855,4.00,Staff Expenses Claim
BIS,Skills Funding Agency,24/12/2013,Other Travel,"Business Development, Sales & Marketing",Agency Staff Member,SCLAIM_34866,23,Staff Expenses Claim
BIS,Skills Funding Agency,24/12/2013,Other Travel,Central Delivery Service - Reading,Agency Staff Member,SCLAIM_34868,32.81,Staff Expenses Claim
BIS,Skills Funding Agency,24/12/2013,Other Travel,Central Division,Agency Staff Member,SCLAIM_34813,12.00,Staff Expenses Claim
BIS,Skills Funding Agency,24/12/2013,Other Travel,Central Division,Agency Staff Member,SCLAIM_34843,109.50,Staff Expenses Claim
BIS,Skills Funding Agency,24/12/2013,Other Travel,Central Division,Agency Staff Member,SCLAIM_34844,64.00,Staff Expenses Claim
BIS,Skills Funding Agency,24/12/2013,Other Travel,Central Division,Agency Staff Member,SCLAIM_34845,107,Staff Expenses Claim
BIS,Skills Funding Agency,24/12/2013,Other Travel,Central Division,Agency Staff Member,SCLAIM_34846,20.00,Staff Expenses Claim
BIS,Skills Funding Agency,24/12/2013,Other Travel,Central Division,Agency Staff Member,SCLAIM_34847,55.7,Staff Expenses Claim
BIS,Skills Funding Agency,24/12/2013,Other Travel,Central Division,Agency Staff Member,SCLAIM_34865,14.90,Staff Expenses Claim
BIS,Skills Funding Agency,24/12/2013,Other Travel,Central Division,Agency Staff Member,SCLAIM_34907,3,Staff Expenses Claim
BIS,Skills Funding Agency,24/12/2013,Other Travel,Central Division,Agency Staff Member,SCLAIM_34908,7.5,Staff Expenses Claim
BIS,Skills Funding Agency,24/12/2013,Other Travel,Chief Executive's Office - Executive Office,Agency Staff Member,SCLAIM_34821,54.00,Staff Expenses Claim
BIS,Skills Funding Agency,24/12/2013,Other Travel,Chief Executive's Office - Executive Office,Agency Staff Member,SCLAIM_34864,16,Staff Expenses Claim
BIS,Skills Funding Agency,24/12/2013,Other Travel,Chief Executive's Office - Internal Audit,Agency Staff Member,SCLAIM_34804,11.00,Staff Expenses Claim
BIS,Skills Funding Agency,24/12/2013,Other Travel,Chief Executive's Office - Internal Audit,Agency Staff Member,SCLAIM_34805,5.5,Staff Expenses Claim
BIS,Skills Funding Agency,24/12/2013,Other Travel,Chief Executive's Office - Internal Audit,Agency Staff Member,SCLAIM_34822,12.5,Staff Expenses Claim
BIS,Skills Funding Agency,24/12/2013,Other Travel,Communications & Campaigns - Business Communications,Agency Staff Member,SCLAIM_34806,82.00,Staff Expenses Claim
BIS,Skills Funding Agency,24/12/2013,Other Travel,Communications & Campaigns - Corporate Communications,Agency Staff Member,SCLAIM_34825,87.00,Staff Expenses Claim
BIS,Skills Funding Agency,24/12/2013,Other Travel,Communications & Campaigns - Corporate Communications,Agency Staff Member,SCLAIM_34874,34.00,Staff Expenses Claim
BIS,Skills Funding Agency,24/12/2013,Other Travel,Communications & Campaigns - Corporate Communications,Agency Staff Member,SCLAIM_34875,10.00,Staff Expenses Claim
BIS,Skills Funding Agency,24/12/2013,Other Travel,Data Service - Other,Agency Staff Member,SCLAIM_34892,3.50,Staff Expenses Claim
BIS,Skills Funding Agency,24/12/2013,Other Travel,Finance Division - Financial Control North,Agency Staff Member,SCLAIM_34897,28.00,Staff Expenses Claim
BIS,Skills Funding Agency,24/12/2013,Other Travel,Finance Division - Financial Control North,Agency Staff Member,SCLAIM_34914,3.3,Staff Expenses Claim
BIS,Skills Funding Agency,24/12/2013,Other Travel,Finance Division - Provider Finance,Agency Staff Member,SCLAIM_34801,32.5,Staff Expenses Claim
BIS,Skills Funding Agency,24/12/2013,Other Travel,Finance Division - Provider Finance,Agency Staff Member,SCLAIM_34829,39.10,Staff Expenses Claim
BIS,Skills Funding Agency,24/12/2013,Other Travel,Finance Division - Provider Finance,Agency Staff Member,SCLAIM_34881,24.00,Staff Expenses Claim
BIS,Skills Funding Agency,24/12/2013,Other Travel,Finance Division - Provider Finance,Agency Staff Member,SCLAIM_34882,21.00,Staff Expenses Claim
BIS,Skills Funding Agency,24/12/2013,Other Travel,Finance Division - Provider Finance,Agency Staff Member,SCLAIM_34901,50.30,Staff Expenses Claim
BIS,Skills Funding Agency,24/12/2013,Other Travel,Finance Division - Provider Financial Assurance Audit,Agency Staff Member,SCLAIM_34842,16.00,Staff Expenses Claim
BIS,Skills Funding Agency,24/12/2013,Other Travel,Finance Division - Provider Financial Assurance Audit,Agency Staff Member,SCLAIM_34887,11.00,Staff Expenses Claim
BIS,Skills Funding Agency,24/12/2013,Other Travel,Finance Division - Provider Financial Assurance Audit,Agency Staff Member,SCLAIM_34902,16,Staff Expenses Claim
BIS,Skills Funding Agency,24/12/2013,Other Travel,Finance Division - Provider Financial Assurance Audit,Agency Staff Member,SCLAIM_34910,9.00,Staff Expenses Claim
BIS,Skills Funding Agency,24/12/2013,Other Travel,Finance Division - Provider Financial Assurance Audit,Agency Staff Member,SCLAIM_34919,27.50,Staff Expenses Claim
BIS,Skills Funding Agency,24/12/2013,Other Travel,Funding & Programmes - Employer Ownership Programme,Agency Staff Member,SCLAIM_34852,7.50,Staff Expenses Claim
BIS,Skills Funding Agency,24/12/2013,Other Travel,Funding & Programmes - European Social Fund,Agency Staff Member,SCLAIM_34877,8.50,Staff Expenses Claim
BIS,Skills Funding Agency,24/12/2013,Other Travel,Funding & Programmes - Funding Systems and Information,Agency Staff Member,SCLAIM_34839,19.20,Staff Expenses Claim
BIS,Skills Funding Agency,24/12/2013,Other Travel,Growth National Careers Services Operations,Agency Staff Member,SCLAIM_34814,33.10,Staff Expenses Claim
BIS,Skills Funding Agency,24/12/2013,Other Travel,HR - Human Resources,Agency Staff Member,SCLAIM_34826,21.50,Staff Expenses Claim
BIS,Skills Funding Agency,24/12/2013,Other Travel,London & South East Division,Agency Staff Member,SCLAIM_34872,1.30,Staff Expenses Claim
BIS,Skills Funding Agency,24/12/2013,Other Travel,London & South East Division,Agency Staff Member,SCLAIM_34889,3.00,Staff Expenses Claim
BIS,Skills Funding Agency,24/12/2013,Other Travel,Northern Division,Agency Staff Member,SCLAIM_34863,7.00,Staff Expenses Claim
BIS,Skills Funding Agency,24/12/2013,Other Travel,Northern Division,Agency Staff Member,SCLAIM_34878,79.8,Staff Expenses Claim
BIS,Skills Funding Agency,24/12/2013,Other Travel,Northern Division,Agency Staff Member,SCLAIM_34903,84.00,Staff Expenses Claim
BIS,Skills Funding Agency,24/12/2013,Other Travel,Northern Division,Agency Staff Member,SCLAIM_34904,22.00,Staff Expenses Claim
BIS,Skills Funding Agency,24/12/2013,Other Travel,Northern Division,Agency Staff Member,SCLAIM_34913,15,Staff Expenses Claim
BIS,Skills Funding Agency,24/12/2013,Other Travel,Provider Management - Strategic Intervention,Agency Staff Member,SCLAIM_34834,44.50,Staff Expenses Claim
BIS,Skills Funding Agency,24/12/2013,Other Travel,Relationship Team - North,Agency Staff Member,SCLAIM_34791,18.00,Staff Expenses Claim
BIS,Skills Funding Agency,24/12/2013,Other Travel,Relationship Team - North,Agency Staff Member,SCLAIM_34792,24.4,Staff Expenses Claim
BIS,Skills Funding Agency,24/12/2013,Other Travel,Relationship Team - North,Agency Staff Member,SCLAIM_34795,28.40,Staff Expenses Claim
BIS,Skills Funding Agency,24/12/2013,Other Travel,Relationship Team - North,Agency Staff Member,SCLAIM_34807,14.60,Staff Expenses Claim
BIS,Skills Funding Agency,24/12/2013,Other Travel,Relationship Team - North,Agency Staff Member,SCLAIM_34812,23.4,Staff Expenses Claim
BIS,Skills Funding Agency,24/12/2013,Other Travel,Relationship Team - North,Agency Staff Member,SCLAIM_34830,1.00,Staff Expenses Claim
BIS,Skills Funding Agency,24/12/2013,Other Travel,Relationship Team - North,Agency Staff Member,SCLAIM_34831,11.00,Staff Expenses Claim
BIS,Skills Funding Agency,24/12/2013,Other Travel,Relationship Team - North,Agency Staff Member,SCLAIM_34836,2.20,Staff Expenses Claim
BIS,Skills Funding Agency,24/12/2013,Other Travel,Relationship Team - North,Agency Staff Member,SCLAIM_34869,7.7,Staff Expenses Claim
BIS,Skills Funding Agency,24/12/2013,Other Travel,Relationship Team - North,Agency Staff Member,SCLAIM_34870,3.5,Staff Expenses Claim
BIS,Skills Funding Agency,24/12/2013,Other Travel,Relationship Team - North,Agency Staff Member,SCLAIM_34899,1.50,Staff Expenses Claim
BIS,Skills Funding Agency,24/12/2013,Other Travel,Relationship Team - North,Agency Staff Member,SCLAIM_34916,18,Staff Expenses Claim
BIS,Skills Funding Agency,24/12/2013,Other Travel,Relationship Team - North,Agency Staff Member,SCLAIM_34917,13.00,Staff Expenses Claim
BIS,Skills Funding Agency,24/12/2013,Other Travel,Relationship Team - North,Agency Staff Member,SCLAIM_34918,22.50,Staff Expenses Claim
BIS,Skills Funding Agency,24/12/2013,Other Travel,Relationship Team - South,Agency Staff Member,SCLAIM_34790,140.40,Staff Expenses Claim
BIS,Skills Funding Agency,24/12/2013,Other Travel,Relationship Team - South,Agency Staff Member,SCLAIM_34820,31.6,Staff Expenses Claim
BIS,Skills Funding Agency,24/12/2013,Other Travel,Relationship Team - South,Agency Staff Member,SCLAIM_34835,7.98,Staff Expenses Claim
BIS,Skills Funding Agency,24/12/2013,Other Travel,Relationship Team - South,Agency Staff Member,SCLAIM_34840,20.60,Staff Expenses Claim
BIS,Skills Funding Agency,24/12/2013,Other Travel,Relationship Team - South,Agency Staff Member,SCLAIM_34856,9.00,Staff Expenses Claim
BIS,Skills Funding Agency,24/12/2013,Other Travel,Relationship Team - South,Agency Staff Member,SCLAIM_34857,11.2,Staff Expenses Claim
BIS,Skills Funding Agency,24/12/2013,Other Travel,Relationship Team - South,Agency Staff Member,SCLAIM_34858,2.8,Staff Expenses Claim
BIS,Skills Funding Agency,24/12/2013,Other Travel,Relationship Team - South,Agency Staff Member,SCLAIM_34879,2.70,Staff Expenses Claim
BIS,Skills Funding Agency,24/12/2013,Other Travel,Relationship Team - South,Agency Staff Member,SCLAIM_34880,40.69,Staff Expenses Claim
BIS,Skills Funding Agency,24/12/2013,Other Travel,Relationship Team - South,Agency Staff Member,SCLAIM_34883,4.00,Staff Expenses Claim
BIS,Skills Funding Agency,24/12/2013,Other Travel,Relationship Team - South,Agency Staff Member,SCLAIM_34888,7.50,Staff Expenses Claim
BIS,Skills Funding Agency,24/12/2013,Other Travel,Southern Division,Agency Staff Member,SCLAIM_34808,27.90,Staff Expenses Claim
BIS,Skills Funding Agency,24/12/2013,Other Travel,Southern Division,Agency Staff Member,SCLAIM_34809,30.9,Staff Expenses Claim
BIS,Skills Funding Agency,24/12/2013,Other Travel,Southern Division,Agency Staff Member,SCLAIM_34810,11,Staff Expenses Claim
BIS,Skills Funding Agency,24/12/2013,Other Travel,Southern Division,Agency Staff Member,SCLAIM_34860,3,Staff Expenses Claim
BIS,Skills Funding Agency,24/12/2013,Petrol Car Mileage Passenger Supplement,Central Delivery Service - Reading,Agency Staff Member,SCLAIM_34868,16.20,Staff Expenses Claim
BIS,Skills Funding Agency,24/12/2013,Petrol Car Mileage Passenger Supplement,London & South East Division,Agency Staff Member,SCLAIM_34872,9.60,Staff Expenses Claim
BIS,Skills Funding Agency,24/12/2013,Petrol Car Mileage Passenger Supplement,Relationship Team - North,Agency Staff Member,SCLAIM_34807,0.80,Staff Expenses Claim
BIS,Skills Funding Agency,24/12/2013,Petrol Car Mileage Passenger Supplement,Relationship Team - North,Agency Staff Member,SCLAIM_34817,11.8,Staff Expenses Claim
BIS,Skills Funding Agency,24/12/2013,Petrol Car Mileage Passenger Supplement,Relationship Team - North,Agency Staff Member,SCLAIM_34899,1.70,Staff Expenses Claim
BIS,Skills Funding Agency,24/12/2013,Petrol Car Mileage Passenger Supplement,Southern Division,Agency Staff Member,SCLAIM_34859,0.7,Staff Expenses Claim
BIS,Skills Funding Agency,24/12/2013,Petrol Car Mileage Passenger Supplement,Southern Division,Agency Staff Member,SCLAIM_34860,1.3,Staff Expenses Claim
BIS,Skills Funding Agency,24/12/2013,Petrol Car Mileage,"Business Development, Sales & Marketing",Agency Staff Member,SCLAIM_34823,9.00,Staff Expenses Claim
BIS,Skills Funding Agency,24/12/2013,Petrol Car Mileage,"Business Development, Sales & Marketing",Agency Staff Member,SCLAIM_34853,144.00,Staff Expenses Claim
BIS,Skills Funding Agency,24/12/2013,Petrol Car Mileage,"Business Development, Sales & Marketing",Agency Staff Member,SCLAIM_34855,33.30,Staff Expenses Claim
BIS,Skills Funding Agency,24/12/2013,Petrol Car Mileage,Central Delivery Service - Reading,Agency Staff Member,SCLAIM_34868,210.60,Staff Expenses Claim
BIS,Skills Funding Agency,24/12/2013,Petrol Car Mileage,Central Division,Agency Staff Member,SCLAIM_34811,270.90,Staff Expenses Claim
BIS,Skills Funding Agency,24/12/2013,Petrol Car Mileage,Chief Executive's Office - Executive Office,Agency Staff Member,SCLAIM_34793,174.60,Staff Expenses Claim
BIS,Skills Funding Agency,24/12/2013,Petrol Car Mileage,Communications & Campaigns - Corporate Communications,Agency Staff Member,SCLAIM_34819,56.7,Staff Expenses Claim
BIS,Skills Funding Agency,24/12/2013,Petrol Car Mileage,Communications & Campaigns - Corporate Communications,Agency Staff Member,SCLAIM_34875,316.80,Staff Expenses Claim
BIS,Skills Funding Agency,24/12/2013,Petrol Car Mileage,Finance Division - Provider Finance,Agency Staff Member,SCLAIM_34901,23.40,Staff Expenses Claim
BIS,Skills Funding Agency,24/12/2013,Petrol Car Mileage,Finance Division - Provider Financial Assurance Audit,Agency Staff Member,SCLAIM_34796,48.6,Staff Expenses Claim
BIS,Skills Funding Agency,24/12/2013,Petrol Car Mileage,Finance Division - Provider Financial Assurance Audit,Agency Staff Member,SCLAIM_34902,18.90,Staff Expenses Claim
BIS,Skills Funding Agency,24/12/2013,Petrol Car Mileage,Funding & Programmes - European Social Fund,Agency Staff Member,SCLAIM_34877,201.60,Staff Expenses Claim
BIS,Skills Funding Agency,24/12/2013,Petrol Car Mileage,Funding & Programmes - European Social Fund,Agency Staff Member,SCLAIM_34905,123.00,Staff Expenses Claim
BIS,Skills Funding Agency,24/12/2013,Petrol Car Mileage,Growth National Careers Services Operations,Agency Staff Member,SCLAIM_34867,221.40,Staff Expenses Claim
BIS,Skills Funding Agency,24/12/2013,Petrol Car Mileage,London & South East Division,Agency Staff Member,SCLAIM_34872,123.30,Staff Expenses Claim
BIS,Skills Funding Agency,24/12/2013,Petrol Car Mileage,London & South East Division,Agency Staff Member,SCLAIM_34889,95.40,Staff Expenses Claim
BIS,Skills Funding Agency,24/12/2013,Petrol Car Mileage,Northern Division,Agency Staff Member,SCLAIM_34904,128.7,Staff Expenses Claim
BIS,Skills Funding Agency,24/12/2013,Petrol Car Mileage,Northern Division,Agency Staff Member,SCLAIM_34913,226.35,Staff Expenses Claim
BIS,Skills Funding Agency,24/12/2013,Petrol Car Mileage,Relationship Team - North,Agency Staff Member,SCLAIM_34792,144.00,Staff Expenses Claim
BIS,Skills Funding Agency,24/12/2013,Petrol Car Mileage,Relationship Team - North,Agency Staff Member,SCLAIM_34798,168.3,Staff Expenses Claim
BIS,Skills Funding Agency,24/12/2013,Petrol Car Mileage,Relationship Team - North,Agency Staff Member,SCLAIM_34807,46.80,Staff Expenses Claim
BIS,Skills Funding Agency,24/12/2013,Petrol Car Mileage,Relationship Team - North,Agency Staff Member,SCLAIM_34817,297.90,Staff Expenses Claim
BIS,Skills Funding Agency,24/12/2013,Petrol Car Mileage,Relationship Team - North,Agency Staff Member,SCLAIM_34869,80.55,Staff Expenses Claim
BIS,Skills Funding Agency,24/12/2013,Petrol Car Mileage,Relationship Team - North,Agency Staff Member,SCLAIM_34870,81.45,Staff Expenses Claim
BIS,Skills Funding Agency,24/12/2013,Petrol Car Mileage,Relationship Team - North,Agency Staff Member,SCLAIM_34871,59.40,Staff Expenses Claim
BIS,Skills Funding Agency,24/12/2013,Petrol Car Mileage,Relationship Team - North,Agency Staff Member,SCLAIM_34886,216.00,Staff Expenses Claim
BIS,Skills Funding Agency,24/12/2013,Petrol Car Mileage,Relationship Team - North,Agency Staff Member,SCLAIM_34899,191.25,Staff Expenses Claim
BIS,Skills Funding Agency,24/12/2013,Petrol Car Mileage,Relationship Team - North,Agency Staff Member,SCLAIM_34915,187.2,Staff Expenses Claim
BIS,Skills Funding Agency,24/12/2013,Petrol Car Mileage,Relationship Team - North,Agency Staff Member,SCLAIM_34916,118.80,Staff Expenses Claim
BIS,Skills Funding Agency,24/12/2013,Petrol Car Mileage,Relationship Team - North,Agency Staff Member,SCLAIM_34917,165.60,Staff Expenses Claim
BIS,Skills Funding Agency,24/12/2013,Petrol Car Mileage,Relationship Team - North,Agency Staff Member,SCLAIM_34918,324.90,Staff Expenses Claim
BIS,Skills Funding Agency,24/12/2013,Petrol Car Mileage,Relationship Team - South,Agency Staff Member,SCLAIM_34790,154.35,Staff Expenses Claim
BIS,Skills Funding Agency,24/12/2013,Petrol Car Mileage,Relationship Team - South,Agency Staff Member,SCLAIM_34818,450,Staff Expenses Claim
BIS,Skills Funding Agency,24/12/2013,Petrol Car Mileage,Relationship Team - South,Agency Staff Member,SCLAIM_34840,113.40,Staff Expenses Claim
BIS,Skills Funding Agency,24/12/2013,Petrol Car Mileage,Relationship Team - South,Agency Staff Member,SCLAIM_34858,176.40,Staff Expenses Claim
BIS,Skills Funding Agency,24/12/2013,Petrol Car Mileage,Relationship Team - South,Agency Staff Member,SCLAIM_34883,46.35,Staff Expenses Claim
BIS,Skills Funding Agency,24/12/2013,Petrol Car Mileage,Southern Division,Agency Staff Member,SCLAIM_34859,135.00,Staff Expenses Claim
BIS,Skills Funding Agency,24/12/2013,Petrol Car Mileage,Southern Division,Agency Staff Member,SCLAIM_34860,32.4,Staff Expenses Claim
BIS,Skills Funding Agency,24/12/2013,Postage,Finance Division - Financial Control South,"DEPARTMENT FOR BUSINESS, INNOVATION & SKILLS",SPINVB_19861,475.23,Purchase Invoice
BIS,Skills Funding Agency,24/12/2013,Professional Services - Single Assignments,Chief Information Officer Services - Enterprise Architecture,CAPGEMINI UK PLC,SPINVB_19041,30290.40,Purchase Invoice
BIS,Skills Funding Agency,24/12/2013,Professional Services,HR - Facilities Divisional,DLA PIPER UK LLP,SPINVNO_3236,2471.62,Purchase Invoice
BIS,Skills Funding Agency,24/12/2013,Professional Subscriptions,Finance Division - Contract Control,Agency Staff Member,SCLAIMPRO_642,247.00,Staff Expenses Claim
BIS,Skills Funding Agency,24/12/2013,Professional Subscriptions,Finance Division - Provider Finance,Agency Staff Member,SCLAIMPRO_640,310.00,Staff Expenses Claim
BIS,Skills Funding Agency,24/12/2013,Professional Subscriptions,Finance Division - Provider Financial Assurance Audit,Agency Staff Member,SCLAIMPRO_641,100.00,Staff Expenses Claim
BIS,Skills Funding Agency,24/12/2013,Professional Subscriptions,Finance Division - Provider Financial Assurance Audit,Agency Staff Member,SCLAIMPRO_643,205,Staff Expenses Claim
BIS,Skills Funding Agency,24/12/2013,Rail Warrants & Tickets,"Business Development, Sales & Marketing",Agency Staff Member,SCLAIM_34823,7.30,Staff Expenses Claim
BIS,Skills Funding Agency,24/12/2013,Rail Warrants & Tickets,Central Delivery Service - London,Agency Staff Member,SCLAIM_34827,4.5,Staff Expenses Claim
BIS,Skills Funding Agency,24/12/2013,Rail Warrants & Tickets,Central Division,Agency Staff Member,SCLAIM_34845,146.5,Staff Expenses Claim
BIS,Skills Funding Agency,24/12/2013,Rail Warrants & Tickets,Data Service - Other,Agency Staff Member,SCLAIM_34892,7.30,Staff Expenses Claim
BIS,Skills Funding Agency,24/12/2013,Rail Warrants & Tickets,Finance Division - Financial Control North,Agency Staff Member,SCLAIM_34914,42.90,Staff Expenses Claim
BIS,Skills Funding Agency,24/12/2013,Rail Warrants & Tickets,Finance Division - Financial Control South,Agency Staff Member,SCLAIM_34832,33.60,Staff Expenses Claim
BIS,Skills Funding Agency,24/12/2013,Rail Warrants & Tickets,Finance Division - Provider Finance,Agency Staff Member,SCLAIM_34881,18.8,Staff Expenses Claim
BIS,Skills Funding Agency,24/12/2013,Rail Warrants & Tickets,Finance Division - Provider Finance,Agency Staff Member,SCLAIM_34882,23.50,Staff Expenses Claim
BIS,Skills Funding Agency,24/12/2013,Rail Warrants & Tickets,Finance Division - Provider Finance,Agency Staff Member,SCLAIM_34901,21.00,Staff Expenses Claim
BIS,Skills Funding Agency,24/12/2013,Rail Warrants & Tickets,Finance Division - Provider Financial Assurance Audit,Agency Staff Member,SCLAIM_34796,16.40,Staff Expenses Claim
BIS,Skills Funding Agency,24/12/2013,Rail Warrants & Tickets,Finance Division - Provider Financial Assurance Audit,Agency Staff Member,SCLAIM_34842,25,Staff Expenses Claim
BIS,Skills Funding Agency,24/12/2013,Rail Warrants & Tickets,Finance Division - Provider Financial Assurance Audit,Agency Staff Member,SCLAIM_34902,31.20,Staff Expenses Claim
BIS,Skills Funding Agency,24/12/2013,Rail Warrants & Tickets,Funding & Programmes - Employer Ownership Programme,Agency Staff Member,SCLAIM_34852,8.7,Staff Expenses Claim
BIS,Skills Funding Agency,24/12/2013,Rail Warrants & Tickets,Funding & Programmes - European Social Fund,Agency Staff Member,SCLAIM_34905,17.80,Staff Expenses Claim
BIS,Skills Funding Agency,24/12/2013,Rail Warrants & Tickets,HR - Facilities Central,Agency Staff Member,SCLAIM_34898,80.00,Staff Expenses Claim
BIS,Skills Funding Agency,24/12/2013,Rail Warrants & Tickets,Northern Division,Agency Staff Member,SCLAIM_34863,33.90,Staff Expenses Claim
BIS,Skills Funding Agency,24/12/2013,Rail Warrants & Tickets,Northern Division,Agency Staff Member,SCLAIM_34904,16.30,Staff Expenses Claim
BIS,Skills Funding Agency,24/12/2013,Rail Warrants & Tickets,Provider Management - Strategic Intervention,Agency Staff Member,SCLAIM_34834,9.10,Staff Expenses Claim
BIS,Skills Funding Agency,24/12/2013,Rail Warrants & Tickets,Relationship Team - North,Agency Staff Member,SCLAIM_34870,7.10,Staff Expenses Claim
BIS,Skills Funding Agency,24/12/2013,Rail Warrants & Tickets,Relationship Team - North,Agency Staff Member,SCLAIM_34871,7.10,Staff Expenses Claim
BIS,Skills Funding Agency,24/12/2013,Rail Warrants & Tickets,Relationship Team - North,Agency Staff Member,SCLAIM_34915,16.7,Staff Expenses Claim
BIS,Skills Funding Agency,24/12/2013,Rail Warrants & Tickets,Relationship Team - North,Agency Staff Member,SCLAIM_34918,16.70,Staff Expenses Claim
BIS,Skills Funding Agency,24/12/2013,Rail Warrants & Tickets,Relationship Team - South,Agency Staff Member,SCLAIM_34799,92.3,Staff Expenses Claim
BIS,Skills Funding Agency,24/12/2013,Rail Warrants & Tickets,Relationship Team - South,Agency Staff Member,SCLAIM_34840,196.00,Staff Expenses Claim
BIS,Skills Funding Agency,24/12/2013,Rail Warrants & Tickets,Relationship Team - South,Agency Staff Member,SCLAIM_34880,19.30,Staff Expenses Claim
BIS,Skills Funding Agency,24/12/2013,Rail Warrants & Tickets,Relationship Team - South,Agency Staff Member,SCLAIM_34888,8.80,Staff Expenses Claim
BIS,Skills Funding Agency,24/12/2013,Self-Drive Car Hire,"Business Development, Sales & Marketing",Agency Staff Member,SCLAIM_34823,93.93,Staff Expenses Claim
BIS,Skills Funding Agency,24/12/2013,Self-Drive Car Hire,"Business Development, Sales & Marketing",ENTERPRISE RENT A CAR UK LTD,IPINVELECT3_1525,132.93,Purchase Invoice
BIS,Skills Funding Agency,24/12/2013,Self-Drive Car Hire,"Business Development, Sales & Marketing",ENTERPRISE RENT A CAR UK LTD,SPCRNNO_410,-32.52,Purchase Credit Note
BIS,Skills Funding Agency,24/12/2013,Self-Drive Car Hire,Central Delivery Service - London,ENTERPRISE RENT A CAR UK LTD,IPINVELECT3_1525,110.9,Purchase Invoice
BIS,Skills Funding Agency,24/12/2013,Self-Drive Car Hire,Central Division,Agency Staff Member,SCLAIM_34846,67.23,Staff Expenses Claim
BIS,Skills Funding Agency,24/12/2013,Self-Drive Car Hire,Central Division,Agency Staff Member,SCLAIM_34850,102.10,Staff Expenses Claim
BIS,Skills Funding Agency,24/12/2013,Self-Drive Car Hire,Central Division,ENTERPRISE RENT A CAR UK LTD,IPINVELECT3_1525,56.75,Purchase Invoice
BIS,Skills Funding Agency,24/12/2013,Self-Drive Car Hire,Chief Executive's Office - Internal Audit,ENTERPRISE RENT A CAR UK LTD,IPINVELECT3_1525,59.39,Purchase Invoice
BIS,Skills Funding Agency,24/12/2013,Self-Drive Car Hire,Communications & Campaigns - Corporate Communications,ENTERPRISE RENT A CAR UK LTD,IPINVELECT3_1525,95.50,Purchase Invoice
BIS,Skills Funding Agency,24/12/2013,Self-Drive Car Hire,Data Service - Other,Agency Staff Member,SCLAIM_34892,117.82,Staff Expenses Claim
BIS,Skills Funding Agency,24/12/2013,Self-Drive Car Hire,Finance Division - Provider Finance,Agency Staff Member,SCLAIM_34803,26.75,Staff Expenses Claim
BIS,Skills Funding Agency,24/12/2013,Self-Drive Car Hire,Finance Division - Provider Financial Assurance Audit,Agency Staff Member,SCLAIM_34902,35.56,Staff Expenses Claim
BIS,Skills Funding Agency,24/12/2013,Self-Drive Car Hire,Finance Division - Provider Financial Assurance Audit,Agency Staff Member,SCLAIM_34909,44.00,Staff Expenses Claim
BIS,Skills Funding Agency,24/12/2013,Self-Drive Car Hire,Finance Division - Provider Financial Assurance Audit,ENTERPRISE RENT A CAR UK LTD,IPINVELECT3_1525,145.59,Purchase Invoice
BIS,Skills Funding Agency,24/12/2013,Self-Drive Car Hire,Funding & Programmes - European Social Fund,ENTERPRISE RENT A CAR UK LTD,IPINVELECT3_1525,216.34,Purchase Invoice
BIS,Skills Funding Agency,24/12/2013,Self-Drive Car Hire,Funding & Programmes - Funding Policy,ENTERPRISE RENT A CAR UK LTD,IPINVELECT3_1525,50.10,Purchase Invoice
BIS,Skills Funding Agency,24/12/2013,Self-Drive Car Hire,HR - Facilities Central,Agency Staff Member,SCLAIM_34898,26.39,Staff Expenses Claim
BIS,Skills Funding Agency,24/12/2013,Self-Drive Car Hire,HR - Human Resources,ENTERPRISE RENT A CAR UK LTD,IPINVELECT3_1525,110.38,Purchase Invoice
BIS,Skills Funding Agency,24/12/2013,Self-Drive Car Hire,Marketing & Communications,Agency Staff Member,SCLAIM_34862,52.86,Staff Expenses Claim
BIS,Skills Funding Agency,24/12/2013,Self-Drive Car Hire,Marketing & Communications,ENTERPRISE RENT A CAR UK LTD,IPINVELECT3_1525,44.75,Purchase Invoice
BIS,Skills Funding Agency,24/12/2013,Self-Drive Car Hire,Operational Services - Service Management - Transition,ENTERPRISE RENT A CAR UK LTD,IPINVELECT3_1525,77.50,Purchase Invoice
BIS,Skills Funding Agency,24/12/2013,Self-Drive Car Hire,Provider Management - Capital,Agency Staff Member,SCLAIM_34815,35.26,Staff Expenses Claim
BIS,Skills Funding Agency,24/12/2013,Self-Drive Car Hire,Provider Management - Capital,ENTERPRISE RENT A CAR UK LTD,IPINVELECT3_1525,219.78,Purchase Invoice
BIS,Skills Funding Agency,24/12/2013,Self-Drive Car Hire,Relationship Team - North,ENTERPRISE RENT A CAR UK LTD,IPINVELECT3_1525,89.50,Purchase Invoice
BIS,Skills Funding Agency,24/12/2013,Self-Drive Car Hire,Relationship Team - South,Agency Staff Member,SCLAIM_34835,39.92,Staff Expenses Claim
BIS,Skills Funding Agency,24/12/2013,Self-Drive Car Hire,Relationship Team - South,Agency Staff Member,SCLAIM_34888,113.88,Staff Expenses Claim
BIS,Skills Funding Agency,24/12/2013,Self-Drive Car Hire,Relationship Team - South,ENTERPRISE RENT A CAR UK LTD,IPINVELECT3_1525,262.24,Purchase Invoice
BIS,Skills Funding Agency,24/12/2013,Self-Drive Car Hire,Skills Competitions International,ENTERPRISE RENT A CAR UK LTD,IPINVELECT3_1525,89.50,Purchase Invoice
BIS,Skills Funding Agency,24/12/2013,Self-Drive Car Hire,Southern Division,ENTERPRISE RENT A CAR UK LTD,IPINVELECT3_1525,264.7,Purchase Invoice
BIS,Skills Funding Agency,24/12/2013,Self-Drive Car Hire,Support Services - Chief Information Officer & ED/Commercial,ENTERPRISE RENT A CAR UK LTD,IPINVELECT3_1525,38.75,Purchase Invoice
BIS,Skills Funding Agency,24/12/2013,Software Maintenance & Repair,Operational Services - Service Management - Life Cycle,AMOR BUSINESS TECHNOLOGY SOLUTIONS,SPINVB_19867,89582.40,Purchase Invoice
BIS,Skills Funding Agency,24/12/2013,Software Maintenance & Repair,Operational Services - Service Management - Life Cycle,AMOR BUSINESS TECHNOLOGY SOLUTIONS,SPINVB_19868,1320.00,Purchase Invoice
BIS,Skills Funding Agency,24/12/2013,Software Maintenance & Repair,Operational Services - Service Management - Life Cycle,AMOR BUSINESS TECHNOLOGY SOLUTIONS,SPINVB_19869,5580.00,Purchase Invoice
BIS,Skills Funding Agency,24/12/2013,Software Upgrades,Programme Delivery - Programme Management Office/Programme Support Office,AMOR BUSINESS TECHNOLOGY SOLUTIONS,SPINVB_19891,137827.86,Purchase Invoice
BIS,Skills Funding Agency,24/12/2013,Subsistence,"Business Development, Sales & Marketing",Agency Staff Member,SCLAIM_34800,20,Staff Expenses Claim
BIS,Skills Funding Agency,24/12/2013,Subsistence,"Business Development, Sales & Marketing",Agency Staff Member,SCLAIM_34823,45.00,Staff Expenses Claim
BIS,Skills Funding Agency,24/12/2013,Subsistence,Central Delivery Service - London,Agency Staff Member,SCLAIM_34827,75.00,Staff Expenses Claim
BIS,Skills Funding Agency,24/12/2013,Subsistence,Central Division,Agency Staff Member,SCLAIM_34811,100,Staff Expenses Claim
BIS,Skills Funding Agency,24/12/2013,Subsistence,Central Division,Agency Staff Member,SCLAIM_34846,50.00,Staff Expenses Claim
BIS,Skills Funding Agency,24/12/2013,Subsistence,Central Division,Agency Staff Member,SCLAIM_34849,-25.00,Staff Expenses Claim
BIS,Skills Funding Agency,24/12/2013,Subsistence,Central Division,Agency Staff Member,SCLAIM_34850,25.00,Staff Expenses Claim
BIS,Skills Funding Agency,24/12/2013,Subsistence,Central Division,Agency Staff Member,SCLAIM_34907,10.00,Staff Expenses Claim
BIS,Skills Funding Agency,24/12/2013,Subsistence,Chief Executive's Office - Executive Office,Agency Staff Member,SCLAIM_34793,25,Staff Expenses Claim
BIS,Skills Funding Agency,24/12/2013,Subsistence,Chief Executive's Office - Internal Audit,Agency Staff Member,SCLAIM_34804,35.00,Staff Expenses Claim
BIS,Skills Funding Agency,24/12/2013,Subsistence,Chief Executive's Office - Internal Audit,Agency Staff Member,SCLAIM_34805,50.00,Staff Expenses Claim
BIS,Skills Funding Agency,24/12/2013,Subsistence,Chief Executive's Office - Internal Audit,Agency Staff Member,SCLAIM_34822,105,Staff Expenses Claim
BIS,Skills Funding Agency,24/12/2013,Subsistence,Communications & Campaigns - Corporate Communications,Agency Staff Member,SCLAIM_34825,115.00,Staff Expenses Claim
BIS,Skills Funding Agency,24/12/2013,Subsistence,Customer & Application Management - Customer Management II,Agency Staff Member,SCLAIM_34876,75.00,Staff Expenses Claim
BIS,Skills Funding Agency,24/12/2013,Subsistence,Finance Division - Financial Control North,Agency Staff Member,SCLAIM_34914,45.00,Staff Expenses Claim
BIS,Skills Funding Agency,24/12/2013,Subsistence,Finance Division - Financial Control South,Agency Staff Member,SCLAIM_34832,140.00,Staff Expenses Claim
BIS,Skills Funding Agency,24/12/2013,Subsistence,Finance Division - Provider Finance,Agency Staff Member,SCLAIM_34882,75.00,Staff Expenses Claim
BIS,Skills Funding Agency,24/12/2013,Subsistence,Finance Division - Provider Finance,Agency Staff Member,SCLAIM_34901,25.00,Staff Expenses Claim
BIS,Skills Funding Agency,24/12/2013,Subsistence,Finance Division - Provider Financial Assurance Audit,Agency Staff Member,SCLAIM_34919,75.00,Staff Expenses Claim
BIS,Skills Funding Agency,24/12/2013,Subsistence,Funding & Programmes - European Social Fund,Agency Staff Member,SCLAIM_34877,50.00,Staff Expenses Claim
BIS,Skills Funding Agency,24/12/2013,Subsistence,Funding & Programmes - Funding Systems and Information,Agency Staff Member,SCLAIM_34839,25.00,Staff Expenses Claim
BIS,Skills Funding Agency,24/12/2013,Subsistence,Growth National Careers Services Operations,Agency Staff Member,SCLAIM_34816,25.00,Staff Expenses Claim
BIS,Skills Funding Agency,24/12/2013,Subsistence,Growth National Careers Services Operations,Agency Staff Member,SCLAIM_34867,125.00,Staff Expenses Claim
BIS,Skills Funding Agency,24/12/2013,Subsistence,Growth National Careers Services Operations,Agency Staff Member,SCLAIM_34873,50.00,Staff Expenses Claim
BIS,Skills Funding Agency,24/12/2013,Subsistence,HR - Facilities Central,Agency Staff Member,SCLAIM_34898,25.00,Staff Expenses Claim
BIS,Skills Funding Agency,24/12/2013,Subsistence,London & South East Division,Agency Staff Member,SCLAIM_34893,25.00,Staff Expenses Claim
BIS,Skills Funding Agency,24/12/2013,Subsistence,Northern Division,Agency Staff Member,SCLAIM_34903,25.00,Staff Expenses Claim
BIS,Skills Funding Agency,24/12/2013,Subsistence,Northern Division,Agency Staff Member,SCLAIM_34904,25.00,Staff Expenses Claim
BIS,Skills Funding Agency,24/12/2013,Subsistence,Provider Management - Capital,Agency Staff Member,SCLAIM_34815,150.00,Staff Expenses Claim
BIS,Skills Funding Agency,24/12/2013,Subsistence,Relationship Team - North,Agency Staff Member,SCLAIM_34891,40.00,Staff Expenses Claim
BIS,Skills Funding Agency,24/12/2013,Subsistence,Relationship Team - North,Agency Staff Member,SCLAIM_34915,10.00,Staff Expenses Claim
BIS,Skills Funding Agency,24/12/2013,Subsistence,Relationship Team - North,Agency Staff Member,SCLAIM_34916,50.00,Staff Expenses Claim
BIS,Skills Funding Agency,24/12/2013,Subsistence,Relationship Team - North,Agency Staff Member,SCLAIM_34918,10,Staff Expenses Claim
BIS,Skills Funding Agency,24/12/2013,Subsistence,Relationship Team - South,Agency Staff Member,SCLAIM_34880,50.00,Staff Expenses Claim
BIS,Skills Funding Agency,24/12/2013,Subsistence,Relationship Team - South,Agency Staff Member,SCLAIM_34888,60.00,Staff Expenses Claim
BIS,Skills Funding Agency,24/12/2013,Sundry Items,Communications & Campaigns - Corporate Communications,Agency Staff Member,SCLAIM_34825,10.00,Staff Expenses Claim
BIS,Skills Funding Agency,24/12/2013,Support Services,Projects - Programme Delivery Projects,CAPGEMINI UK PLC,SPINVB_19573,78947.92,Purchase Invoice
BIS,Skills Funding Agency,24/12/2013,Taxis,Central Division,Agency Staff Member,SCLAIM_34811,18.30,Staff Expenses Claim
BIS,Skills Funding Agency,24/12/2013,Taxis,Central Division,Agency Staff Member,SCLAIM_34845,12.00,Staff Expenses Claim
BIS,Skills Funding Agency,24/12/2013,Taxis,Chief Executive's Office - Executive Office,Agency Staff Member,SCLAIM_34864,40.60,Staff Expenses Claim
BIS,Skills Funding Agency,24/12/2013,Taxis,Communications & Campaigns - Corporate Communications,Agency Staff Member,SCLAIM_34825,42.00,Staff Expenses Claim
BIS,Skills Funding Agency,24/12/2013,Taxis,Customer & Application Management - Customer Management II,Agency Staff Member,SCLAIM_34876,15.00,Staff Expenses Claim
BIS,Skills Funding Agency,24/12/2013,Taxis,Finance Division - Accounting Services,Agency Staff Member,SCLAIM_34838,30.2,Staff Expenses Claim
BIS,Skills Funding Agency,24/12/2013,Taxis,Finance Division - Financial Control North,Agency Staff Member,SCLAIM_34914,18.6,Staff Expenses Claim
BIS,Skills Funding Agency,24/12/2013,Taxis,Finance Division - Provider Finance,Agency Staff Member,SCLAIM_34901,6.90,Staff Expenses Claim
BIS,Skills Funding Agency,24/12/2013,Taxis,Funding & Programmes - European Social Fund,Agency Staff Member,SCLAIM_34877,14.00,Staff Expenses Claim
BIS,Skills Funding Agency,24/12/2013,Taxis,Growth National Careers Services Operations,Agency Staff Member,SCLAIM_34854,35.00,Staff Expenses Claim
BIS,Skills Funding Agency,24/12/2013,Taxis,HR - Facilities Central,Agency Staff Member,SCLAIM_34898,30.70,Staff Expenses Claim
BIS,Skills Funding Agency,24/12/2013,Taxis,London & South East Division,Agency Staff Member,SCLAIM_34872,5.00,Staff Expenses Claim
BIS,Skills Funding Agency,24/12/2013,Taxis,Marketing & Communications,Agency Staff Member,SCLAIM_34802,24,Staff Expenses Claim
BIS,Skills Funding Agency,24/12/2013,Taxis,Marketing & Communications,Agency Staff Member,SCLAIM_34862,15.40,Staff Expenses Claim
BIS,Skills Funding Agency,24/12/2013,Taxis,Provider Management - Capital,Agency Staff Member,SCLAIM_34815,19,Staff Expenses Claim
BIS,Skills Funding Agency,24/12/2013,Taxis,Provider Management - Strategic Intervention,Agency Staff Member,SCLAIM_34834,54.30,Staff Expenses Claim
BIS,Skills Funding Agency,24/12/2013,Taxis,Relationship Team - North,Agency Staff Member,SCLAIM_34792,45.00,Staff Expenses Claim
BIS,Skills Funding Agency,24/12/2013,Taxis,Relationship Team - North,Agency Staff Member,SCLAIM_34830,30.00,Staff Expenses Claim
BIS,Skills Funding Agency,24/12/2013,Taxis,Relationship Team - South,Agency Staff Member,SCLAIM_34820,58.20,Staff Expenses Claim
BIS,Skills Funding Agency,24/12/2013,Taxis,Relationship Team - South,Agency Staff Member,SCLAIM_34840,16.40,Staff Expenses Claim
BIS,Skills Funding Agency,24/12/2013,Taxis,Relationship Team - South,Agency Staff Member,SCLAIM_34888,42.50,Staff Expenses Claim
BIS,Skills Funding Agency,24/12/2013,Taxis,Southern Division,Agency Staff Member,SCLAIM_34833,24.60,Staff Expenses Claim
BIS,Skills Funding Agency,24/12/2013,Temporary Staff,Data Service - Collection & Funding,HAYS SPECIALIST RECRUITMENT LTD,IPINVELECT3_1521,2640,Purchase Invoice
BIS,Skills Funding Agency,24/12/2013,Temporary Staff,Growth National Careers Services Operations,PARITY RESOURCES LTD,SPINVB_19844,8712.72,Purchase Invoice
BIS,Skills Funding Agency,24/12/2013,Temporary Staff,Operational Services - Service Management - Operate,HAYS SPECIALIST RECRUITMENT LTD,IPINVELECT3_1521,13506.84,Purchase Invoice
BIS,Skills Funding Agency,24/12/2013,Temporary Staff,Operational Services - Service Management - Support,PARITY RESOURCES LTD,SPINVB_19855,13770.00,Purchase Invoice
BIS,Skills Funding Agency,24/12/2013,Temporary Staff,Programme Delivery - Centre of Excellence,BADENOCH & CLARK IP LTD,IPINVELECT3_1524,2531.04,Purchase Invoice
BIS,Skills Funding Agency,24/12/2013,Temporary Staff,Programme Delivery - Programme Management Office/Programme Support Office,BADENOCH & CLARK IP LTD,IPINVELECT3_1524,10489.5,Purchase Invoice
BIS,Skills Funding Agency,24/12/2013,Temporary Staff,Projects - Programme Delivery Projects,BADENOCH & CLARK IP LTD,IPINVELECT3_1524,3297.84,Purchase Invoice
BIS,Skills Funding Agency,24/12/2013,Temporary Staff,Provider Management - Capital,BROOK STREET UK LTD,SPINVB_19997,567.42,Purchase Invoice
BIS,Skills Funding Agency,24/12/2013,Temporary Staff,Provider Management - Capital,BROOK STREET UK LTD,SPINVB_19998,675.14,Purchase Invoice
BIS,Skills Funding Agency,24/12/2013,Temporary Staff,Provider Management - Capital,BROOK STREET UK LTD,SPINVB_19999,607.94,Purchase Invoice
BIS,Skills Funding Agency,24/12/2013,Temporary Staff,Provider Management - Capital,BROOK STREET UK LTD,SPINVB_20000,607.94,Purchase Invoice
BIS,Skills Funding Agency,24/12/2013,Temporary Staff,Provider Management - Capital,BROOK STREET UK LTD,SPINVB_20001,607.94,Purchase Invoice
BIS,Skills Funding Agency,24/12/2013,Temporary Staff,Provider Management - Capital,BROOK STREET UK LTD,SPINVB_20002,607.94,Purchase Invoice
BIS,Skills Funding Agency,24/12/2013,Temporary Staff,Provider Management - Capital,BROOK STREET UK LTD,SPINVB_20003,607.94,Purchase Invoice
BIS,Skills Funding Agency,24/12/2013,Temporary Staff,Provider Management - Capital,BROOK STREET UK LTD,SPINVB_20004,607.94,Purchase Invoice
BIS,Skills Funding Agency,24/12/2013,Trade Creditors Advances,None,Skills Competitor / Training Manager / Judge,SPAYONACCT_179,-325.00,Payment on Account
BIS,Skills Funding Agency,24/12/2013,Training Venue & Refreshments,Relationship Team - South,EXPOTEL HOTEL RESERVATIONS LTD,IPINVELECT3_1522,1521.07,Purchase Invoice
BIS,Skills Funding Agency,24/12/2013,UK Skills - Competitions (International),Main Funding,MIKE DE COURCEY TRAVEL LTD,SPINVB_19919,375.00,Purchase Invoice
BIS,Skills Funding Agency,24/12/2013,UK Skills - Competitions (International),Main Funding,NORTH WEST REGIONAL COLLEGE,SPINVB_19920,3300.00,Purchase Invoice
BIS,Skills Funding Agency,24/12/2013,UK Skills - Competitions (International),Main Funding,REDCAR & CLEVELAND COLLEGE,SPINVB_19918,450.00,Purchase Invoice
BIS,Skills Funding Agency,24/12/2013,UK Skills - Competitions (International),Main Funding,Skills Competitor / Training Manager / Judge,SPINVUKS_3447,696.47,Non-Employee Expenses Claim
BIS,Skills Funding Agency,24/12/2013,UK Skills - Competitions (International),Main Funding,Skills Competitor / Training Manager / Judge,SPINVUKS_3448,367.27,Non-Employee Expenses Claim
BIS,Skills Funding Agency,24/12/2013,UK Skills - Competitions (National),Main Funding,ASSOCIATION OF ACCOUNTING TECHNICIANS,SPINVB_19910,13599.46,Purchase Invoice
BIS,Skills Funding Agency,24/12/2013,UK Skills - Competitions (National),Main Funding,CITY DIGITAL LTD,SPINVB_19922,204.9,Purchase Invoice
BIS,Skills Funding Agency,24/12/2013,UK Skills - Competitions (National),Main Funding,COLLINS OF COTTON PLANT CENTRE,SPINVB_19912,160.00,Purchase Invoice
BIS,Skills Funding Agency,24/12/2013,UK Skills - Competitions (National),Main Funding,DAVID JOHN BASSETT,SPINVB_19921,192.55,Purchase Invoice
BIS,Skills Funding Agency,24/12/2013,UK Skills - Competitions (National),Main Funding,SOUTH THAMES COLLEGE,SPINVB_19911,3600.00,Purchase Invoice
BIS,Skills Funding Agency,24/12/2013,UK Skills - Competitions (National),Main Funding,SUSAN BLEASDALE,SPINVB_19913,251.7,Purchase Invoice
BIS,Skills Funding Agency,24/12/2013,Water,HR - Facilities Divisional,NORTHUMBRIAN WATER LTD,SPINVNO_3235,953.47,Purchase Invoice
BIS,Skills Funding Agency,24/12/2013,Young People's Helpline,Main Funding,NOT GOING TO UNI LTD,SPINVB_19784,264000.00,Purchase Invoice
BIS,Skills Funding Agency,02/01/2014,Apprenticeship Ambassadors,Main Funding,ROD KENYON,SPINVB_20057,2859,Purchase Invoice
BIS,Skills Funding Agency,02/01/2014,Career Development Loans - Programme Support Costs,Main Funding,CPM UNITED KINGDOM LTD,SPINVB_20007,2630.49,Purchase Invoice
BIS,Skills Funding Agency,02/01/2014,Communications Team Expenditure,Communications & Campaigns - Corporate Communications,DURRANTS LTD,SPINVB_19657,13742.42,Purchase Invoice
BIS,Skills Funding Agency,02/01/2014,Conferences & Workshops,"Business Development, Sales & Marketing",EXPOTEL HOTEL RESERVATIONS LTD,IPINVELECT3_1526,608.13,Purchase Invoice
BIS,Skills Funding Agency,02/01/2014,Conferences & Workshops,Skills Competitions International,EXPOTEL HOTEL RESERVATIONS LTD,IPINVELECT3_1526,766.07,Purchase Invoice
BIS,Skills Funding Agency,02/01/2014,Course Fees,HR - Human Resources,THE CORPORATE AND EXECUTIVE COACHING,SPINVCHQ_255,1827.30,Purchase Invoice
BIS,Skills Funding Agency,02/01/2014,Flexible Benefits Administration,HR - Human Resources,BUPA WELLNESS,PAYCHAPSAUTO_230,1581.00,Payroll
BIS,Skills Funding Agency,02/01/2014,Hosting,Operational Services - Service Management - Life Cycle,LOGICA UK LTD,SPINVB_20052,1008.00,Purchase Invoice
BIS,Skills Funding Agency,02/01/2014,"Information, Advice and Guidance - Local",Main Funding,PROSPECTS SERVICES LTD,SPINVB_19988,39645.23,Purchase Invoice
BIS,Skills Funding Agency,02/01/2014,"National Apprenticeship Service - Business, Innovation & Skills - Non-Participation",Communications & Marketing,PIXELTRIX LTD,SPINVB_20056,2640.00,Purchase Invoice
BIS,Skills Funding Agency,02/01/2014,Offender Learning and Skills Service - Information & Guidance,Main Funding,CAREERS ENTERPRISE LTD,SPINVB_19888,10411.31,Purchase Invoice
BIS,Skills Funding Agency,02/01/2014,Offender Learning and Skills Service - Information & Guidance,Main Funding,CAREERS ENTERPRISE LTD,SPINVB_19889,21186.77,Purchase Invoice
BIS,Skills Funding Agency,02/01/2014,Offender Learning and Skills Service - Information & Guidance,Main Funding,PROSPECTS SERVICES LTD,SPINVB_19924,75609.00,Purchase Invoice
BIS,Skills Funding Agency,02/01/2014,Professional Services,Programme Delivery - Project Management/Testing,SMART SOURCING PLC,SPINVB_20041,9982.36,Purchase Invoice
BIS,Skills Funding Agency,02/01/2014,Professional Services,Projects - Programme Delivery Projects,SMART SOURCING PLC,SPINVB_20040,6928.45,Purchase Invoice
BIS,Skills Funding Agency,02/01/2014,Professional Services,Projects - Programme Delivery Projects,SPRING TECHNOLOGY STAFFING SERVICES,SPINVB_19904,3677.40,Purchase Invoice
BIS,Skills Funding Agency,02/01/2014,Reissue of Previously Returned Payment,None,Agency Staff Member,REISSUE_199,849.90,Payment Reissue
BIS,Skills Funding Agency,02/01/2014,Room Hire,National Functions,EXPOTEL HOTEL RESERVATIONS LTD,IPINVELECT3_1526,512.05,Purchase Invoice
BIS,Skills Funding Agency,02/01/2014,Room Hire,Relationship Team - North,EXPOTEL HOTEL RESERVATIONS LTD,IPINVELECT3_1526,444.15,Purchase Invoice
BIS,Skills Funding Agency,02/01/2014,Self-Drive Car Hire,Funding & Programmes - European Social Fund,ENTERPRISE RENT A CAR UK LTD,IPINVELECT3_1527,61.50,Purchase Invoice
BIS,Skills Funding Agency,02/01/2014,Self-Drive Car Hire,Northern Division,ENTERPRISE RENT A CAR UK LTD,IPINVELECT3_1527,94.2,Purchase Invoice
BIS,Skills Funding Agency,02/01/2014,Self-Drive Car Hire,Skills Competitions International,ENTERPRISE RENT A CAR UK LTD,IPINVELECT3_1527,77.5,Purchase Invoice
BIS,Skills Funding Agency,02/01/2014,Temporary Staff,Data Service - Collection & Funding,PARITY RESOURCES LTD,SPINVB_20019,4834.70,Purchase Invoice
BIS,Skills Funding Agency,02/01/2014,Temporary Staff,Programme Delivery - Programme Management Office/Programme Support Office,SMART SOURCING PLC,SPINVB_20043,6144.00,Purchase Invoice
BIS,Skills Funding Agency,02/01/2014,Temporary Staff,Programme Delivery - Project Management/Testing,LA INTERNATIONAL,SPINVB_19994,17762.4,Purchase Invoice
BIS,Skills Funding Agency,07/01/2014,Archiving,Finance Division - Financial Control North,IRON MOUNTAIN UK LTD,IPINVELECT3_1529,7081.50,Purchase Invoice
BIS,Skills Funding Agency,07/01/2014,Archiving,Finance Division - Financial Control South,IRON MOUNTAIN UK LTD,IPINVELECT3_1529,4571.32,Purchase Invoice
BIS,Skills Funding Agency,07/01/2014,Archiving,HR - Facilities Central,IRON MOUNTAIN UK LTD,IPINVELECT3_1529,6502.55,Purchase Invoice
BIS,Skills Funding Agency,07/01/2014,Archiving,National Functions,IRON MOUNTAIN UK LTD,IPINVELECT3_1529,11.75,Purchase Invoice
BIS,Skills Funding Agency,07/01/2014,Career Development Loans - Programme Support Costs,Main Funding,EDUCATION FUNDING AGENCY,SPINVB_19827,117500.00,Purchase Invoice
BIS,Skills Funding Agency,07/01/2014,Career Development Loans - Programme Support Costs,Main Funding,EXPERIAN LTD,SPINVB_20067,69.3,Purchase Invoice
BIS,Skills Funding Agency,07/01/2014,Catering Supplies,Finance Division - Financial Control North,JOHN HURST MILKMAN,SPINVB_20087,46.08,Purchase Invoice
BIS,Skills Funding Agency,07/01/2014,Cleaning Contract,HR - Facilities Divisional,CHARITY COMMISSION FOR ENGLAND AND WALES,SPINVNO_3242,635.43,Purchase Invoice
BIS,Skills Funding Agency,07/01/2014,Conference Fees,National Functions,ASPIRE LEARNING & DEVELOPMENT LTD,SPINVB_20100,645.9,Purchase Invoice
BIS,Skills Funding Agency,07/01/2014,Conferences & Workshops,"Business Development, Sales & Marketing",EXPOTEL HOTEL RESERVATIONS LTD,IPINVELECT3_1528,1460.71,Purchase Invoice
BIS,Skills Funding Agency,07/01/2014,Dance and Drama,Main Funding,EDUCATION FUNDING AGENCY,SPINVB_19827,852139.00,Purchase Invoice
BIS,Skills Funding Agency,07/01/2014,Department For Education Non Participation Action Plan,Communications & Marketing,M4C - A DIVISION OF GROUPM UK LTD,SPINVB_19654,884.39,Purchase Invoice
BIS,Skills Funding Agency,07/01/2014,Department For Education Non Participation Action Plan,Communications & Marketing,MUNRO & FORSTER COMMUNICATIONS LIMITED,SPINVB_20089,665.82,Purchase Invoice
BIS,Skills Funding Agency,07/01/2014,Department For Education Non Participation Action Plan,Communications & Marketing,TRIBE,SPINVB_20099,3600.00,Purchase Invoice
BIS,Skills Funding Agency,07/01/2014,Electricity,HR - Facilities Divisional,CHARITY COMMISSION FOR ENGLAND AND WALES,SPINVNO_3242,1079.70,Purchase Invoice
BIS,Skills Funding Agency,07/01/2014,Funding Advances,None,CITY COLLEGE BRIGHTON & HOVE,NQDV_552,450000.00,Programme Template
BIS,Skills Funding Agency,07/01/2014,General Maintenance,HR - Facilities Divisional,CHARITY COMMISSION FOR ENGLAND AND WALES,SPINVNO_3242,1479.72,Purchase Invoice
BIS,Skills Funding Agency,07/01/2014,Landline Telephone Service,Operational Services - Service Management - Operate,IDN TELECOM LTD,IPINVELECT3_1532,618.98,Purchase Invoice
BIS,Skills Funding Agency,07/01/2014,Licences,Operational Services - Service Management - Life Cycle,LOGICA UK LTD,SPINVB_20049,25768.4,Purchase Invoice
BIS,Skills Funding Agency,07/01/2014,"National Apprenticeship Service - Business, Innovation & Skills - Non-Participation",Communications & Marketing,MUNRO & FORSTER COMMUNICATIONS LIMITED,SPINVB_20088,730.8,Purchase Invoice
BIS,Skills Funding Agency,07/01/2014,"National Apprenticeship Service - Business, Innovation & Skills - Non-Participation",Communications & Marketing,MUNRO & FORSTER COMMUNICATIONS LIMITED,SPINVB_20092,5628.00,Purchase Invoice
BIS,Skills Funding Agency,07/01/2014,"National Apprenticeship Service - Business, Innovation & Skills - Non-Participation",Communications & Marketing,OPEN DOORS MEDIA LTD,SPINVB_20104,1392,Purchase Invoice
BIS,Skills Funding Agency,07/01/2014,"National Apprenticeship Service - Business, Innovation & Skills - Non-Participation",Communications & Marketing,OPEN DOORS MEDIA LTD,SPINVB_20106,1512,Purchase Invoice
BIS,Skills Funding Agency,07/01/2014,"National Apprenticeship Service - Business, Innovation & Skills - Non-Participation",Communications & Marketing,PANLOGIC LTD,SPINVB_19914,11941.20,Purchase Invoice
BIS,Skills Funding Agency,07/01/2014,"National Apprenticeship Service - Business, Innovation & Skills - Non-Participation",Communications & Marketing,PANLOGIC LTD,SPINVB_19915,1020,Purchase Invoice
BIS,Skills Funding Agency,07/01/2014,"National Apprenticeship Service - Business, Innovation & Skills - Non-Participation",Communications & Marketing,PANLOGIC LTD,SPINVB_19981,450.00,Purchase Invoice
BIS,Skills Funding Agency,07/01/2014,"National Apprenticeship Service - Business, Innovation & Skills - Non-Participation",Communications & Marketing,PURPOSE DESIGN,SPINVB_19925,5476.80,Purchase Invoice
BIS,Skills Funding Agency,07/01/2014,"National Apprenticeship Service - Business, Innovation & Skills - Non-Participation",Main Funding,BMKWEL,SPINVCHQ_258,60,Purchase Invoice
BIS,Skills Funding Agency,07/01/2014,"National Apprenticeship Service - Business, Innovation & Skills - Non-Participation",Main Funding,PANLOGIC LTD,SPINVB_19985,3060,Purchase Invoice
BIS,Skills Funding Agency,07/01/2014,"National Apprenticeship Service - Business, Innovation & Skills - Non-Participation",Main Funding,The Street Caf�,SPINVCHQ_256,200.00,Purchase Invoice
BIS,Skills Funding Agency,07/01/2014,National Careers Service Development,Communications & Marketing,MUNRO & FORSTER COMMUNICATIONS LIMITED,SPINVB_20094,2319.07,Purchase Invoice
BIS,Skills Funding Agency,07/01/2014,National Careers Service Development,Main Funding,DEPARTMENT FOR WORK & PENSIONS,SPINVB_20111,23272.27,Purchase Invoice
BIS,Skills Funding Agency,07/01/2014,National Careers Service Development,Main Funding,MINDSHARE MEDIA UK LIMITED,SPINVB_20112,30000,Purchase Invoice
BIS,Skills Funding Agency,07/01/2014,Off The Shelf Software,Chief Information Officer Services - Digital Strategy & Design,SALESFORCE.COM S�RL,SPINVB_20008,24000,Purchase Invoice
BIS,Skills Funding Agency,07/01/2014,Offender Learning and Skills Service - Information & Guidance,Main Funding,PROSPECTS SERVICES LTD,SPINVB_19987,3665.50,Purchase Invoice
BIS,Skills Funding Agency,07/01/2014,Offender Learning and Skills Service Offender Learning Development,Main Funding,MOUCHEL MANAGEMENT CONSULTING LTD,SPINVB_20009,31980,Purchase Invoice
BIS,Skills Funding Agency,07/01/2014,Office Refreshments,Finance Division - Financial Control North,MADELEY DAIRIES,SPINVB_20086,58.77,Purchase Invoice
BIS,Skills Funding Agency,07/01/2014,Professional Services - Single Assignments,Data Service - Management Information,METHODS CONSULTING LTD,SPINVB_20096,1128,Purchase Invoice
BIS,Skills Funding Agency,07/01/2014,Professional Services - Single Assignments,Data Service - Management Information,METHODS CONSULTING LTD,SPINVB_20097,10716.00,Purchase Invoice
BIS,Skills Funding Agency,07/01/2014,Professional Services - Single Assignments,Operational Services - Service Management - Transition,METHODS CONSULTING LTD,SPINVB_20022,10244.72,Purchase Invoice
BIS,Skills Funding Agency,07/01/2014,Professional Services - Single Assignments,Operational Services - Service Management - Transition,METHODS CONSULTING LTD,SPINVB_20059,7009.55,Purchase Invoice
BIS,Skills Funding Agency,07/01/2014,Professional Services - Single Assignments,Programme Delivery - Business Change,METHODS CONSULTING LTD,SPINVB_19839,9955.37,Purchase Invoice
BIS,Skills Funding Agency,07/01/2014,Professional Services - Single Assignments,Programme Delivery - Centre of Excellence,PARITY RESOURCES LTD,SPINVB_20015,11400.00,Purchase Invoice
BIS,Skills Funding Agency,07/01/2014,Professional Services - Single Assignments,Programme Delivery - Centre of Excellence,PARITY RESOURCES LTD,SPINVB_20016,10830.00,Purchase Invoice
BIS,Skills Funding Agency,07/01/2014,Professional Services - Single Assignments,Programme Delivery - Centre of Excellence,PARITY RESOURCES LTD,SPINVB_20017,13680.00,Purchase Invoice
BIS,Skills Funding Agency,07/01/2014,Professional Services,Data Service - Other,PLAIN ENGLISH CAMPAIGN LTD,SPINVB_20105,1560.00,Purchase Invoice
BIS,Skills Funding Agency,07/01/2014,Professional Services,Programme Delivery - Business Change,PARITY RESOURCES LTD,SPINVB_20012,13082.40,Purchase Invoice
BIS,Skills Funding Agency,07/01/2014,Professional Services,Programme Delivery - Programme Management Office/Programme Support Office,METHODS CONSULTING LTD,SPINVB_19838,8797.57,Purchase Invoice
BIS,Skills Funding Agency,07/01/2014,Professional Services,Projects - Programme Delivery Projects,METHODS CONSULTING LTD,SPINVB_19907,13519.18,Purchase Invoice
BIS,Skills Funding Agency,07/01/2014,Rates,HR - Facilities Divisional,CHARITY COMMISSION FOR ENGLAND AND WALES,SPINVNO_3242,4572.50,Purchase Invoice
BIS,Skills Funding Agency,07/01/2014,Refurbishment,HR - Facilities Central,LGM INTERIORS LIMITED,SPINVB_20110,12017.38,Purchase Invoice
BIS,Skills Funding Agency,07/01/2014,Rent,HR - Facilities Divisional,CHARITY COMMISSION FOR ENGLAND AND WALES,SPINVNO_3242,17597.28,Purchase Invoice
BIS,Skills Funding Agency,07/01/2014,Self-Drive Car Hire,Customer & Application Management - Communications,ENTERPRISE RENT A CAR UK LTD,IPINVELECT3_1531,53.75,Purchase Invoice
BIS,Skills Funding Agency,07/01/2014,Self-Drive Car Hire,Relationship Team - South,ENTERPRISE RENT A CAR UK LTD,IPINVELECT3_1531,76.20,Purchase Invoice
BIS,Skills Funding Agency,07/01/2014,Service Charges,HR - Facilities Divisional,CHARITY COMMISSION FOR ENGLAND AND WALES,SPINVNO_3242,3239.10,Purchase Invoice
BIS,Skills Funding Agency,07/01/2014,Software Maintenance & Repair,Operational Services - Service Management - Life Cycle,LOGICA UK LTD,SPINVB_20035,183036.82,Purchase Invoice
BIS,Skills Funding Agency,07/01/2014,Software Maintenance & Repair,Operational Services - Service Management - Life Cycle,LOGICA UK LTD,SPINVB_20050,314880.00,Purchase Invoice
BIS,Skills Funding Agency,07/01/2014,Temporary Staff,Data Service - Collection & Funding,PARITY RESOURCES LTD,SPINVB_20018,4679.84,Purchase Invoice
BIS,Skills Funding Agency,07/01/2014,Temporary Staff,Data Service - Collection & Funding,SMART SOURCING PLC,SPINVB_19989,9382.80,Purchase Invoice
BIS,Skills Funding Agency,07/01/2014,Temporary Staff,Data Service - Collection & Funding,SMART SOURCING PLC,SPINVB_20044,3762.00,Purchase Invoice
BIS,Skills Funding Agency,07/01/2014,Temporary Staff,Data Service - Collection & Funding,SMART SOURCING PLC,SPINVB_20045,6567.96,Purchase Invoice
BIS,Skills Funding Agency,07/01/2014,Temporary Staff,Data Service - Management Information,LA INTERNATIONAL,SPINVB_20053,4679.52,Purchase Invoice
BIS,Skills Funding Agency,07/01/2014,Temporary Staff,Data Service - Management Information,MAGNETIC IT LIMITED,SPINVB_20030,8027.21,Purchase Invoice
BIS,Skills Funding Agency,07/01/2014,Temporary Staff,Data Service - Management Information,MAGNETIC IT LIMITED,SPINVB_20031,8027.21,Purchase Invoice
BIS,Skills Funding Agency,07/01/2014,Temporary Staff,Data Service - Other,PARITY RESOURCES LTD,SPINVB_20013,8799.12,Purchase Invoice
BIS,Skills Funding Agency,07/01/2014,Temporary Staff,Programme Delivery - Business Change,METHODS CONSULTING LTD,SPINVB_19840,4440.00,Purchase Invoice
BIS,Skills Funding Agency,07/01/2014,Temporary Staff,Programme Delivery - Business Change,PARITY RESOURCES LTD,SPINVB_20010,10799.90,Purchase Invoice
BIS,Skills Funding Agency,07/01/2014,Temporary Staff,Programme Delivery - Business Change,PARITY RESOURCES LTD,SPINVB_20014,2633.70,Purchase Invoice
BIS,Skills Funding Agency,07/01/2014,Temporary Staff,Programme Delivery - Business Change,SMART SOURCING PLC,SPINVB_20039,11042.72,Purchase Invoice
BIS,Skills Funding Agency,07/01/2014,Temporary Staff,Programme Delivery - Centre of Excellence,BADENOCH & CLARK IP LTD,IPINVELECT3_1533,2531.04,Purchase Invoice
BIS,Skills Funding Agency,07/01/2014,Temporary Staff,Programme Delivery - Programme Management Office/Programme Support Office,LA INTERNATIONAL,SPINVB_20037,5769.36,Purchase Invoice
BIS,Skills Funding Agency,07/01/2014,Temporary Staff,Programme Delivery - Programme Management Office/Programme Support Office,LA INTERNATIONAL,SPINVB_20054,6660.19,Purchase Invoice
BIS,Skills Funding Agency,07/01/2014,Temporary Staff,Programme Delivery - Project Management/Testing,BADENOCH & CLARK IP LTD,IPINVELECT3_1530,6720.00,Purchase Invoice
BIS,Skills Funding Agency,07/01/2014,Temporary Staff,Programme Delivery - Project Management/Testing,BADENOCH & CLARK IP LTD,IPINVELECT3_1533,960,Purchase Invoice
BIS,Skills Funding Agency,07/01/2014,Temporary Staff,Programme Delivery - Project Management/Testing,ELAN COMPUTING LTD,SPINVB_20020,8287.1,Purchase Invoice
BIS,Skills Funding Agency,07/01/2014,Temporary Staff,Programme Delivery - Project Management/Testing,LA INTERNATIONAL,SPINVB_20074,6361.34,Purchase Invoice
BIS,Skills Funding Agency,07/01/2014,Temporary Staff,Programme Delivery - Project Management/Testing,METHODS CONSULTING LTD,SPINVB_19837,18243.58,Purchase Invoice
BIS,Skills Funding Agency,07/01/2014,Temporary Staff,Projects - Programme Delivery Projects,BADENOCH & CLARK IP LTD,IPINVELECT3_1530,3297.84,Purchase Invoice
BIS,Skills Funding Agency,07/01/2014,Trade Creditors Advances,None,MITCHELL NICHOLLS PARTNERSHIP,SPAYONACCT_262,15495.51,Payment on Account
BIS,Skills Funding Agency,07/01/2014,Trade Creditors Advances,None,PAUL HOUGHTON MEDIATION LTD,SPAYONACCT_263,1586.40,Payment on Account
BIS,Skills Funding Agency,07/01/2014,UK Skills - Competitions (National),Main Funding,FRIDAYGIRL.COM,SPINVB_20095,1298.06,Purchase Invoice
BIS,Skills Funding Agency,08/01/2014,Diesel Car Mileage Passenger Supplement,Chief Executive's Office - Internal Audit,Agency Staff Member,SCLAIM_34954,19.50,Staff Expenses Claim
BIS,Skills Funding Agency,08/01/2014,Diesel Car Mileage Passenger Supplement,Finance Division - Provider Financial Assurance Audit,Agency Staff Member,SCLAIM_34991,12.5,Staff Expenses Claim
BIS,Skills Funding Agency,08/01/2014,Diesel Car Mileage Passenger Supplement,Northern Division,Agency Staff Member,SCLAIM_34976,1.3,Staff Expenses Claim
BIS,Skills Funding Agency,08/01/2014,Diesel Car Mileage Passenger Supplement,Northern Division,Agency Staff Member,SCLAIM_34997,5.60,Staff Expenses Claim
BIS,Skills Funding Agency,08/01/2014,Diesel Car Mileage Passenger Supplement,Programme Development & Vacancy Services,Agency Staff Member,SCLAIM_34936,14.85,Staff Expenses Claim
BIS,Skills Funding Agency,08/01/2014,Diesel Car Mileage Passenger Supplement,Relationship Team - South,Agency Staff Member,SCLAIM_34968,5.80,Staff Expenses Claim
BIS,Skills Funding Agency,08/01/2014,Diesel Car Mileage Passenger Supplement,Relationship Team - South,Agency Staff Member,SCLAIM_34980,1.50,Staff Expenses Claim
BIS,Skills Funding Agency,08/01/2014,Diesel Car Mileage,"Business Development, Sales & Marketing",Agency Staff Member,SCLAIM_34935,221.40,Staff Expenses Claim
BIS,Skills Funding Agency,08/01/2014,Diesel Car Mileage,"Business Development, Sales & Marketing",Agency Staff Member,SCLAIM_34945,190.80,Staff Expenses Claim
BIS,Skills Funding Agency,08/01/2014,Diesel Car Mileage,Central Division,Agency Staff Member,SCLAIM_34947,490.05,Staff Expenses Claim
BIS,Skills Funding Agency,08/01/2014,Diesel Car Mileage,Central Division,Agency Staff Member,SCLAIM_34957,155.70,Staff Expenses Claim
BIS,Skills Funding Agency,08/01/2014,Diesel Car Mileage,Central Division,Agency Staff Member,SCLAIM_34958,142.6,Staff Expenses Claim
BIS,Skills Funding Agency,08/01/2014,Diesel Car Mileage,Chief Executive's Office - Internal Audit,Agency Staff Member,SCLAIM_34954,311.40,Staff Expenses Claim
BIS,Skills Funding Agency,08/01/2014,Diesel Car Mileage,Finance Division - Financial Control North,Agency Staff Member,SCLAIM_34944,57.60,Staff Expenses Claim
BIS,Skills Funding Agency,08/01/2014,Diesel Car Mileage,Finance Division - Provider Finance,Agency Staff Member,SCLAIM_34966,81.00,Staff Expenses Claim
BIS,Skills Funding Agency,08/01/2014,Diesel Car Mileage,Finance Division - Provider Financial Assurance Audit,Agency Staff Member,SCLAIM_34925,243.90,Staff Expenses Claim
BIS,Skills Funding Agency,08/01/2014,Diesel Car Mileage,Finance Division - Provider Financial Assurance Audit,Agency Staff Member,SCLAIM_34981,61.20,Staff Expenses Claim
BIS,Skills Funding Agency,08/01/2014,Diesel Car Mileage,Finance Division - Provider Financial Assurance Audit,Agency Staff Member,SCLAIM_34982,288.45,Staff Expenses Claim
BIS,Skills Funding Agency,08/01/2014,Diesel Car Mileage,Finance Division - Provider Financial Assurance Audit,Agency Staff Member,SCLAIM_34989,64.80,Staff Expenses Claim
BIS,Skills Funding Agency,08/01/2014,Diesel Car Mileage,Finance Division - Provider Financial Assurance Audit,Agency Staff Member,SCLAIM_34991,159.30,Staff Expenses Claim
BIS,Skills Funding Agency,08/01/2014,Diesel Car Mileage,Finance Division - Provider Financial Assurance Audit,Agency Staff Member,SCLAIM_34995,2.7,Staff Expenses Claim
BIS,Skills Funding Agency,08/01/2014,Diesel Car Mileage,Funding & Programmes - European Social Fund,Agency Staff Member,SCLAIM_34992,129.60,Staff Expenses Claim
BIS,Skills Funding Agency,08/01/2014,Diesel Car Mileage,Growth National Careers Service Other,Agency Staff Member,SCLAIM_34923,510.3,Staff Expenses Claim
BIS,Skills Funding Agency,08/01/2014,Diesel Car Mileage,Growth National Careers Service Other,Agency Staff Member,SCLAIM_34924,479.70,Staff Expenses Claim
BIS,Skills Funding Agency,08/01/2014,Diesel Car Mileage,HR - Human Resources,Agency Staff Member,SCLAIM_34959,417.60,Staff Expenses Claim
BIS,Skills Funding Agency,08/01/2014,Diesel Car Mileage,Marketing & Communications,Agency Staff Member,SCLAIM_34943,81.00,Staff Expenses Claim
BIS,Skills Funding Agency,08/01/2014,Diesel Car Mileage,Marketing & Communications,Agency Staff Member,SCLAIM_34964,70.20,Staff Expenses Claim
BIS,Skills Funding Agency,08/01/2014,Diesel Car Mileage,Northern Division,Agency Staff Member,SCLAIM_34939,207.90,Staff Expenses Claim
BIS,Skills Funding Agency,08/01/2014,Diesel Car Mileage,Northern Division,Agency Staff Member,SCLAIM_34951,66.15,Staff Expenses Claim
BIS,Skills Funding Agency,08/01/2014,Diesel Car Mileage,Northern Division,Agency Staff Member,SCLAIM_34952,160.20,Staff Expenses Claim
BIS,Skills Funding Agency,08/01/2014,Diesel Car Mileage,Northern Division,Agency Staff Member,SCLAIM_34961,9.90,Staff Expenses Claim
BIS,Skills Funding Agency,08/01/2014,Diesel Car Mileage,Northern Division,Agency Staff Member,SCLAIM_34963,0.9,Staff Expenses Claim
BIS,Skills Funding Agency,08/01/2014,Diesel Car Mileage,Northern Division,Agency Staff Member,SCLAIM_34975,128.70,Staff Expenses Claim
BIS,Skills Funding Agency,08/01/2014,Diesel Car Mileage,Northern Division,Agency Staff Member,SCLAIM_34976,72.45,Staff Expenses Claim
BIS,Skills Funding Agency,08/01/2014,Diesel Car Mileage,Northern Division,Agency Staff Member,SCLAIM_34997,207.00,Staff Expenses Claim
BIS,Skills Funding Agency,08/01/2014,Diesel Car Mileage,Programme Development & Vacancy Services,Agency Staff Member,SCLAIM_34936,238.50,Staff Expenses Claim
BIS,Skills Funding Agency,08/01/2014,Diesel Car Mileage,Relationship Team - North,Agency Staff Member,SCLAIM_34929,188.50,Staff Expenses Claim
BIS,Skills Funding Agency,08/01/2014,Diesel Car Mileage,Relationship Team - North,Agency Staff Member,SCLAIM_34938,236.25,Staff Expenses Claim
BIS,Skills Funding Agency,08/01/2014,Diesel Car Mileage,Relationship Team - North,Agency Staff Member,SCLAIM_34971,237.60,Staff Expenses Claim
BIS,Skills Funding Agency,08/01/2014,Diesel Car Mileage,Relationship Team - North,Agency Staff Member,SCLAIM_34972,207.9,Staff Expenses Claim
BIS,Skills Funding Agency,08/01/2014,Diesel Car Mileage,Relationship Team - North,Agency Staff Member,SCLAIM_34973,83.70,Staff Expenses Claim
BIS,Skills Funding Agency,08/01/2014,Diesel Car Mileage,Relationship Team - North,Agency Staff Member,SCLAIM_34986,144.45,Staff Expenses Claim
BIS,Skills Funding Agency,08/01/2014,Diesel Car Mileage,Relationship Team - North,Agency Staff Member,SCLAIM_34990,600.75,Staff Expenses Claim
BIS,Skills Funding Agency,08/01/2014,Diesel Car Mileage,Relationship Team - North,Agency Staff Member,SCLAIM_34994,242.10,Staff Expenses Claim
BIS,Skills Funding Agency,08/01/2014,Diesel Car Mileage,Relationship Team - South,Agency Staff Member,SCLAIM_34920,126.00,Staff Expenses Claim
BIS,Skills Funding Agency,08/01/2014,Diesel Car Mileage,Relationship Team - South,Agency Staff Member,SCLAIM_34928,208.80,Staff Expenses Claim
BIS,Skills Funding Agency,08/01/2014,Diesel Car Mileage,Relationship Team - South,Agency Staff Member,SCLAIM_34942,208.35,Staff Expenses Claim
BIS,Skills Funding Agency,08/01/2014,Diesel Car Mileage,Relationship Team - South,Agency Staff Member,SCLAIM_34968,202.5,Staff Expenses Claim
BIS,Skills Funding Agency,08/01/2014,Diesel Car Mileage,Relationship Team - South,Agency Staff Member,SCLAIM_34980,220.50,Staff Expenses Claim
BIS,Skills Funding Agency,08/01/2014,Diesel Car Mileage,Relationship Team - South,Agency Staff Member,SCLAIM_34984,144.90,Staff Expenses Claim
BIS,Skills Funding Agency,08/01/2014,Diesel Car Mileage,Relationship Team - South,Agency Staff Member,SCLAIM_34988,107.55,Staff Expenses Claim
BIS,Skills Funding Agency,08/01/2014,Eye Tests,Customer & Application Management - Resource,Agency Staff Member,SCLAIM_34974,20.00,Staff Expenses Claim
BIS,Skills Funding Agency,08/01/2014,Hospitality,Relationship Team - North,Agency Staff Member,SCLAIM_34921,4.25,Staff Expenses Claim
BIS,Skills Funding Agency,08/01/2014,Hospitality,Southern Division,Agency Staff Member,SCLAIM_34950,2.6,Staff Expenses Claim
BIS,Skills Funding Agency,08/01/2014,Other Travel,"Business Development, Sales & Marketing",Agency Staff Member,SCLAIM_34935,52.50,Staff Expenses Claim
BIS,Skills Funding Agency,08/01/2014,Other Travel,"Business Development, Sales & Marketing",Agency Staff Member,SCLAIM_34945,14.70,Staff Expenses Claim
BIS,Skills Funding Agency,08/01/2014,Other Travel,Central Delivery Service - Gateshead,Agency Staff Member,SCLAIM_34927,15.00,Staff Expenses Claim
BIS,Skills Funding Agency,08/01/2014,Other Travel,Central Division,Agency Staff Member,SCLAIM_34932,14.3,Staff Expenses Claim
BIS,Skills Funding Agency,08/01/2014,Other Travel,Central Division,Agency Staff Member,SCLAIM_34947,22.50,Staff Expenses Claim
BIS,Skills Funding Agency,08/01/2014,Other Travel,Central Division,Agency Staff Member,SCLAIM_34958,6.00,Staff Expenses Claim
BIS,Skills Funding Agency,08/01/2014,Other Travel,Central Division,Agency Staff Member,SCLAIM_34996,24.50,Staff Expenses Claim
BIS,Skills Funding Agency,08/01/2014,Other Travel,Chief Executive's Office - Internal Audit,Agency Staff Member,SCLAIM_34954,21.4,Staff Expenses Claim
BIS,Skills Funding Agency,08/01/2014,Other Travel,Finance Division - Provider Finance,Agency Staff Member,SCLAIM_34966,6,Staff Expenses Claim
BIS,Skills Funding Agency,08/01/2014,Other Travel,Finance Division - Provider Financial Assurance Audit,Agency Staff Member,SCLAIM_34925,5.80,Staff Expenses Claim
BIS,Skills Funding Agency,08/01/2014,Other Travel,Finance Division - Provider Financial Assurance Audit,Agency Staff Member,SCLAIM_34960,4.1,Staff Expenses Claim
BIS,Skills Funding Agency,08/01/2014,Other Travel,Finance Division - Provider Financial Assurance Audit,Agency Staff Member,SCLAIM_34969,53.00,Staff Expenses Claim
BIS,Skills Funding Agency,08/01/2014,Other Travel,Finance Division - Provider Financial Assurance Audit,Agency Staff Member,SCLAIM_34982,15.00,Staff Expenses Claim
BIS,Skills Funding Agency,08/01/2014,Other Travel,Finance Division - Provider Financial Assurance Audit,Agency Staff Member,SCLAIM_34991,11.6,Staff Expenses Claim
BIS,Skills Funding Agency,08/01/2014,Other Travel,Finance Division - Provider Financial Assurance Audit,Agency Staff Member,SCLAIM_34995,9.90,Staff Expenses Claim
BIS,Skills Funding Agency,08/01/2014,Other Travel,Funding & Programmes - Employer Ownership Programme,Agency Staff Member,SCLAIM_34979,7,Staff Expenses Claim
BIS,Skills Funding Agency,08/01/2014,Other Travel,Funding & Programmes - Employer Ownership Programme,Agency Staff Member,SCLAIM_34985,15.70,Staff Expenses Claim
BIS,Skills Funding Agency,08/01/2014,Other Travel,Funding & Programmes - Funding Policy,Agency Staff Member,SCLAIM_34953,156.00,Staff Expenses Claim
BIS,Skills Funding Agency,08/01/2014,Other Travel,Funding & Programmes - Funding Systems and Information,Agency Staff Member,SCLAIM_34940,15.00,Staff Expenses Claim
BIS,Skills Funding Agency,08/01/2014,Other Travel,HR - Human Resources,Agency Staff Member,SCLAIM_34959,26.80,Staff Expenses Claim
BIS,Skills Funding Agency,08/01/2014,Other Travel,London & South East Division,Agency Staff Member,SCLAIM_34956,13.20,Staff Expenses Claim
BIS,Skills Funding Agency,08/01/2014,Other Travel,Marketing & Communications,Agency Staff Member,SCLAIM_34930,33,Staff Expenses Claim
BIS,Skills Funding Agency,08/01/2014,Other Travel,Marketing & Communications,Agency Staff Member,SCLAIM_34937,232.60,Staff Expenses Claim
BIS,Skills Funding Agency,08/01/2014,Other Travel,Northern Division,Agency Staff Member,SCLAIM_34939,64.2,Staff Expenses Claim
BIS,Skills Funding Agency,08/01/2014,Other Travel,Northern Division,Agency Staff Member,SCLAIM_34951,17.40,Staff Expenses Claim
BIS,Skills Funding Agency,08/01/2014,Other Travel,Northern Division,Agency Staff Member,SCLAIM_34952,35.20,Staff Expenses Claim
BIS,Skills Funding Agency,08/01/2014,Other Travel,Northern Division,Agency Staff Member,SCLAIM_34961,154.9,Staff Expenses Claim
BIS,Skills Funding Agency,08/01/2014,Other Travel,Northern Division,Agency Staff Member,SCLAIM_34963,20.00,Staff Expenses Claim
BIS,Skills Funding Agency,08/01/2014,Other Travel,Northern Division,Agency Staff Member,SCLAIM_34965,19,Staff Expenses Claim
BIS,Skills Funding Agency,08/01/2014,Other Travel,Northern Division,Agency Staff Member,SCLAIM_34975,46.20,Staff Expenses Claim
BIS,Skills Funding Agency,08/01/2014,Other Travel,Northern Division,Agency Staff Member,SCLAIM_34976,66.90,Staff Expenses Claim
BIS,Skills Funding Agency,08/01/2014,Other Travel,Northern Division,Agency Staff Member,SCLAIM_34997,22.00,Staff Expenses Claim
BIS,Skills Funding Agency,08/01/2014,Other Travel,Programme Development & Vacancy Services,Agency Staff Member,SCLAIM_34936,26.00,Staff Expenses Claim
BIS,Skills Funding Agency,08/01/2014,Other Travel,Relationship Team - North,Agency Staff Member,SCLAIM_34921,31.00,Staff Expenses Claim
BIS,Skills Funding Agency,08/01/2014,Other Travel,Relationship Team - North,Agency Staff Member,SCLAIM_34962,17.7,Staff Expenses Claim
BIS,Skills Funding Agency,08/01/2014,Other Travel,Relationship Team - North,Agency Staff Member,SCLAIM_34971,22.00,Staff Expenses Claim
BIS,Skills Funding Agency,08/01/2014,Other Travel,Relationship Team - North,Agency Staff Member,SCLAIM_34972,16.5,Staff Expenses Claim
BIS,Skills Funding Agency,08/01/2014,Other Travel,Relationship Team - North,Agency Staff Member,SCLAIM_34973,21.20,Staff Expenses Claim
BIS,Skills Funding Agency,08/01/2014,Other Travel,Relationship Team - North,Agency Staff Member,SCLAIM_34986,11.00,Staff Expenses Claim
BIS,Skills Funding Agency,08/01/2014,Other Travel,Relationship Team - North,Agency Staff Member,SCLAIM_34990,8.00,Staff Expenses Claim
BIS,Skills Funding Agency,08/01/2014,Other Travel,Relationship Team - North,Agency Staff Member,SCLAIM_34994,6.00,Staff Expenses Claim
BIS,Skills Funding Agency,08/01/2014,Other Travel,Relationship Team - South,Agency Staff Member,SCLAIM_34920,9.00,Staff Expenses Claim
BIS,Skills Funding Agency,08/01/2014,Other Travel,Relationship Team - South,Agency Staff Member,SCLAIM_34922,2.00,Staff Expenses Claim
BIS,Skills Funding Agency,08/01/2014,Other Travel,Relationship Team - South,Agency Staff Member,SCLAIM_34928,10.30,Staff Expenses Claim
BIS,Skills Funding Agency,08/01/2014,Other Travel,Relationship Team - South,Agency Staff Member,SCLAIM_34934,9,Staff Expenses Claim
BIS,Skills Funding Agency,08/01/2014,Other Travel,Relationship Team - South,Agency Staff Member,SCLAIM_34942,7.00,Staff Expenses Claim
BIS,Skills Funding Agency,08/01/2014,Other Travel,Relationship Team - South,Agency Staff Member,SCLAIM_34968,29.00,Staff Expenses Claim
BIS,Skills Funding Agency,08/01/2014,Other Travel,Relationship Team - South,Agency Staff Member,SCLAIM_34980,29.10,Staff Expenses Claim
BIS,Skills Funding Agency,08/01/2014,Other Travel,Relationship Team - South,Agency Staff Member,SCLAIM_34984,21.60,Staff Expenses Claim
BIS,Skills Funding Agency,08/01/2014,Other Travel,Relationship Team - South,Agency Staff Member,SCLAIM_34988,0.50,Staff Expenses Claim
BIS,Skills Funding Agency,08/01/2014,Other Travel,Southern Division,Agency Staff Member,SCLAIM_34950,25.50,Staff Expenses Claim
BIS,Skills Funding Agency,08/01/2014,Other Travel,Southern Division,Agency Staff Member,SCLAIM_34983,12,Staff Expenses Claim
BIS,Skills Funding Agency,08/01/2014,Petrol Car Mileage Passenger Supplement,Relationship Team - South,Agency Staff Member,SCLAIM_34931,36.00,Staff Expenses Claim
BIS,Skills Funding Agency,08/01/2014,Petrol Car Mileage Passenger Supplement,Southern Division,Agency Staff Member,SCLAIM_34978,2.70,Staff Expenses Claim
BIS,Skills Funding Agency,08/01/2014,Petrol Car Mileage,Central Delivery Service - Gateshead,Agency Staff Member,SCLAIM_34927,88.2,Staff Expenses Claim
BIS,Skills Funding Agency,08/01/2014,Petrol Car Mileage,Central Division,Agency Staff Member,SCLAIM_34932,178.65,Staff Expenses Claim
BIS,Skills Funding Agency,08/01/2014,Petrol Car Mileage,Central Division,Agency Staff Member,SCLAIM_34949,117.00,Staff Expenses Claim
BIS,Skills Funding Agency,08/01/2014,Petrol Car Mileage,Central Division,Agency Staff Member,SCLAIM_34996,131.40,Staff Expenses Claim
BIS,Skills Funding Agency,08/01/2014,Petrol Car Mileage,Communications & Campaigns - Corporate Communications,Agency Staff Member,SCLAIM_34933,238.50,Staff Expenses Claim
BIS,Skills Funding Agency,08/01/2014,Petrol Car Mileage,Communications & Campaigns - Corporate Communications,Agency Staff Member,SCLAIM_34977,113.4,Staff Expenses Claim
BIS,Skills Funding Agency,08/01/2014,Petrol Car Mileage,Finance Division - Provider Financial Assurance Audit,Agency Staff Member,SCLAIM_34960,93.60,Staff Expenses Claim
BIS,Skills Funding Agency,08/01/2014,Petrol Car Mileage,Finance Division - Provider Financial Assurance Audit,Agency Staff Member,SCLAIM_34967,195.30,Staff Expenses Claim
BIS,Skills Funding Agency,08/01/2014,Petrol Car Mileage,Finance Division - Provider Financial Assurance Audit,Agency Staff Member,SCLAIM_34969,99,Staff Expenses Claim
BIS,Skills Funding Agency,08/01/2014,Petrol Car Mileage,Funding & Programmes - Employer Ownership Programme,Agency Staff Member,SCLAIM_34979,25.2,Staff Expenses Claim
BIS,Skills Funding Agency,08/01/2014,Petrol Car Mileage,Funding & Programmes - Employer Ownership Programme,Agency Staff Member,SCLAIM_34985,170.1,Staff Expenses Claim
BIS,Skills Funding Agency,08/01/2014,Petrol Car Mileage,Funding & Programmes - Funding Policy,Agency Staff Member,SCLAIM_34953,107.1,Staff Expenses Claim
BIS,Skills Funding Agency,08/01/2014,Petrol Car Mileage,London & South East Division,Agency Staff Member,SCLAIM_34955,75.6,Staff Expenses Claim
BIS,Skills Funding Agency,08/01/2014,Petrol Car Mileage,London & South East Division,Agency Staff Member,SCLAIM_34956,54.45,Staff Expenses Claim
BIS,Skills Funding Agency,08/01/2014,Petrol Car Mileage,Marketing & Communications,Agency Staff Member,SCLAIM_34930,5.40,Staff Expenses Claim
BIS,Skills Funding Agency,08/01/2014,Petrol Car Mileage,Provider Management - Strategic Intervention,Agency Staff Member,SCLAIM_34993,125.10,Staff Expenses Claim
BIS,Skills Funding Agency,08/01/2014,Petrol Car Mileage,Relationship Team - North,Agency Staff Member,SCLAIM_34921,124.20,Staff Expenses Claim
BIS,Skills Funding Agency,08/01/2014,Petrol Car Mileage,Relationship Team - North,Agency Staff Member,SCLAIM_34962,25.20,Staff Expenses Claim
BIS,Skills Funding Agency,08/01/2014,Petrol Car Mileage,Relationship Team - North,Agency Staff Member,SCLAIM_34987,10.80,Staff Expenses Claim
BIS,Skills Funding Agency,08/01/2014,Petrol Car Mileage,Relationship Team - South,Agency Staff Member,SCLAIM_34922,191.70,Staff Expenses Claim
BIS,Skills Funding Agency,08/01/2014,Petrol Car Mileage,Relationship Team - South,Agency Staff Member,SCLAIM_34931,356.40,Staff Expenses Claim
BIS,Skills Funding Agency,08/01/2014,Petrol Car Mileage,Relationship Team - South,Agency Staff Member,SCLAIM_34934,46.80,Staff Expenses Claim
BIS,Skills Funding Agency,08/01/2014,Petrol Car Mileage,Southern Division,Agency Staff Member,SCLAIM_34950,408.60,Staff Expenses Claim
BIS,Skills Funding Agency,08/01/2014,Petrol Car Mileage,Southern Division,Agency Staff Member,SCLAIM_34978,420.30,Staff Expenses Claim
BIS,Skills Funding Agency,08/01/2014,Petrol Car Mileage,Southern Division,Agency Staff Member,SCLAIM_34983,195.75,Staff Expenses Claim
BIS,Skills Funding Agency,08/01/2014,Postage,Relationship Team - North,Agency Staff Member,SCLAIM_34994,32.91,Staff Expenses Claim
BIS,Skills Funding Agency,08/01/2014,Professional Subscriptions,Central Delivery Service - Leeds,Agency Staff Member,SCLAIMPRO_653,113.00,Staff Expenses Claim
BIS,Skills Funding Agency,08/01/2014,Professional Subscriptions,Communications & Campaigns - Corporate Communications,Agency Staff Member,SCLAIMPRO_646,100.00,Staff Expenses Claim
BIS,Skills Funding Agency,08/01/2014,Professional Subscriptions,Communications & Campaigns - Corporate Communications,Agency Staff Member,SCLAIMPRO_652,100,Staff Expenses Claim
BIS,Skills Funding Agency,08/01/2014,Professional Subscriptions,Finance Division - Financial Control North,Agency Staff Member,SCLAIMPRO_644,247.00,Staff Expenses Claim
BIS,Skills Funding Agency,08/01/2014,Professional Subscriptions,Finance Division - Financial Control North,Agency Staff Member,SCLAIMPRO_649,205.00,Staff Expenses Claim
BIS,Skills Funding Agency,08/01/2014,Professional Subscriptions,Finance Division - Financial Control North,Agency Staff Member,SCLAIMPRO_650,247.00,Staff Expenses Claim
BIS,Skills Funding Agency,08/01/2014,Professional Subscriptions,Finance Division - Financial Control North,Agency Staff Member,SCLAIMPRO_651,205.00,Staff Expenses Claim
BIS,Skills Funding Agency,08/01/2014,Professional Subscriptions,Finance Division - Provider Finance,Agency Staff Member,SCLAIMPRO_645,310.00,Staff Expenses Claim
BIS,Skills Funding Agency,08/01/2014,Professional Subscriptions,Finance Division - Provider Finance,Agency Staff Member,SCLAIMPRO_648,259.00,Staff Expenses Claim
BIS,Skills Funding Agency,08/01/2014,Professional Subscriptions,Marketing & Communications,Agency Staff Member,SCLAIMPRO_647,100,Staff Expenses Claim
BIS,Skills Funding Agency,08/01/2014,Rail Warrants & Tickets,"Business Development, Sales & Marketing",Agency Staff Member,SCLAIM_34935,20.00,Staff Expenses Claim
BIS,Skills Funding Agency,08/01/2014,Rail Warrants & Tickets,"Business Development, Sales & Marketing",Agency Staff Member,SCLAIM_34945,8.80,Staff Expenses Claim
BIS,Skills Funding Agency,08/01/2014,Rail Warrants & Tickets,Finance Division - Contract Control,Agency Staff Member,SCLAIM_34970,7.30,Staff Expenses Claim
BIS,Skills Funding Agency,08/01/2014,Rail Warrants & Tickets,Finance Division - Provider Financial Assurance Audit,Agency Staff Member,SCLAIM_34925,8.40,Staff Expenses Claim
BIS,Skills Funding Agency,08/01/2014,Rail Warrants & Tickets,Finance Division - Provider Financial Assurance Audit,Agency Staff Member,SCLAIM_34991,9.2,Staff Expenses Claim
BIS,Skills Funding Agency,08/01/2014,Rail Warrants & Tickets,Funding & Programmes - Employer Ownership Programme,Agency Staff Member,SCLAIM_34979,21.60,Staff Expenses Claim
BIS,Skills Funding Agency,08/01/2014,Rail Warrants & Tickets,Funding & Programmes - Funding Policy,Agency Staff Member,SCLAIM_34953,103.2,Staff Expenses Claim
BIS,Skills Funding Agency,08/01/2014,Rail Warrants & Tickets,Northern Division,Agency Staff Member,SCLAIM_34952,11.80,Staff Expenses Claim
BIS,Skills Funding Agency,08/01/2014,Rail Warrants & Tickets,Northern Division,Agency Staff Member,SCLAIM_34963,75.90,Staff Expenses Claim
BIS,Skills Funding Agency,08/01/2014,Rail Warrants & Tickets,Relationship Team - North,Agency Staff Member,SCLAIM_34921,8.00,Staff Expenses Claim
BIS,Skills Funding Agency,08/01/2014,Rail Warrants & Tickets,Relationship Team - North,Agency Staff Member,SCLAIM_34987,7.6,Staff Expenses Claim
BIS,Skills Funding Agency,08/01/2014,Rail Warrants & Tickets,Relationship Team - North,Agency Staff Member,SCLAIM_34990,12.6,Staff Expenses Claim
BIS,Skills Funding Agency,08/01/2014,Rail Warrants & Tickets,Relationship Team - South,Agency Staff Member,SCLAIM_34980,13.5,Staff Expenses Claim
BIS,Skills Funding Agency,08/01/2014,Rail Warrants & Tickets,Relationship Team - South,Agency Staff Member,SCLAIM_34984,15.00,Staff Expenses Claim
BIS,Skills Funding Agency,08/01/2014,Rail Warrants & Tickets,Southern Division,Agency Staff Member,SCLAIM_34950,12.1,Staff Expenses Claim
BIS,Skills Funding Agency,08/01/2014,Self-Drive Car Hire,Chief Executive's Office - Internal Audit,Agency Staff Member,SCLAIM_34954,78.5,Staff Expenses Claim
BIS,Skills Funding Agency,08/01/2014,Self-Drive Car Hire,Finance Division - Provider Financial Assurance Audit,Agency Staff Member,SCLAIM_34969,123.17,Staff Expenses Claim
BIS,Skills Funding Agency,08/01/2014,Self-Drive Car Hire,Finance Division - Provider Financial Assurance Audit,Agency Staff Member,SCLAIM_34981,48.09,Staff Expenses Claim
BIS,Skills Funding Agency,08/01/2014,Self-Drive Car Hire,Finance Division - Provider Financial Assurance Audit,Agency Staff Member,SCLAIM_34991,38.00,Staff Expenses Claim
BIS,Skills Funding Agency,08/01/2014,Self-Drive Car Hire,Funding & Programmes - Funding Systems and Information,Agency Staff Member,SCLAIM_34940,123.27,Staff Expenses Claim
BIS,Skills Funding Agency,08/01/2014,Self-Drive Car Hire,Marketing & Communications,Agency Staff Member,SCLAIM_34948,42.91,Staff Expenses Claim
BIS,Skills Funding Agency,08/01/2014,Self-Drive Car Hire,Northern Division,Agency Staff Member,SCLAIM_34965,41.88,Staff Expenses Claim
BIS,Skills Funding Agency,08/01/2014,Self-Drive Car Hire,Relationship Team - North,Agency Staff Member,SCLAIM_34990,28.00,Staff Expenses Claim
BIS,Skills Funding Agency,08/01/2014,Self-Drive Car Hire,Relationship Team - South,Agency Staff Member,SCLAIM_34928,43.32,Staff Expenses Claim
BIS,Skills Funding Agency,08/01/2014,Self-Drive Car Hire,Southern Division,Agency Staff Member,SCLAIM_34950,53.90,Staff Expenses Claim
BIS,Skills Funding Agency,08/01/2014,Subsistence,"Business Development, Sales & Marketing",Agency Staff Member,SCLAIM_34935,50,Staff Expenses Claim
BIS,Skills Funding Agency,08/01/2014,Subsistence,Central Delivery Service - Gateshead,Agency Staff Member,SCLAIM_34927,10.00,Staff Expenses Claim
BIS,Skills Funding Agency,08/01/2014,Subsistence,Central Delivery Service - Gateshead,Agency Staff Member,SCLAIM_34946,10.00,Staff Expenses Claim
BIS,Skills Funding Agency,08/01/2014,Subsistence,Chief Executive's Office - Internal Audit,Agency Staff Member,SCLAIM_34954,35,Staff Expenses Claim
BIS,Skills Funding Agency,08/01/2014,Subsistence,Finance Division - Provider Finance,Agency Staff Member,SCLAIM_34966,30.00,Staff Expenses Claim
BIS,Skills Funding Agency,08/01/2014,Subsistence,Finance Division - Provider Financial Assurance Audit,Agency Staff Member,SCLAIM_34925,75.00,Staff Expenses Claim
BIS,Skills Funding Agency,08/01/2014,Subsistence,Finance Division - Provider Financial Assurance Audit,Agency Staff Member,SCLAIM_34969,50.00,Staff Expenses Claim
BIS,Skills Funding Agency,08/01/2014,Subsistence,Finance Division - Provider Financial Assurance Audit,Agency Staff Member,SCLAIM_34982,35,Staff Expenses Claim
BIS,Skills Funding Agency,08/01/2014,Subsistence,Finance Division - Provider Financial Assurance Audit,Agency Staff Member,SCLAIM_34989,10.00,Staff Expenses Claim
BIS,Skills Funding Agency,08/01/2014,Subsistence,Finance Division - Provider Financial Assurance Audit,Agency Staff Member,SCLAIM_34991,30.00,Staff Expenses Claim
BIS,Skills Funding Agency,08/01/2014,Subsistence,Funding & Programmes - Funding Systems and Information,Agency Staff Member,SCLAIM_34940,75,Staff Expenses Claim
BIS,Skills Funding Agency,08/01/2014,Subsistence,HR - Human Resources,Agency Staff Member,SCLAIM_34959,62.00,Staff Expenses Claim
BIS,Skills Funding Agency,08/01/2014,Subsistence,Marketing & Communications,Agency Staff Member,SCLAIM_34930,50,Staff Expenses Claim
BIS,Skills Funding Agency,08/01/2014,Subsistence,Marketing & Communications,Agency Staff Member,SCLAIM_34943,20.00,Staff Expenses Claim
BIS,Skills Funding Agency,08/01/2014,Subsistence,Northern Division,Agency Staff Member,SCLAIM_34961,14.25,Staff Expenses Claim
BIS,Skills Funding Agency,08/01/2014,Subsistence,Northern Division,Agency Staff Member,SCLAIM_34963,10.00,Staff Expenses Claim
BIS,Skills Funding Agency,08/01/2014,Subsistence,Northern Division,Agency Staff Member,SCLAIM_34965,25.00,Staff Expenses Claim
BIS,Skills Funding Agency,08/01/2014,Subsistence,Provider Management - Strategic Intervention,Agency Staff Member,SCLAIM_34993,10.00,Staff Expenses Claim
BIS,Skills Funding Agency,08/01/2014,Subsistence,Relationship Team - North,Agency Staff Member,SCLAIM_34938,75.00,Staff Expenses Claim
BIS,Skills Funding Agency,08/01/2014,Subsistence,Relationship Team - North,Agency Staff Member,SCLAIM_34971,300.00,Staff Expenses Claim
BIS,Skills Funding Agency,08/01/2014,Subsistence,Relationship Team - North,Agency Staff Member,SCLAIM_34972,300.00,Staff Expenses Claim
BIS,Skills Funding Agency,08/01/2014,Subsistence,Southern Division,Agency Staff Member,SCLAIM_34950,25.00,Staff Expenses Claim
BIS,Skills Funding Agency,08/01/2014,Taxis,Central Delivery Service - Gateshead,Agency Staff Member,SCLAIM_34946,27.00,Staff Expenses Claim
BIS,Skills Funding Agency,08/01/2014,Taxis,Central Division,Agency Staff Member,SCLAIM_34957,6.60,Staff Expenses Claim
BIS,Skills Funding Agency,08/01/2014,Taxis,Finance Division - Contract Control,Agency Staff Member,SCLAIM_34926,14.00,Staff Expenses Claim
BIS,Skills Funding Agency,08/01/2014,Taxis,Finance Division - Provider Financial Assurance Audit,Agency Staff Member,SCLAIM_34991,18,Staff Expenses Claim
BIS,Skills Funding Agency,08/01/2014,Taxis,Finance Division - Provider Financial Assurance Audit,Agency Staff Member,SCLAIM_34995,7.00,Staff Expenses Claim
BIS,Skills Funding Agency,08/01/2014,Taxis,Marketing & Communications,Agency Staff Member,SCLAIM_34930,88.00,Staff Expenses Claim
BIS,Skills Funding Agency,08/01/2014,Taxis,Marketing & Communications,Agency Staff Member,SCLAIM_34937,64.40,Staff Expenses Claim
BIS,Skills Funding Agency,08/01/2014,Taxis,Relationship Team - North,Agency Staff Member,SCLAIM_34921,47.00,Staff Expenses Claim
BIS,Skills Funding Agency,08/01/2014,Taxis,Southern Division,Agency Staff Member,SCLAIM_34950,40.00,Staff Expenses Claim
BIS,Skills Funding Agency,09/01/2014,19+ Apprenticeships Training Organisations - Non Centralised Contract Management,Main Funding,ROBERT WISEMAN DAIRIES PLC,TREASURYADJ_323,-262.07,Programme System File
BIS,Skills Funding Agency,09/01/2014,19+ Apprenticeships Training Organisations - Non Centralised Contract Management,Main Funding,ROBERT WISEMAN DAIRIES PLC,TREASURYADJ_323,8115.40,Programme System File
BIS,Skills Funding Agency,09/01/2014,25+ Apprenticeships Training Organisations - Non Centralised Contract Management,Main Funding,ROBERT WISEMAN DAIRIES PLC,TREASURYADJ_323,-5682.73,Programme System File
BIS,Skills Funding Agency,09/01/2014,Department For Education Non Participation Action Plan,Communications & Marketing,TRIBE,SPINVB_20165,13680.00,Purchase Invoice
BIS,Skills Funding Agency,09/01/2014,Department For Education Non Participation Action Plan,Main Funding,ECHO MANAGED SERVICES LIMITED,SPINVB_20168,22135.85,Purchase Invoice
BIS,Skills Funding Agency,09/01/2014,Department For Education Non Participation Action Plan,Main Funding,ECHO MANAGED SERVICES LIMITED,SPINVB_20170,24753.60,Purchase Invoice
BIS,Skills Funding Agency,09/01/2014,Design,Projects - Programme Delivery Projects,CAPGEMINI UK PLC,SPINVB_19954,6690.6,Purchase Invoice
BIS,Skills Funding Agency,09/01/2014,Electricity,HR - Facilities Central,EDF ENERGY PLC,SPINVNO_3245,6904.52,Purchase Invoice
BIS,Skills Funding Agency,09/01/2014,Electricity,HR - Facilities Central,EDF ENERGY PLC,SPINVNO_3246,10550.56,Purchase Invoice
BIS,Skills Funding Agency,09/01/2014,Electricity,HR - Facilities Central,LOGICA UK LTD,SPINVB_20048,105.73,Purchase Invoice
BIS,Skills Funding Agency,09/01/2014,Electricity,HR - Facilities Divisional,EON ENERGY LTD,SPINVNO_3247,36.52,Purchase Invoice
BIS,Skills Funding Agency,09/01/2014,Facilities Management,HR - Facilities Divisional,"DEPARTMENT FOR BUSINESS, INNOVATION & SKILLS",SPCRNB_590,-2338.83,Purchase Credit Note
BIS,Skills Funding Agency,09/01/2014,Facilities Management,HR - Facilities Divisional,"DEPARTMENT FOR BUSINESS, INNOVATION & SKILLS",SPINVB_20078,2338.83,Purchase Invoice
BIS,Skills Funding Agency,09/01/2014,Framework for Excellence,Professional Services,NUS,SPINVB_20107,12655.99,Purchase Invoice
BIS,Skills Funding Agency,09/01/2014,Framework for Excellence,Professional Services,NUS,SPINVB_20108,12655.99,Purchase Invoice
BIS,Skills Funding Agency,09/01/2014,Information Technology Systems Development,Programme Delivery - Programme Management Office/Programme Support Office,PROGRAM FRAMEWORK LIMITED,SPINVB_19905,24652.01,Purchase Invoice
BIS,Skills Funding Agency,09/01/2014,Information Technology Systems Development,Projects - Programme Delivery Projects,CAPGEMINI UK PLC,SPINVB_19574,153849.22,Purchase Invoice
BIS,Skills Funding Agency,09/01/2014,Information Technology Systems Development,Projects - Programme Delivery Projects,CAPGEMINI UK PLC,SPINVB_19929,287251.2,Purchase Invoice
BIS,Skills Funding Agency,09/01/2014,Information Technology Systems Development,Projects - Programme Delivery Projects,CAPGEMINI UK PLC,SPINVB_19935,69125.16,Purchase Invoice
BIS,Skills Funding Agency,09/01/2014,Information Technology Systems Development,Projects - Programme Delivery Projects,CAPGEMINI UK PLC,SPINVB_19936,91642.85,Purchase Invoice
BIS,Skills Funding Agency,09/01/2014,Information Technology Systems Development,Projects - Programme Delivery Projects,CAPGEMINI UK PLC,SPINVB_19937,183261.08,Purchase Invoice
BIS,Skills Funding Agency,09/01/2014,Information Technology Systems Development,Projects - Programme Delivery Projects,CAPGEMINI UK PLC,SPINVB_19939,78818.06,Purchase Invoice
BIS,Skills Funding Agency,09/01/2014,Information Technology Systems Development,Projects - Programme Delivery Projects,CAPGEMINI UK PLC,SPINVB_19949,8820.00,Purchase Invoice
BIS,Skills Funding Agency,09/01/2014,Information Technology Systems Development,Projects - Programme Delivery Projects,CAPGEMINI UK PLC,SPINVB_19968,1431.12,Purchase Invoice
BIS,Skills Funding Agency,09/01/2014,Information Technology Systems Development,Projects - Programme Delivery Projects,CAPGEMINI UK PLC,SPINVB_19969,36804,Purchase Invoice
BIS,Skills Funding Agency,09/01/2014,Information Technology Systems Development,Projects - Programme Delivery Projects,CAPGEMINI UK PLC,SPINVB_19976,12870.00,Purchase Invoice
BIS,Skills Funding Agency,09/01/2014,Information Technology Systems Development,Projects - Programme Delivery Projects,CAPGEMINI UK PLC,SPINVB_19977,6864.00,Purchase Invoice
BIS,Skills Funding Agency,09/01/2014,Information Technology Systems Development,Projects - Programme Delivery Projects,CAPGEMINI UK PLC,SPINVB_19978,11605.20,Purchase Invoice
BIS,Skills Funding Agency,09/01/2014,Managed IT Service,Operational Services - Service Management - Life Cycle,LOGICA UK LTD,SPINVB_20069,648.17,Purchase Invoice
BIS,Skills Funding Agency,09/01/2014,Managed IT Service,Programme Delivery - Programme Management Office/Programme Support Office,ATKINS LIMITED,SPINVB_20036,6420.00,Purchase Invoice
BIS,Skills Funding Agency,09/01/2014,Managed IT Service,Programme Delivery - Project Management/Testing,FORDWAY SOLUTIONS LIMITED,SPINVB_19983,49824.00,Purchase Invoice
BIS,Skills Funding Agency,09/01/2014,"National Apprenticeship Service - Business, Innovation & Skills - Non-Participation",Communications & Marketing,CABLE & WIRELESS COMMUNICATION,SPCRNB_573,-4868.08,Purchase Credit Note
BIS,Skills Funding Agency,09/01/2014,"National Apprenticeship Service - Business, Innovation & Skills - Non-Participation",Communications & Marketing,CABLE & WIRELESS COMMUNICATION,SPCRNB_574,-5186.39,Purchase Credit Note
BIS,Skills Funding Agency,09/01/2014,"National Apprenticeship Service - Business, Innovation & Skills - Non-Participation",Communications & Marketing,CABLE & WIRELESS COMMUNICATION,SPCRNB_589,-2172.82,Purchase Credit Note
BIS,Skills Funding Agency,09/01/2014,"National Apprenticeship Service - Business, Innovation & Skills - Non-Participation",Communications & Marketing,CABLE & WIRELESS COMMUNICATION,SPINVB_19492,4483.65,Purchase Invoice
BIS,Skills Funding Agency,09/01/2014,"National Apprenticeship Service - Business, Innovation & Skills - Non-Participation",Communications & Marketing,CABLE & WIRELESS COMMUNICATION,SPINVB_19493,5444.97,Purchase Invoice
BIS,Skills Funding Agency,09/01/2014,"National Apprenticeship Service - Business, Innovation & Skills - Non-Participation",Communications & Marketing,CABLE & WIRELESS COMMUNICATION,SPINVB_20127,644.42,Purchase Invoice
BIS,Skills Funding Agency,09/01/2014,"National Apprenticeship Service - Business, Innovation & Skills - Non-Participation",Communications & Marketing,CABLE & WIRELESS COMMUNICATION,SPINVB_20128,507.24,Purchase Invoice
BIS,Skills Funding Agency,09/01/2014,"National Apprenticeship Service - Business, Innovation & Skills - Non-Participation",Communications & Marketing,CABLE & WIRELESS COMMUNICATION,SPINVB_20129,2680.20,Purchase Invoice
BIS,Skills Funding Agency,09/01/2014,"National Apprenticeship Service - Business, Innovation & Skills - Non-Participation",Communications & Marketing,CABLE & WIRELESS COMMUNICATION,SPINVB_20130,256.40,Purchase Invoice
BIS,Skills Funding Agency,09/01/2014,"National Apprenticeship Service - Business, Innovation & Skills - Non-Participation",Communications & Marketing,MUNRO & FORSTER COMMUNICATIONS LIMITED,SPINVB_20091,12380.4,Purchase Invoice
BIS,Skills Funding Agency,09/01/2014,"National Apprenticeship Service - Business, Innovation & Skills - Non-Participation",Communications & Marketing,SALFORD FOUNDATION LTD,SPINVB_20113,780.00,Purchase Invoice
BIS,Skills Funding Agency,09/01/2014,"National Apprenticeship Service - Business, Innovation & Skills - Non-Participation",Main Funding,ECHO MANAGED SERVICES LIMITED,SPINVB_20169,53205.54,Purchase Invoice
BIS,Skills Funding Agency,09/01/2014,"National Apprenticeship Service - Business, Innovation & Skills - Non-Participation",Main Funding,GLOUCESTERSHIRE & WILTSHIRE PARTNERSHIP,SPINVB_20114,3000.00,Purchase Invoice
BIS,Skills Funding Agency,09/01/2014,"National Apprenticeship Service - Business, Innovation & Skills - Non-Participation",Main Funding,GLOUCESTERSHIRE & WILTSHIRE PARTNERSHIP,SPINVB_20115,3000.00,Purchase Invoice
BIS,Skills Funding Agency,09/01/2014,"National Apprenticeship Service - Business, Innovation & Skills - Non-Participation",Main Funding,SDN ENTERPRISES LIMITED,SPINVB_20131,10000,Purchase Invoice
BIS,Skills Funding Agency,09/01/2014,National Apprenticeship Service Department for Children Skills Families Non-Participation,Main Funding,ECHO MANAGED SERVICES LIMITED,SPINVB_20171,3628.80,Purchase Invoice
BIS,Skills Funding Agency,09/01/2014,National Careers Service Development,Communications & Marketing,PROSPECTS SERVICES LTD,SPINVB_19350,36000.00,Purchase Invoice
BIS,Skills Funding Agency,09/01/2014,Next Step Helpline,Main Funding,BROADCASTING SUPPORT SERVICES,SPINVB_20065,12479.78,Purchase Invoice
BIS,Skills Funding Agency,09/01/2014,Next Step Helpline,Main Funding,ICONNECTEL TELCOM LTD,SPINVB_20119,8746.34,Purchase Invoice
BIS,Skills Funding Agency,09/01/2014,Next Step Helpline,Main Funding,LOGICA UK LTD,SPINVB_20034,13019.60,Purchase Invoice
BIS,Skills Funding Agency,09/01/2014,Off The Shelf Software,Projects - Programme Delivery Projects,PANLOGIC LTD,SPINVB_19916,8568,Purchase Invoice
BIS,Skills Funding Agency,09/01/2014,Other Workplace Training Training Organisations - Non Centralised Contract Management,Main Funding,ROBERT WISEMAN DAIRIES PLC,TREASURYADJ_323,-505.02,Programme System File
BIS,Skills Funding Agency,09/01/2014,Postage,HR - Facilities Central,ROYAL MAIL HOLDINGS PLC,SPCRNNO_409,-53.32,Purchase Credit Note
BIS,Skills Funding Agency,09/01/2014,Postage,HR - Facilities Central,ROYAL MAIL HOLDINGS PLC,SPINVNO_3248,1408.98,Purchase Invoice
BIS,Skills Funding Agency,09/01/2014,Professional Services - Single Assignments,Chief Information Officer Services - Enterprise Architecture,STERIA RECRUITMENT LIMITED,SPINVB_20098,15750,Purchase Invoice
BIS,Skills Funding Agency,09/01/2014,Professional Services - Single Assignments,Data Service - Collection & Funding,CAPGEMINI UK PLC,SPINVB_19950,16380,Purchase Invoice
BIS,Skills Funding Agency,09/01/2014,Professional Services - Single Assignments,Projects - Programme Delivery Projects,CAPGEMINI UK PLC,SPINVB_19537,19734.00,Purchase Invoice
BIS,Skills Funding Agency,09/01/2014,Professional Services - Single Assignments,Projects - Programme Delivery Projects,CAPGEMINI UK PLC,SPINVB_19574,26985.34,Purchase Invoice
BIS,Skills Funding Agency,09/01/2014,Professional Services - Single Assignments,Projects - Programme Delivery Projects,CAPGEMINI UK PLC,SPINVB_19944,166032.65,Purchase Invoice
BIS,Skills Funding Agency,09/01/2014,Professional Services - Single Assignments,Projects - Programme Delivery Projects,CAPGEMINI UK PLC,SPINVB_19945,24778.68,Purchase Invoice
BIS,Skills Funding Agency,09/01/2014,Professional Services - Single Assignments,Projects - Programme Delivery Projects,CAPGEMINI UK PLC,SPINVB_19948,14823.20,Purchase Invoice
BIS,Skills Funding Agency,09/01/2014,Professional Services - Single Assignments,Projects - Programme Delivery Projects,CAPGEMINI UK PLC,SPINVB_19951,31222.80,Purchase Invoice
BIS,Skills Funding Agency,09/01/2014,Professional Services - Single Assignments,Projects - Programme Delivery Projects,CAPGEMINI UK PLC,SPINVB_19953,10920.00,Purchase Invoice
BIS,Skills Funding Agency,09/01/2014,Professional Services - Single Assignments,Projects - Programme Delivery Projects,CAPGEMINI UK PLC,SPINVB_19956,20064,Purchase Invoice
BIS,Skills Funding Agency,09/01/2014,Professional Services - Single Assignments,Projects - Programme Delivery Projects,CAPGEMINI UK PLC,SPINVB_19964,7222.60,Purchase Invoice
BIS,Skills Funding Agency,09/01/2014,Professional Services - Single Assignments,Projects - Programme Delivery Projects,METHODS CONSULTING LTD,SPINVB_20063,4620.00,Purchase Invoice
BIS,Skills Funding Agency,09/01/2014,Professional Services - Single Assignments,Projects - Programme Delivery Projects,PANLOGIC LTD,SPINVB_19917,9120.00,Purchase Invoice
BIS,Skills Funding Agency,09/01/2014,Professional Services - Single Assignments,Projects - Programme Delivery Projects,VODAFONE CORPORATE LTD,SPINVB_18397,13200,Purchase Invoice
BIS,Skills Funding Agency,09/01/2014,Professional Services,Projects - Programme Delivery Projects,ATKINS LIMITED,SPINVB_19993,2323.86,Purchase Invoice
BIS,Skills Funding Agency,09/01/2014,Professional Services,Projects - Programme Delivery Projects,CAPGEMINI UK PLC,SPINVB_19031,15799.20,Purchase Invoice
BIS,Skills Funding Agency,09/01/2014,Professional Services,Projects - Programme Delivery Projects,CAPGEMINI UK PLC,SPINVB_19942,164548.64,Purchase Invoice
BIS,Skills Funding Agency,09/01/2014,Professional Services,Projects - Programme Delivery Projects,CAPGEMINI UK PLC,SPINVB_19967,13437.60,Purchase Invoice
BIS,Skills Funding Agency,09/01/2014,Professional Services,Projects - Programme Delivery Projects,CAPGEMINI UK PLC,SPINVB_19973,26664,Purchase Invoice
BIS,Skills Funding Agency,09/01/2014,Professional Services,Projects - Programme Delivery Projects,CAPGEMINI UK PLC,SPINVB_19974,1861.2,Purchase Invoice
BIS,Skills Funding Agency,09/01/2014,Professional Subscriptions,Legal & Information Compliance & Security,EMPLOYMENT LAWYERS ASSOCIATION,SPINVB_20137,80.00,Purchase Invoice
BIS,Skills Funding Agency,09/01/2014,Professional Subscriptions,Legal & Information Compliance & Security,EMPLOYMENT LAWYERS ASSOCIATION,SPINVB_20138,80,Purchase Invoice
BIS,Skills Funding Agency,09/01/2014,Rates,HR - Facilities Divisional,"DEPARTMENT FOR BUSINESS, INNOVATION & SKILLS",SPINVNO_3249,60294.80,Purchase Invoice
BIS,Skills Funding Agency,09/01/2014,Rent,HR - Facilities Divisional,"DEPARTMENT FOR BUSINESS, INNOVATION & SKILLS",SPINVNO_3249,27510,Purchase Invoice
BIS,Skills Funding Agency,09/01/2014,Service Charges,HR - Facilities Divisional,"DEPARTMENT FOR BUSINESS, INNOVATION & SKILLS",SPINVNO_3249,37173.00,Purchase Invoice
BIS,Skills Funding Agency,09/01/2014,Software Upgrades,Projects - Programme Delivery Projects,LOGICA UK LTD,SPINVB_20046,50400.00,Purchase Invoice
BIS,Skills Funding Agency,09/01/2014,Software Upgrades,Projects - Programme Delivery Projects,LOGICA UK LTD,SPINVB_20047,23520.00,Purchase Invoice
BIS,Skills Funding Agency,09/01/2014,Software Upgrades,Projects - Programme Delivery Projects,LOGICA UK LTD,SPINVB_20051,7596.00,Purchase Invoice
BIS,Skills Funding Agency,09/01/2014,Support Services,Projects - Programme Delivery Projects,CAPGEMINI UK PLC,SPINVB_19940,66893.56,Purchase Invoice
BIS,Skills Funding Agency,09/01/2014,Temporary Staff,Chief Information Officer Services - Digital Strategy & Design,SMART SOURCING PLC,SPINVB_20038,8325.60,Purchase Invoice
BIS,Skills Funding Agency,09/01/2014,Temporary Staff,Data Service - Collection & Funding,HAYS SPECIALIST RECRUITMENT LTD,IPINVELECT3_1534,2805.00,Purchase Invoice
BIS,Skills Funding Agency,09/01/2014,Temporary Staff,Programme Delivery - Business Change,SMART SOURCING PLC,SPINVB_20079,8464.5,Purchase Invoice
BIS,Skills Funding Agency,09/01/2014,Temporary Staff,Programme Delivery - Centre of Excellence,LA INTERNATIONAL,SPINVB_19995,10918.91,Purchase Invoice
BIS,Skills Funding Agency,09/01/2014,Temporary Staff,Programme Delivery - Centre of Excellence,LA INTERNATIONAL,SPINVB_20071,7126.66,Purchase Invoice
BIS,Skills Funding Agency,09/01/2014,Temporary Staff,Programme Delivery - Programme Management Office/Programme Support Office,LA INTERNATIONAL,SPINVB_20072,10773.90,Purchase Invoice
BIS,Skills Funding Agency,09/01/2014,Temporary Staff,Programme Delivery - Project Management/Testing,ADVANTAGE TECHNICAL RESOURCING,SPINVB_19830,3936.00,Purchase Invoice
BIS,Skills Funding Agency,09/01/2014,Temporary Staff,Programme Delivery - Project Management/Testing,ADVANTAGE TECHNICAL RESOURCING,SPINVB_19831,2361.60,Purchase Invoice
BIS,Skills Funding Agency,09/01/2014,Temporary Staff,Programme Delivery - Project Management/Testing,LA INTERNATIONAL,SPINVB_20055,8298.00,Purchase Invoice
BIS,Skills Funding Agency,09/01/2014,Temporary Staff,Programme Delivery - Project Management/Testing,LA INTERNATIONAL,SPINVB_20070,10602.24,Purchase Invoice
BIS,Skills Funding Agency,09/01/2014,Temporary Staff,Programme Delivery - Project Management/Testing,LA INTERNATIONAL,SPINVB_20073,13258.57,Purchase Invoice
BIS,Skills Funding Agency,09/01/2014,UK Skills - Competitions (National),Main Funding,INSTITUTE OF MOTOR INDUSTRY,SPINVB_20126,17340,Purchase Invoice
BIS,Skills Funding Agency,09/01/2014,UK Skills - Competitions (National),Main Funding,NIGEL HARRISON,SPINVB_20123,576,Purchase Invoice
BIS,Skills Funding Agency,10/01/2014,Professional Services,Legal & Information Compliance & Security,FIELD FISHER WATERHOUSE LLP,SPINVB_20174,144.00,Purchase Invoice
BIS,Skills Funding Agency,13/01/2014,Subsistence,Central Delivery Service - London,Agency Staff Member,SCLAIM_35080,10,Staff Expenses Claim
BIS,Skills Funding Agency,14/01/2014,16-18 Apprenticeship Grant for Employers,Main Funding,ACADEMY EDUCATION LTD,NUPS13_23658,1500.00,Programme Template
BIS,Skills Funding Agency,14/01/2014,16-18 Apprenticeship Grant for Employers,Main Funding,APPRENTICE SCHOOL CHARITABLE TRUST,NUPS13_23674,-1500.00,Programme Template
BIS,Skills Funding Agency,14/01/2014,16-18 Apprenticeship Grant for Employers,Main Funding,BALTIC TRAINING SERVICES LTD,NUPS13_23695,24000.00,Programme Template
BIS,Skills Funding Agency,14/01/2014,16-18 Apprenticeship Grant for Employers,Main Funding,BRINSWORTH TRAINING LTD,NUPS13_23717,1500.00,Programme Template
BIS,Skills Funding Agency,14/01/2014,16-18 Apprenticeship Grant for Employers,Main Funding,CHILDRENS LINKS,NUPS13_23740,1500.00,Programme Template
BIS,Skills Funding Agency,14/01/2014,16-18 Apprenticeship Grant for Employers,Main Funding,CITB CONSTRUCTION SKILLS,NUPS13_23741,54000,Programme Template
BIS,Skills Funding Agency,14/01/2014,16-18 Apprenticeship Grant for Employers,Main Funding,COMMUNITY SKILLS DEVELOPMENT AGENCY,NUPS13_23761,1500.00,Programme Template
BIS,Skills Funding Agency,14/01/2014,16-18 Apprenticeship Grant for Employers,Main Funding,DONCASTER ROTHERHAM & DISTRICT MOTOR TRADES GROUP TRAINING ASSOCIATION LTD,NUPS13_23776,4500,Programme Template
BIS,Skills Funding Agency,14/01/2014,16-18 Apprenticeship Grant for Employers,Main Funding,EAGIT LTD,NUPS13_23778,6000,Programme Template
BIS,Skills Funding Agency,14/01/2014,16-18 Apprenticeship Grant for Employers,Main Funding,ENTERPRISING OPPORTUNITIES C.I.C.,NUPS13_23787,1500,Programme Template
BIS,Skills Funding Agency,14/01/2014,16-18 Apprenticeship Grant for Employers,Main Funding,F1 COMPUTER SERVICES & TRAINING LTD,NUPS13_23654,1500,Programme Template
BIS,Skills Funding Agency,14/01/2014,16-18 Apprenticeship Grant for Employers,Main Funding,FOCUS TRAINING AND DEVELOPMENT,NUPS13_23800,4500,Programme Template
BIS,Skills Funding Agency,14/01/2014,16-18 Apprenticeship Grant for Employers,Main Funding,HAIR & BEAUTY INDUSTRY TRAINING LTD,NUPS13_23821,1500,Programme Template
BIS,Skills Funding Agency,14/01/2014,16-18 Apprenticeship Grant for Employers,Main Funding,HULL BUSINESS TRAINING CENTRE LTD,NUPS13_23844,15000,Programme Template
BIS,Skills Funding Agency,14/01/2014,16-18 Apprenticeship Grant for Employers,Main Funding,INDEPENDENT TRAINING SERVICES LTD,NUPS13_23699,4500.00,Programme Template
BIS,Skills Funding Agency,14/01/2014,16-18 Apprenticeship Grant for Employers,Main Funding,INTER TRAINING SERVICES LTD,NUPS13_23856,10500,Programme Template
BIS,Skills Funding Agency,14/01/2014,16-18 Apprenticeship Grant for Employers,Main Funding,ITS TRAINING LIMITED,NUPS13_23870,1500.00,Programme Template
BIS,Skills Funding Agency,14/01/2014,16-18 Apprenticeship Grant for Employers,Main Funding,KATS LTD,NUPS13_23885,3000.00,Programme Template
BIS,Skills Funding Agency,14/01/2014,16-18 Apprenticeship Grant for Employers,Main Funding,KEITH LAWRENCE,NUPS13_23886,4500.00,Programme Template
BIS,Skills Funding Agency,14/01/2014,16-18 Apprenticeship Grant for Employers,Main Funding,KINGSTON UPON HULL CITY COUNCIL,NUPS13_24521,34500.00,Programme Template
BIS,Skills Funding Agency,14/01/2014,16-18 Apprenticeship Grant for Employers,Main Funding,LANCASTER & MORECAMBE COLLEGE,NUPS13_24311,-1500,Programme Template
BIS,Skills Funding Agency,14/01/2014,16-18 Apprenticeship Grant for Employers,Main Funding,MANAGEMENT & PERSONNEL SERVICES LTD,NUPS13_23914,1500.00,Programme Template
BIS,Skills Funding Agency,14/01/2014,16-18 Apprenticeship Grant for Employers,Main Funding,MARR CORP LTD,NUPS13_23919,12000.00,Programme Template
BIS,Skills Funding Agency,14/01/2014,16-18 Apprenticeship Grant for Employers,Main Funding,MPOWER TRAINING SOLUTIONS LTD,NUPS13_23935,3000,Programme Template
BIS,Skills Funding Agency,14/01/2014,16-18 Apprenticeship Grant for Employers,Main Funding,NORTH LANCS TRAINING GROUP LTD,NUPS13_23954,39000,Programme Template
BIS,Skills Funding Agency,14/01/2014,16-18 Apprenticeship Grant for Employers,Main Funding,NORTH WEST COMMUNITY SERVICES LTD,NUPS13_23956,1500,Programme Template
BIS,Skills Funding Agency,14/01/2014,16-18 Apprenticeship Grant for Employers,Main Funding,NORTH WEST TRAINING COUNCIL,NUPS13_23958,9000,Programme Template
BIS,Skills Funding Agency,14/01/2014,16-18 Apprenticeship Grant for Employers,Main Funding,NORTHAMPTONSHIRE INDUSTRIAL TRAINING,NUPS13_23949,6000,Programme Template
BIS,Skills Funding Agency,14/01/2014,16-18 Apprenticeship Grant for Employers,Main Funding,PERA TRAINING LIMITED,NUPS13_23978,10500.00,Programme Template
BIS,Skills Funding Agency,14/01/2014,16-18 Apprenticeship Grant for Employers,Main Funding,PEUGEOT MOTOR COMPANY PLC,NUPS13_23743,1500.00,Programme Template
BIS,Skills Funding Agency,14/01/2014,16-18 Apprenticeship Grant for Employers,Main Funding,RATHBONE TRAINING,NUPS13_24004,18000.00,Programme Template
BIS,Skills Funding Agency,14/01/2014,16-18 Apprenticeship Grant for Employers,Main Funding,RAYTHEON SYSTEMS LTD,NUPS13_24006,1500,Programme Template
BIS,Skills Funding Agency,14/01/2014,16-18 Apprenticeship Grant for Employers,Main Funding,S & B AUTOMOTIVE ACADEMY LTD,NUPS13_24027,25500,Programme Template
BIS,Skills Funding Agency,14/01/2014,16-18 Apprenticeship Grant for Employers,Main Funding,START TRAINING,NUPS13_24056,1500,Programme Template
BIS,Skills Funding Agency,14/01/2014,16-18 Apprenticeship Grant for Employers,Main Funding,STOCKTON ON TEES BOROUGH COUNCIL,NUPS13_24544,1500.00,Programme Template
BIS,Skills Funding Agency,14/01/2014,16-18 Apprenticeship Grant for Employers,Main Funding,STUBBING COURT TRAINING LTD,NUPS13_24062,3000.00,Programme Template
BIS,Skills Funding Agency,14/01/2014,16-18 Apprenticeship Grant for Employers,Main Funding,VISAGE SCHOOL OF BEAUTY THERAPY LTD,NUPS13_24116,4500,Programme Template
BIS,Skills Funding Agency,14/01/2014,16-18 Apprenticeship Grant for Employers,Main Funding,VOCATIONAL COLLEGE LTD,NUPS13_24074,1500.00,Programme Template
BIS,Skills Funding Agency,14/01/2014,16-18 Apprenticeship Grant for Employers,Main Funding,WEIR TRAINING LTD,NUPS13_24124,6000,Programme Template
BIS,Skills Funding Agency,14/01/2014,16-18 Apprenticeships - Centralised Contract Management,Main Funding,ACADEMY EDUCATION LTD,16APR_47729,492.81,Programme System File
BIS,Skills Funding Agency,14/01/2014,16-18 Apprenticeships - Centralised Contract Management,Main Funding,APPRENTICE SCHOOL CHARITABLE TRUST,16APR_47691,1654.03,Programme System File
BIS,Skills Funding Agency,14/01/2014,16-18 Apprenticeships - Centralised Contract Management,Main Funding,ASPIRATION TRAINING LTD,16APR_47434,-74312.66,Programme System File
BIS,Skills Funding Agency,14/01/2014,16-18 Apprenticeships - Centralised Contract Management,Main Funding,AWE PLC,16APR_47091,8327.16,Programme System File
BIS,Skills Funding Agency,14/01/2014,16-18 Apprenticeships - Centralised Contract Management,Main Funding,BAE SYSTEMS OPERATIONS LTD,16APR_47171,-5768.10,Programme System File
BIS,Skills Funding Agency,14/01/2014,16-18 Apprenticeships - Centralised Contract Management,Main Funding,BALTIC TRAINING SERVICES LTD,16APR_47382,-14628.02,Programme System File
BIS,Skills Funding Agency,14/01/2014,16-18 Apprenticeships - Centralised Contract Management,Main Funding,BARCHESTER HEALTHCARE LTD,16APR_46717,13790.59,Programme System File
BIS,Skills Funding Agency,14/01/2014,16-18 Apprenticeships - Centralised Contract Management,Main Funding,BHS LTD,16APR_46718,-9408.06,Programme System File
BIS,Skills Funding Agency,14/01/2014,16-18 Apprenticeships - Centralised Contract Management,Main Funding,BRITISH GAS PLC,16APR_47580,2220.68,Programme System File
BIS,Skills Funding Agency,14/01/2014,16-18 Apprenticeships - Centralised Contract Management,Main Funding,BRITISH TELECOM PLC,16APC_8029,-24804.56,Programme System File
BIS,Skills Funding Agency,14/01/2014,16-18 Apprenticeships - Centralised Contract Management,Main Funding,BRITISH TELECOM PLC,16APR_46749,43344.87,Programme System File
BIS,Skills Funding Agency,14/01/2014,16-18 Apprenticeships - Centralised Contract Management,Main Funding,CARILLION CONSTRUCTION LTD,16APR_47731,26545.06,Programme System File
BIS,Skills Funding Agency,14/01/2014,16-18 Apprenticeships - Centralised Contract Management,Main Funding,CHARNWOOD TRAINING CONSULTANTS LTD,16APR_47289,-11872.54,Programme System File
BIS,Skills Funding Agency,14/01/2014,16-18 Apprenticeships - Centralised Contract Management,Main Funding,CHILDRENS LINKS,16APR_47765,-14.62,Programme System File
BIS,Skills Funding Agency,14/01/2014,16-18 Apprenticeships - Centralised Contract Management,Main Funding,CITB CONSTRUCTION SKILLS,16APC_8326,-216677.43,Programme System File
BIS,Skills Funding Agency,14/01/2014,16-18 Apprenticeships - Centralised Contract Management,Main Funding,CITB CONSTRUCTION SKILLS,16APR_47651,1693882.60,Programme System File
BIS,Skills Funding Agency,14/01/2014,16-18 Apprenticeships - Centralised Contract Management,Main Funding,CITY TECHNOLOGY COLLEGE KINGSHURST,16APR_47451,-5337.97,Programme System File
BIS,Skills Funding Agency,14/01/2014,16-18 Apprenticeships - Centralised Contract Management,Main Funding,COMMUNITY SKILLS DEVELOPMENT AGENCY,16APR_47297,1850.52,Programme System File
BIS,Skills Funding Agency,14/01/2014,16-18 Apprenticeships - Centralised Contract Management,Main Funding,COMPASS GROUP UK & IRELAND LTD,16APR_47105,-1259.31,Programme System File
BIS,Skills Funding Agency,14/01/2014,16-18 Apprenticeships - Centralised Contract Management,Main Funding,CX LTD,16APR_47122,-126.88,Programme System File
BIS,Skills Funding Agency,14/01/2014,16-18 Apprenticeships - Centralised Contract Management,Main Funding,DHL INTERNATIONAL UK LTD,16APR_46720,-568.19,Programme System File
BIS,Skills Funding Agency,14/01/2014,16-18 Apprenticeships - Centralised Contract Management,Main Funding,DONCASTER ROTHERHAM & DISTRICT MOTOR TRADES GROUP TRAINING ASSOCIATION LTD,16APR_47510,-1764.36,Programme System File
BIS,Skills Funding Agency,14/01/2014,16-18 Apprenticeships - Centralised Contract Management,Main Funding,EAGIT LTD,16APR_47622,-59.23,Programme System File
BIS,Skills Funding Agency,14/01/2014,16-18 Apprenticeships - Centralised Contract Management,Main Funding,ELATT,16APR_47748,-584.64,Programme System File
BIS,Skills Funding Agency,14/01/2014,16-18 Apprenticeships - Centralised Contract Management,Main Funding,ENGLAND & WALES CRICKET BOARD LTD,16APC_8105,-5079.19,Programme System File
BIS,Skills Funding Agency,14/01/2014,16-18 Apprenticeships - Centralised Contract Management,Main Funding,ENGLAND & WALES CRICKET BOARD LTD,16APR_47080,49599.01,Programme System File
BIS,Skills Funding Agency,14/01/2014,16-18 Apprenticeships - Centralised Contract Management,Main Funding,ENTERPRISING OPPORTUNITIES C.I.C.,16APR_46886,-7361.4,Programme System File
BIS,Skills Funding Agency,14/01/2014,16-18 Apprenticeships - Centralised Contract Management,Main Funding,F1 COMPUTER SERVICES & TRAINING LTD,16APR_47702,-228.15,Programme System File
BIS,Skills Funding Agency,14/01/2014,16-18 Apprenticeships - Centralised Contract Management,Main Funding,FIRST CITY TRAINING LTD,16APR_47058,-47.11,Programme System File
BIS,Skills Funding Agency,14/01/2014,16-18 Apprenticeships - Centralised Contract Management,Main Funding,FOCUS TRAINING AND DEVELOPMENT,16APR_47371,-26860.29,Programme System File
BIS,Skills Funding Agency,14/01/2014,16-18 Apprenticeships - Centralised Contract Management,Main Funding,FOUR COUNTIES TRAINING LTD,16APR_46686,25013.66,Programme System File
BIS,Skills Funding Agency,14/01/2014,16-18 Apprenticeships - Centralised Contract Management,Main Funding,HAIR & BEAUTY INDUSTRY TRAINING LTD,16APR_47363,7554.19,Programme System File
BIS,Skills Funding Agency,14/01/2014,16-18 Apprenticeships - Centralised Contract Management,Main Funding,HSBC BANK PLC,16APC_7992,-12106.29,Programme System File
BIS,Skills Funding Agency,14/01/2014,16-18 Apprenticeships - Centralised Contract Management,Main Funding,HSBC BANK PLC,16APR_46697,9603.15,Programme System File
BIS,Skills Funding Agency,14/01/2014,16-18 Apprenticeships - Centralised Contract Management,Main Funding,HULL BUSINESS TRAINING CENTRE LTD,16APR_47562,-10816.53,Programme System File
BIS,Skills Funding Agency,14/01/2014,16-18 Apprenticeships - Centralised Contract Management,Main Funding,INDEPENDENT TRAINING SERVICES LTD,16APR_47595,10835.3,Programme System File
BIS,Skills Funding Agency,14/01/2014,16-18 Apprenticeships - Centralised Contract Management,Main Funding,INTER TRAINING SERVICES LTD,16APR_46760,7459.58,Programme System File
BIS,Skills Funding Agency,14/01/2014,16-18 Apprenticeships - Centralised Contract Management,Main Funding,INTERACTIVE DEVELOPMENT EDUCATION LTD,16APC_8208,-488.76,Programme System File
BIS,Skills Funding Agency,14/01/2014,16-18 Apprenticeships - Centralised Contract Management,Main Funding,INTERACTIVE DEVELOPMENT EDUCATION LTD,16APR_47387,-2350.78,Programme System File
BIS,Skills Funding Agency,14/01/2014,16-18 Apprenticeships - Centralised Contract Management,Main Funding,ITS TRAINING LIMITED,16APR_47697,485.06,Programme System File
BIS,Skills Funding Agency,14/01/2014,16-18 Apprenticeships - Centralised Contract Management,Main Funding,KEITH LAWRENCE,16APC_8051,-11954.31,Programme System File
BIS,Skills Funding Agency,14/01/2014,16-18 Apprenticeships - Centralised Contract Management,Main Funding,KEITH LAWRENCE,16APR_46912,12317.06,Programme System File
BIS,Skills Funding Agency,14/01/2014,16-18 Apprenticeships - Centralised Contract Management,Main Funding,KINGSTON UPON HULL CITY COUNCIL,16APR_47547,13558.75,Programme System File
BIS,Skills Funding Agency,14/01/2014,16-18 Apprenticeships - Centralised Contract Management,Main Funding,KWIK FIT GB LTD,16APC_8164,-86764.57,Programme System File
BIS,Skills Funding Agency,14/01/2014,16-18 Apprenticeships - Centralised Contract Management,Main Funding,KWIK FIT GB LTD,16APR_47242,68290.26,Programme System File
BIS,Skills Funding Agency,14/01/2014,16-18 Apprenticeships - Centralised Contract Management,Main Funding,LAND ROVER,16APR_47467,374.29,Programme System File
BIS,Skills Funding Agency,14/01/2014,16-18 Apprenticeships - Centralised Contract Management,Main Funding,LEARNING SKILLS PARTNERSHIP LIMITED,16APC_8312,-38036.11,Programme System File
BIS,Skills Funding Agency,14/01/2014,16-18 Apprenticeships - Centralised Contract Management,Main Funding,LEARNING SKILLS PARTNERSHIP LIMITED,16APR_47607,33955.39,Programme System File
BIS,Skills Funding Agency,14/01/2014,16-18 Apprenticeships - Centralised Contract Management,Main Funding,LOCOMOTIVATION LTD,16APR_46745,-188.43,Programme System File
BIS,Skills Funding Agency,14/01/2014,16-18 Apprenticeships - Centralised Contract Management,Main Funding,MANAGEMENT & PERSONNEL SERVICES LTD,16APR_47661,-6431.51,Programme System File
BIS,Skills Funding Agency,14/01/2014,16-18 Apprenticeships - Centralised Contract Management,Main Funding,MARR CORP LTD,16APR_46986,-23638.16,Programme System File
BIS,Skills Funding Agency,14/01/2014,16-18 Apprenticeships - Centralised Contract Management,Main Funding,MINISTRY OF DEFENCE,16APC_8082,-11578.31,Programme System File
BIS,Skills Funding Agency,14/01/2014,16-18 Apprenticeships - Centralised Contract Management,Main Funding,MINISTRY OF DEFENCE,16APR_46778,-638.01,Programme System File
BIS,Skills Funding Agency,14/01/2014,16-18 Apprenticeships - Centralised Contract Management,Main Funding,MINISTRY OF DEFENCE,16APR_47000,10083.68,Programme System File
BIS,Skills Funding Agency,14/01/2014,16-18 Apprenticeships - Centralised Contract Management,Main Funding,MOTOR INSURANCE REPAIR RESEARCH CENTRE,16APR_47077,-713.75,Programme System File
BIS,Skills Funding Agency,14/01/2014,16-18 Apprenticeships - Centralised Contract Management,Main Funding,MPOWER TRAINING SOLUTIONS LTD,16APC_8058,-4253.77,Programme System File
BIS,Skills Funding Agency,14/01/2014,16-18 Apprenticeships - Centralised Contract Management,Main Funding,MPOWER TRAINING SOLUTIONS LTD,16APR_46928,4702.16,Programme System File
BIS,Skills Funding Agency,14/01/2014,16-18 Apprenticeships - Centralised Contract Management,Main Funding,NATIONAL GRID PLC,16APC_8024,-82.58,Programme System File
BIS,Skills Funding Agency,14/01/2014,16-18 Apprenticeships - Centralised Contract Management,Main Funding,NATIONAL GRID PLC,16APR_46742,-3467.66,Programme System File
BIS,Skills Funding Agency,14/01/2014,16-18 Apprenticeships - Centralised Contract Management,Main Funding,NETWORK RAIL INFRASTRUCTURE LTD,16APR_46805,10792.12,Programme System File
BIS,Skills Funding Agency,14/01/2014,16-18 Apprenticeships - Centralised Contract Management,Main Funding,NORFOLK & SUFFOLK CARE SUPPORT LTD,16APR_47673,-8031.62,Programme System File
BIS,Skills Funding Agency,14/01/2014,16-18 Apprenticeships - Centralised Contract Management,Main Funding,NORTH LANCS TRAINING GROUP LTD,16APR_47179,-35305.55,Programme System File
BIS,Skills Funding Agency,14/01/2014,16-18 Apprenticeships - Centralised Contract Management,Main Funding,NORTH WEST COMMUNITY SERVICES LTD,16APR_47126,484.56,Programme System File
BIS,Skills Funding Agency,14/01/2014,16-18 Apprenticeships - Centralised Contract Management,Main Funding,NORTH WEST TRAINING COUNCIL,16APR_47137,37673.37,Programme System File
BIS,Skills Funding Agency,14/01/2014,16-18 Apprenticeships - Centralised Contract Management,Main Funding,NORTHAMPTONSHIRE INDUSTRIAL TRAINING,16APR_47677,214.36,Programme System File
BIS,Skills Funding Agency,14/01/2014,16-18 Apprenticeships - Centralised Contract Management,Main Funding,PERTEMPS PEOPLE DEVELOPMENT GROUP,16APR_47476,3590.29,Programme System File
BIS,Skills Funding Agency,14/01/2014,16-18 Apprenticeships - Centralised Contract Management,Main Funding,PEUGEOT MOTOR COMPANY PLC,16APR_47471,-41682.02,Programme System File
BIS,Skills Funding Agency,14/01/2014,16-18 Apprenticeships - Centralised Contract Management,Main Funding,RATHBONE TRAINING,16APC_8205,-25612.72,Programme System File
BIS,Skills Funding Agency,14/01/2014,16-18 Apprenticeships - Centralised Contract Management,Main Funding,RATHBONE TRAINING,16APR_47383,45886.88,Programme System File
BIS,Skills Funding Agency,14/01/2014,16-18 Apprenticeships - Centralised Contract Management,Main Funding,RAYTHEON SYSTEMS LTD,16APR_47326,-9162.30,Programme System File
BIS,Skills Funding Agency,14/01/2014,16-18 Apprenticeships - Centralised Contract Management,Main Funding,ROLLS ROYCE PLC,16APR_47466,10980.27,Programme System File
BIS,Skills Funding Agency,14/01/2014,16-18 Apprenticeships - Centralised Contract Management,Main Funding,S & B AUTOMOTIVE ACADEMY LTD,16APR_46970,-3885.86,Programme System File
BIS,Skills Funding Agency,14/01/2014,16-18 Apprenticeships - Centralised Contract Management,Main Funding,SERCO LTD,16APR_46999,-9674.85,Programme System File
BIS,Skills Funding Agency,14/01/2014,16-18 Apprenticeships - Centralised Contract Management,Main Funding,SKILLS FOR HEALTH LIMITED,NQAA_5334,-37098.87,Programme Template
BIS,Skills Funding Agency,14/01/2014,16-18 Apprenticeships - Centralised Contract Management,Main Funding,SKILLS FOR HEALTH LIMITED,NQAA_5336,9276.68,Programme Template
BIS,Skills Funding Agency,14/01/2014,16-18 Apprenticeships - Centralised Contract Management,Main Funding,SKILLS FOR SECURITY LTD,16APR_47083,-7810.46,Programme System File
BIS,Skills Funding Agency,14/01/2014,16-18 Apprenticeships - Centralised Contract Management,Main Funding,START TRAINING,16APR_47285,-3771.68,Programme System File
BIS,Skills Funding Agency,14/01/2014,16-18 Apprenticeships - Centralised Contract Management,Main Funding,STEPS INTO WORK (WALSALL) LIMITED,16APR_47493,607.80,Programme System File
BIS,Skills Funding Agency,14/01/2014,16-18 Apprenticeships - Centralised Contract Management,Main Funding,STOCKTON ON TEES BOROUGH COUNCIL,16APR_47350,3486.31,Programme System File
BIS,Skills Funding Agency,14/01/2014,16-18 Apprenticeships - Centralised Contract Management,Main Funding,STUBBING COURT TRAINING LTD,16APR_47475,12472.66,Programme System File
BIS,Skills Funding Agency,14/01/2014,16-18 Apprenticeships - Centralised Contract Management,Main Funding,SUPERDRUG STORES PLC,16APC_8308,-10738.82,Programme System File
BIS,Skills Funding Agency,14/01/2014,16-18 Apprenticeships - Centralised Contract Management,Main Funding,SUPERDRUG STORES PLC,16APR_47587,-1068.1,Programme System File
BIS,Skills Funding Agency,14/01/2014,16-18 Apprenticeships - Centralised Contract Management,Main Funding,TEAM ENTERPRISES LTD,16APR_46975,185.18,Programme System File
BIS,Skills Funding Agency,14/01/2014,16-18 Apprenticeships - Centralised Contract Management,Main Funding,TESCO STORES LTD,16APR_47701,-43491.42,Programme System File
BIS,Skills Funding Agency,14/01/2014,16-18 Apprenticeships - Centralised Contract Management,Main Funding,TOYOTA GB PLC,16APC_7964,-1475.57,Programme System File
BIS,Skills Funding Agency,14/01/2014,16-18 Apprenticeships - Centralised Contract Management,Main Funding,TOYOTA GB PLC,16APR_47696,1475.57,Programme System File
BIS,Skills Funding Agency,14/01/2014,16-18 Apprenticeships - Centralised Contract Management,Main Funding,TRAINING FUTURES (UK) LTD,16APR_46832,-3596.64,Programme System File
BIS,Skills Funding Agency,14/01/2014,16-18 Apprenticeships - Centralised Contract Management,Main Funding,UNIVERSITY OF DURHAM,16APR_47331,2892.52,Programme System File
BIS,Skills Funding Agency,14/01/2014,16-18 Apprenticeships - Centralised Contract Management,Main Funding,VEOLIA ENVIRONNEMENT DEVELOPMENT CENTRE LTD,16APC_7997,-8362.18,Programme System File
BIS,Skills Funding Agency,14/01/2014,16-18 Apprenticeships - Centralised Contract Management,Main Funding,VEOLIA ENVIRONNEMENT DEVELOPMENT CENTRE LTD,16APR_46721,1586.94,Programme System File
BIS,Skills Funding Agency,14/01/2014,16-18 Apprenticeships - Centralised Contract Management,Main Funding,VISAGE SCHOOL OF BEAUTY THERAPY LTD,16APR_46709,-9822.54,Programme System File
BIS,Skills Funding Agency,14/01/2014,16-18 Apprenticeships - Centralised Contract Management,Main Funding,VOCATIONAL COLLEGE LTD,16APR_47125,4695.62,Programme System File
BIS,Skills Funding Agency,14/01/2014,16-18 Apprenticeships - Centralised Contract Management,Main Funding,WEIR TRAINING LTD,16APR_46774,-1631.59,Programme System File
BIS,Skills Funding Agency,14/01/2014,16-18 Apprenticeships - Centralised Contract Management,Main Funding,XTP INTERNATIONAL LTD,16APC_8153,-996.29,Programme System File
BIS,Skills Funding Agency,14/01/2014,16-18 Apprenticeships - Centralised Contract Management,Main Funding,XTP INTERNATIONAL LTD,16APR_47201,6375.55,Programme System File
BIS,Skills Funding Agency,14/01/2014,16-18 Apprenticeships - Non Centralised Contract Management,Main Funding,5 E LTD,NUPS13_26431,-32871.22,Programme Template
BIS,Skills Funding Agency,14/01/2014,16-18 Apprenticeships - Non Centralised Contract Management,Main Funding,5 E LTD,NUPS13_30584,31264.68,Programme Template
BIS,Skills Funding Agency,14/01/2014,16-18 Apprenticeships - Non Centralised Contract Management,Main Funding,A & R TRAINING SERVICES LTD,NUPS13_24669,-488483.32,Programme Template
BIS,Skills Funding Agency,14/01/2014,16-18 Apprenticeships - Non Centralised Contract Management,Main Funding,A & R TRAINING SERVICES LTD,NUPS13_28039,591997.95,Programme Template
BIS,Skills Funding Agency,14/01/2014,16-18 Apprenticeships - Non Centralised Contract Management,Main Funding,A4E LTD,NUPS13_26359,-54589.36,Programme Template
BIS,Skills Funding Agency,14/01/2014,16-18 Apprenticeships - Non Centralised Contract Management,Main Funding,A4E LTD,NUPS13_30485,69258.85,Programme Template
BIS,Skills Funding Agency,14/01/2014,16-18 Apprenticeships - Non Centralised Contract Management,Main Funding,ABA TRAINING LIMITED,NUPS13_26484,-18290.12,Programme Template
BIS,Skills Funding Agency,14/01/2014,16-18 Apprenticeships - Non Centralised Contract Management,Main Funding,ABA TRAINING LIMITED,NUPS13_30617,21042.71,Programme Template
BIS,Skills Funding Agency,14/01/2014,16-18 Apprenticeships - Non Centralised Contract Management,Main Funding,ABINGDON & WITNEY COLLEGE,NUPS13_25036,-103211.7,Programme Template
BIS,Skills Funding Agency,14/01/2014,16-18 Apprenticeships - Non Centralised Contract Management,Main Funding,ABINGDON & WITNEY COLLEGE,NUPS13_28424,119555.53,Programme Template
BIS,Skills Funding Agency,14/01/2014,16-18 Apprenticeships - Non Centralised Contract Management,Main Funding,ACACIA TRAINING & DEVELOPMENT LTD,NUPS13_24855,-223998.88,Programme Template
BIS,Skills Funding Agency,14/01/2014,16-18 Apprenticeships - Non Centralised Contract Management,Main Funding,ACACIA TRAINING & DEVELOPMENT LTD,NUPS13_28233,269726.76,Programme Template
BIS,Skills Funding Agency,14/01/2014,16-18 Apprenticeships - Non Centralised Contract Management,Main Funding,ACACIA TRAINING LTD,NUPS13_25068,-85975.84,Programme Template
BIS,Skills Funding Agency,14/01/2014,16-18 Apprenticeships - Non Centralised Contract Management,Main Funding,ACACIA TRAINING LTD,NUPS13_30429,101351.48,Programme Template
BIS,Skills Funding Agency,14/01/2014,16-18 Apprenticeships - Non Centralised Contract Management,Main Funding,ACADEMIES ENTERPRISE TRUST,NUPS13_26504,-12460.04,Programme Template
BIS,Skills Funding Agency,14/01/2014,16-18 Apprenticeships - Non Centralised Contract Management,Main Funding,ACADEMIES ENTERPRISE TRUST,NUPS13_30633,15791.89,Programme Template
BIS,Skills Funding Agency,14/01/2014,16-18 Apprenticeships - Non Centralised Contract Management,Main Funding,ACADEMY EDUCATION LTD,NUPS13_15177,-46361,Programme Template
BIS,Skills Funding Agency,14/01/2014,16-18 Apprenticeships - Non Centralised Contract Management,Main Funding,ACADEMY EDUCATION LTD,NUPS13_16925,-46361.00,Programme Template
BIS,Skills Funding Agency,14/01/2014,16-18 Apprenticeships - Non Centralised Contract Management,Main Funding,ACADEMY EDUCATION LTD,NUPS13_19322,-46361.00,Programme Template
BIS,Skills Funding Agency,14/01/2014,16-18 Apprenticeships - Non Centralised Contract Management,Main Funding,ACADEMY EDUCATION LTD,NUPS13_21472,171564.30,Programme Template
BIS,Skills Funding Agency,14/01/2014,16-18 Apprenticeships - Non Centralised Contract Management,Main Funding,ACADEMY EDUCATION LTD,NUPS13_24920,-171564.30,Programme Template
BIS,Skills Funding Agency,14/01/2014,16-18 Apprenticeships - Non Centralised Contract Management,Main Funding,ACADEMY EDUCATION LTD,NUPS13_28301,204242.69,Programme Template
BIS,Skills Funding Agency,14/01/2014,16-18 Apprenticeships - Non Centralised Contract Management,Main Funding,ACADEMY TRANSFORMATION TRUST,NUPS13_26487,-17773.54,Programme Template
BIS,Skills Funding Agency,14/01/2014,16-18 Apprenticeships - Non Centralised Contract Management,Main Funding,ACADEMY TRANSFORMATION TRUST,NUPS13_30613,22566.36,Programme Template
BIS,Skills Funding Agency,14/01/2014,16-18 Apprenticeships - Non Centralised Contract Management,Main Funding,ACCESS TO MUSIC LTD,NUPS13_26512,-11351.98,Programme Template
BIS,Skills Funding Agency,14/01/2014,16-18 Apprenticeships - Non Centralised Contract Management,Main Funding,ACCESS TO MUSIC LTD,NUPS13_30623,18165.58,Programme Template
BIS,Skills Funding Agency,14/01/2014,16-18 Apprenticeships - Non Centralised Contract Management,Main Funding,ACCESS TRAINING CENTRES LTD,NUPS13_26465,-23538.84,Programme Template
BIS,Skills Funding Agency,14/01/2014,16-18 Apprenticeships - Non Centralised Contract Management,Main Funding,ACCESS TRAINING CENTRES LTD,NUPS13_30600,26570.07,Programme Template
BIS,Skills Funding Agency,14/01/2014,16-18 Apprenticeships - Non Centralised Contract Management,Main Funding,ACCESS TRAINING EAST MIDLANDS LTD,NUPS13_24954,-151460.35,Programme Template
BIS,Skills Funding Agency,14/01/2014,16-18 Apprenticeships - Non Centralised Contract Management,Main Funding,ACCESS TRAINING EAST MIDLANDS LTD,NUPS13_28324,187737.03,Programme Template
BIS,Skills Funding Agency,14/01/2014,16-18 Apprenticeships - Non Centralised Contract Management,Main Funding,ACCESS TRAINING LTD,NUPS13_24922,-171380.92,Programme Template
BIS,Skills Funding Agency,14/01/2014,16-18 Apprenticeships - Non Centralised Contract Management,Main Funding,ACCESS TRAINING LTD,NUPS13_28297,206889.02,Programme Template
BIS,Skills Funding Agency,14/01/2014,16-18 Apprenticeships - Non Centralised Contract Management,Main Funding,ACCRINGTON & ROSSENDALE COLLEGE,NUPS13_24807,-265671.75,Programme Template
BIS,Skills Funding Agency,14/01/2014,16-18 Apprenticeships - Non Centralised Contract Management,Main Funding,ACCRINGTON & ROSSENDALE COLLEGE,NUPS13_28203,301972.61,Programme Template
BIS,Skills Funding Agency,14/01/2014,16-18 Apprenticeships - Non Centralised Contract Management,Main Funding,ACHIEVEMENT TRAINING LTD,NUPS13_24977,-133415.23,Programme Template
BIS,Skills Funding Agency,14/01/2014,16-18 Apprenticeships - Non Centralised Contract Management,Main Funding,ACHIEVEMENT TRAINING LTD,NUPS13_28345,165858.54,Programme Template
BIS,Skills Funding Agency,14/01/2014,16-18 Apprenticeships - Non Centralised Contract Management,Main Funding,AGE UK TRADING LTD,NUPS13_24714,-404845.69,Programme Template
BIS,Skills Funding Agency,14/01/2014,16-18 Apprenticeships - Non Centralised Contract Management,Main Funding,AGE UK TRADING LTD,NUPS13_28085,497038.93,Programme Template
BIS,Skills Funding Agency,14/01/2014,16-18 Apprenticeships - Non Centralised Contract Management,Main Funding,AGILISYS LTD,NUPS13_24853,-225138.06,Programme Template
BIS,Skills Funding Agency,14/01/2014,16-18 Apprenticeships - Non Centralised Contract Management,Main Funding,AGILISYS LTD,NUPS13_28227,274349.31,Programme Template
BIS,Skills Funding Agency,14/01/2014,16-18 Apprenticeships - Non Centralised Contract Management,Main Funding,ALDER TRAINING LTD,NUPS13_24786,-290214.98,Programme Template
BIS,Skills Funding Agency,14/01/2014,16-18 Apprenticeships - Non Centralised Contract Management,Main Funding,ALDER TRAINING LTD,NUPS13_28138,387463.3,Programme Template
BIS,Skills Funding Agency,14/01/2014,16-18 Apprenticeships - Non Centralised Contract Management,Main Funding,ALLIANCE LEARNING LTD,NUPS13_24772,-308342.46,Programme Template
BIS,Skills Funding Agency,14/01/2014,16-18 Apprenticeships - Non Centralised Contract Management,Main Funding,ALLIANCE LEARNING LTD,NUPS13_28139,385145.16,Programme Template
BIS,Skills Funding Agency,14/01/2014,16-18 Apprenticeships - Non Centralised Contract Management,Main Funding,ALPHA BUILDING SERVICES ENGINEERING LTD,NUPS13_24928,-167889.66,Programme Template
BIS,Skills Funding Agency,14/01/2014,16-18 Apprenticeships - Non Centralised Contract Management,Main Funding,ALPHA BUILDING SERVICES ENGINEERING LTD,NUPS13_28271,229803.49,Programme Template
BIS,Skills Funding Agency,14/01/2014,16-18 Apprenticeships - Non Centralised Contract Management,Main Funding,ALT VALLEY COMMUNITY TRUST LTD,NUPS13_25062,-89919.80,Programme Template
BIS,Skills Funding Agency,14/01/2014,16-18 Apprenticeships - Non Centralised Contract Management,Main Funding,ALT VALLEY COMMUNITY TRUST LTD,NUPS13_30418,106122.83,Programme Template
BIS,Skills Funding Agency,14/01/2014,16-18 Apprenticeships - Non Centralised Contract Management,Main Funding,AMERSHAM & WYCOMBE COLLEGE,NUPS13_26319,-70562.90,Programme Template
BIS,Skills Funding Agency,14/01/2014,16-18 Apprenticeships - Non Centralised Contract Management,Main Funding,AMERSHAM & WYCOMBE COLLEGE,NUPS13_30446,86951.84,Programme Template
BIS,Skills Funding Agency,14/01/2014,16-18 Apprenticeships - Non Centralised Contract Management,Main Funding,ANDERSON STOCKLEY ACCREDITED TRAINING,NUPS13_26397,-42879.06,Programme Template
BIS,Skills Funding Agency,14/01/2014,16-18 Apprenticeships - Non Centralised Contract Management,Main Funding,ANDERSON STOCKLEY ACCREDITED TRAINING,NUPS13_30516,56420.64,Programme Template
BIS,Skills Funding Agency,14/01/2014,16-18 Apprenticeships - Non Centralised Contract Management,Main Funding,ANDREW COLLINGE TRAINING LTD,NUPS13_24842,-232672.99,Programme Template
BIS,Skills Funding Agency,14/01/2014,16-18 Apprenticeships - Non Centralised Contract Management,Main Funding,ANDREW COLLINGE TRAINING LTD,NUPS13_28228,273832.48,Programme Template
BIS,Skills Funding Agency,14/01/2014,16-18 Apprenticeships - Non Centralised Contract Management,Main Funding,ANNE CLARKE ASSOCIATES LTD,NUPS13_26328,-66858.79,Programme Template
BIS,Skills Funding Agency,14/01/2014,16-18 Apprenticeships - Non Centralised Contract Management,Main Funding,ANNE CLARKE ASSOCIATES LTD,NUPS13_30451,84747.37,Programme Template
BIS,Skills Funding Agency,14/01/2014,16-18 Apprenticeships - Non Centralised Contract Management,Main Funding,APPRENTICE FUNDING ASSISTANT LTD,NUPS13_24811,-258124.18,Programme Template
BIS,Skills Funding Agency,14/01/2014,16-18 Apprenticeships - Non Centralised Contract Management,Main Funding,APPRENTICE FUNDING ASSISTANT LTD,NUPS13_28126,402969.06,Programme Template
BIS,Skills Funding Agency,14/01/2014,16-18 Apprenticeships - Non Centralised Contract Management,Main Funding,APPRENTICE SCHOOL CHARITABLE TRUST,NUPS13_15834,-61802.00,Programme Template
BIS,Skills Funding Agency,14/01/2014,16-18 Apprenticeships - Non Centralised Contract Management,Main Funding,APPRENTICE SCHOOL CHARITABLE TRUST,NUPS13_17590,-61802.00,Programme Template
BIS,Skills Funding Agency,14/01/2014,16-18 Apprenticeships - Non Centralised Contract Management,Main Funding,APPRENTICE SCHOOL CHARITABLE TRUST,NUPS13_19254,-61802.00,Programme Template
BIS,Skills Funding Agency,14/01/2014,16-18 Apprenticeships - Non Centralised Contract Management,Main Funding,APPRENTICE SCHOOL CHARITABLE TRUST,NUPS13_21514,142467.24,Programme Template
BIS,Skills Funding Agency,14/01/2014,16-18 Apprenticeships - Non Centralised Contract Management,Main Funding,APPRENTICE SCHOOL CHARITABLE TRUST,NUPS13_24962,-142467.24,Programme Template
BIS,Skills Funding Agency,14/01/2014,16-18 Apprenticeships - Non Centralised Contract Management,Main Funding,APPRENTICE SCHOOL CHARITABLE TRUST,NUPS13_28354,161933.54,Programme Template
BIS,Skills Funding Agency,14/01/2014,16-18 Apprenticeships - Non Centralised Contract Management,Main Funding,APPRENTICESHIPS & TRAINING SERVICES,NUPS13_24939,-160228.53,Programme Template
BIS,Skills Funding Agency,14/01/2014,16-18 Apprenticeships - Non Centralised Contract Management,Main Funding,APPRENTICESHIPS & TRAINING SERVICES,NUPS13_28268,233261.91,Programme Template
BIS,Skills Funding Agency,14/01/2014,16-18 Apprenticeships - Non Centralised Contract Management,Main Funding,ASHTON UNDER LYNE SIXTH FORM COLLEGE,NUPS13_26552,-3543.52,Programme Template
BIS,Skills Funding Agency,14/01/2014,16-18 Apprenticeships - Non Centralised Contract Management,Main Funding,ASHTON UNDER LYNE SIXTH FORM COLLEGE,NUPS13_30681,4252.22,Programme Template
BIS,Skills Funding Agency,14/01/2014,16-18 Apprenticeships - Non Centralised Contract Management,Main Funding,ASKHAM BRYAN COLLEGE CO LTD,NUPS13_24856,-223153.86,Programme Template
BIS,Skills Funding Agency,14/01/2014,16-18 Apprenticeships - Non Centralised Contract Management,Main Funding,ASKHAM BRYAN COLLEGE CO LTD,NUPS13_28187,287894.64,Programme Template
BIS,Skills Funding Agency,14/01/2014,16-18 Apprenticeships - Non Centralised Contract Management,Main Funding,ASPIRATION TRAINING LTD,NUPS13_15200,-64159,Programme Template
BIS,Skills Funding Agency,14/01/2014,16-18 Apprenticeships - Non Centralised Contract Management,Main Funding,ASPIRATION TRAINING LTD,NUPS13_16948,-64159,Programme Template
BIS,Skills Funding Agency,14/01/2014,16-18 Apprenticeships - Non Centralised Contract Management,Main Funding,ASPIRATION TRAINING LTD,NUPS13_19242,-64159.00,Programme Template
BIS,Skills Funding Agency,14/01/2014,16-18 Apprenticeships - Non Centralised Contract Management,Main Funding,ASPIRATION TRAINING LTD,NUPS13_21759,32517.6,Programme Template
BIS,Skills Funding Agency,14/01/2014,16-18 Apprenticeships - Non Centralised Contract Management,Main Funding,ASPIRATION TRAINING LTD,NUPS13_26432,-32517.6,Programme Template
BIS,Skills Funding Agency,14/01/2014,16-18 Apprenticeships - Non Centralised Contract Management,Main Funding,ASPIRATION TRAINING LTD,NUPS13_30455,82969.60,Programme Template
BIS,Skills Funding Agency,14/01/2014,16-18 Apprenticeships - Non Centralised Contract Management,Main Funding,ASPIRE ADVANCE ACHIEVE LIMITED,NUPS13_24660,-520062.04,Programme Template
BIS,Skills Funding Agency,14/01/2014,16-18 Apprenticeships - Non Centralised Contract Management,Main Funding,ASPIRE ADVANCE ACHIEVE LIMITED,NUPS13_28008,766879.06,Programme Template
BIS,Skills Funding Agency,14/01/2014,16-18 Apprenticeships - Non Centralised Contract Management,Main Funding,ASPIRE TRAINING TEAM LTD,NUPS13_24988,-129419.18,Programme Template
BIS,Skills Funding Agency,14/01/2014,16-18 Apprenticeships - Non Centralised Contract Management,Main Funding,ASPIRE TRAINING TEAM LTD,NUPS13_28361,158229.97,Programme Template
BIS,Skills Funding Agency,14/01/2014,16-18 Apprenticeships - Non Centralised Contract Management,Main Funding,ASSET TRAINING & CONSULTANCY LTD,NUPS13_24908,-178878.14,Programme Template
BIS,Skills Funding Agency,14/01/2014,16-18 Apprenticeships - Non Centralised Contract Management,Main Funding,ASSET TRAINING & CONSULTANCY LTD,NUPS13_28244,253640.55,Programme Template
BIS,Skills Funding Agency,14/01/2014,16-18 Apprenticeships - Non Centralised Contract Management,Main Funding,ASTUTE MINDS LTD,NUPS13_25028,-106918.76,Programme Template
BIS,Skills Funding Agency,14/01/2014,16-18 Apprenticeships - Non Centralised Contract Management,Main Funding,ASTUTE MINDS LTD,NUPS13_28405,131033.01,Programme Template
BIS,Skills Funding Agency,14/01/2014,16-18 Apprenticeships - Non Centralised Contract Management,Main Funding,AURELIA TRAINING LTD,NUPS13_26458,-25970.51,Programme Template
BIS,Skills Funding Agency,14/01/2014,16-18 Apprenticeships - Non Centralised Contract Management,Main Funding,AURELIA TRAINING LTD,NUPS13_30583,31392.24,Programme Template
BIS,Skills Funding Agency,14/01/2014,16-18 Apprenticeships - Non Centralised Contract Management,Main Funding,AVANT PARTNERSHIP LTD,NUPS13_24917,-173031.47,Programme Template
BIS,Skills Funding Agency,14/01/2014,16-18 Apprenticeships - Non Centralised Contract Management,Main Funding,AVANT PARTNERSHIP LTD,NUPS13_28296,207855.61,Programme Template
BIS,Skills Funding Agency,14/01/2014,16-18 Apprenticeships - Non Centralised Contract Management,Main Funding,AVANTA ENTERPRISE LTD,NUPS13_25056,-92524.25,Programme Template
BIS,Skills Funding Agency,14/01/2014,16-18 Apprenticeships - Non Centralised Contract Management,Main Funding,AVANTA ENTERPRISE LTD,NUPS13_28433,114792.85,Programme Template
BIS,Skills Funding Agency,14/01/2014,16-18 Apprenticeships - Non Centralised Contract Management,Main Funding,AWE PLC,NUPS13_15208,-31274.00,Programme Template
BIS,Skills Funding Agency,14/01/2014,16-18 Apprenticeships - Non Centralised Contract Management,Main Funding,AWE PLC,NUPS13_16956,-31274.00,Programme Template
BIS,Skills Funding Agency,14/01/2014,16-18 Apprenticeships - Non Centralised Contract Management,Main Funding,AWE PLC,NUPS13_19402,-31274.00,Programme Template
BIS,Skills Funding Agency,14/01/2014,16-18 Apprenticeships - Non Centralised Contract Management,Main Funding,AWE PLC,NUPS13_21749,34328.45,Programme Template
BIS,Skills Funding Agency,14/01/2014,16-18 Apprenticeships - Non Centralised Contract Management,Main Funding,AWE PLC,NUPS13_26422,-34328.45,Programme Template
BIS,Skills Funding Agency,14/01/2014,16-18 Apprenticeships - Non Centralised Contract Management,Main Funding,AWE PLC,NUPS13_28409,128539.21,Programme Template
BIS,Skills Funding Agency,14/01/2014,16-18 Apprenticeships - Non Centralised Contract Management,Main Funding,AXIA SOLUTIONS LTD,NUPS13_25051,-96668.50,Programme Template
BIS,Skills Funding Agency,14/01/2014,16-18 Apprenticeships - Non Centralised Contract Management,Main Funding,AXIA SOLUTIONS LTD,NUPS13_28420,121763.24,Programme Template
BIS,Skills Funding Agency,14/01/2014,16-18 Apprenticeships - Non Centralised Contract Management,Main Funding,AYLESBURY COLLEGE,NUPS13_24774,-305341.85,Programme Template
BIS,Skills Funding Agency,14/01/2014,16-18 Apprenticeships - Non Centralised Contract Management,Main Funding,AYLESBURY COLLEGE,NUPS13_28150,364531.15,Programme Template
BIS,Skills Funding Agency,14/01/2014,16-18 Apprenticeships - Non Centralised Contract Management,Main Funding,B L TRAINING LTD,NUPS13_24713,-409445.41,Programme Template
BIS,Skills Funding Agency,14/01/2014,16-18 Apprenticeships - Non Centralised Contract Management,Main Funding,B L TRAINING LTD,NUPS13_28084,499466.54,Programme Template
BIS,Skills Funding Agency,14/01/2014,16-18 Apprenticeships - Non Centralised Contract Management,Main Funding,B SKILL LTD,NUPS13_26467,-23116.76,Programme Template
BIS,Skills Funding Agency,14/01/2014,16-18 Apprenticeships - Non Centralised Contract Management,Main Funding,B SKILL LTD,NUPS13_30588,29719.89,Programme Template
BIS,Skills Funding Agency,14/01/2014,16-18 Apprenticeships - Non Centralised Contract Management,Main Funding,B2B ENGAGE LTD,NUPS13_24682,-469381.61,Programme Template
BIS,Skills Funding Agency,14/01/2014,16-18 Apprenticeships - Non Centralised Contract Management,Main Funding,B2B ENGAGE LTD,NUPS13_28044,586091.31,Programme Template
BIS,Skills Funding Agency,14/01/2014,16-18 Apprenticeships - Non Centralised Contract Management,Main Funding,BABCOCK SKILLS DEVELOPMENT & TRAINING LTD,NUPS13_24668,-494590.17,Programme Template
BIS,Skills Funding Agency,14/01/2014,16-18 Apprenticeships - Non Centralised Contract Management,Main Funding,BABCOCK SKILLS DEVELOPMENT & TRAINING LTD,NUPS13_28034,609132.02,Programme Template
BIS,Skills Funding Agency,14/01/2014,16-18 Apprenticeships - Non Centralised Contract Management,Main Funding,BABCOCK TRAINING LTD,NUPS13_24575,-2712634.35,Programme Template
BIS,Skills Funding Agency,14/01/2014,16-18 Apprenticeships - Non Centralised Contract Management,Main Funding,BABCOCK TRAINING LTD,NUPS13_27939,3335096.52,Programme Template
BIS,Skills Funding Agency,14/01/2014,16-18 Apprenticeships - Non Centralised Contract Management,Main Funding,BABINGTON BUSINESS COLLEGE LTD,NUPS13_24601,-932449.19,Programme Template
BIS,Skills Funding Agency,14/01/2014,16-18 Apprenticeships - Non Centralised Contract Management,Main Funding,BABINGTON BUSINESS COLLEGE LTD,NUPS13_27970,1153030.68,Programme Template
BIS,Skills Funding Agency,14/01/2014,16-18 Apprenticeships - Non Centralised Contract Management,Main Funding,BAE SYSTEMS OPERATIONS LTD,NUPS13_15217,-211965,Programme Template
BIS,Skills Funding Agency,14/01/2014,16-18 Apprenticeships - Non Centralised Contract Management,Main Funding,BAE SYSTEMS OPERATIONS LTD,NUPS13_16964,-211965.00,Programme Template
BIS,Skills Funding Agency,14/01/2014,16-18 Apprenticeships - Non Centralised Contract Management,Main Funding,BAE SYSTEMS OPERATIONS LTD,NUPS13_18982,-211964.00,Programme Template
BIS,Skills Funding Agency,14/01/2014,16-18 Apprenticeships - Non Centralised Contract Management,Main Funding,BAE SYSTEMS OPERATIONS LTD,NUPS13_21195,597025.77,Programme Template
BIS,Skills Funding Agency,14/01/2014,16-18 Apprenticeships - Non Centralised Contract Management,Main Funding,BAE SYSTEMS OPERATIONS LTD,NUPS13_24643,-597025.77,Programme Template
BIS,Skills Funding Agency,14/01/2014,16-18 Apprenticeships - Non Centralised Contract Management,Main Funding,BAE SYSTEMS OPERATIONS LTD,NUPS13_28011,742307.11,Programme Template
BIS,Skills Funding Agency,14/01/2014,16-18 Apprenticeships - Non Centralised Contract Management,Main Funding,BALDWIN TRAINING LTD,NUPS13_24806,-265764.38,Programme Template
BIS,Skills Funding Agency,14/01/2014,16-18 Apprenticeships - Non Centralised Contract Management,Main Funding,BALDWIN TRAINING LTD,NUPS13_28206,301249.88,Programme Template
BIS,Skills Funding Agency,14/01/2014,16-18 Apprenticeships - Non Centralised Contract Management,Main Funding,BALTIC TRAINING SERVICES LTD,NUPS13_15219,-154430,Programme Template
BIS,Skills Funding Agency,14/01/2014,16-18 Apprenticeships - Non Centralised Contract Management,Main Funding,BALTIC TRAINING SERVICES LTD,NUPS13_16966,-154430.00,Programme Template
BIS,Skills Funding Agency,14/01/2014,16-18 Apprenticeships - Non Centralised Contract Management,Main Funding,BALTIC TRAINING SERVICES LTD,NUPS13_19030,-154430,Programme Template
BIS,Skills Funding Agency,14/01/2014,16-18 Apprenticeships - Non Centralised Contract Management,Main Funding,BALTIC TRAINING SERVICES LTD,NUPS13_20820,-21603.00,Programme Template
BIS,Skills Funding Agency,14/01/2014,16-18 Apprenticeships - Non Centralised Contract Management,Main Funding,BALTIC TRAINING SERVICES LTD,NUPS13_21180,692326.99,Programme Template
BIS,Skills Funding Agency,14/01/2014,16-18 Apprenticeships - Non Centralised Contract Management,Main Funding,BALTIC TRAINING SERVICES LTD,NUPS13_24628,-692326.99,Programme Template
BIS,Skills Funding Agency,14/01/2014,16-18 Apprenticeships - Non Centralised Contract Management,Main Funding,BALTIC TRAINING SERVICES LTD,NUPS13_27992,877709.17,Programme Template
BIS,Skills Funding Agency,14/01/2014,16-18 Apprenticeships - Non Centralised Contract Management,Main Funding,BARCHESTER HEALTHCARE LTD,NUPS13_15220,-97945.00,Programme Template
BIS,Skills Funding Agency,14/01/2014,16-18 Apprenticeships - Non Centralised Contract Management,Main Funding,BARCHESTER HEALTHCARE LTD,NUPS13_16967,-97945,Programme Template
BIS,Skills Funding Agency,14/01/2014,16-18 Apprenticeships - Non Centralised Contract Management,Main Funding,BARCHESTER HEALTHCARE LTD,NUPS13_19123,-97945,Programme Template
BIS,Skills Funding Agency,14/01/2014,16-18 Apprenticeships - Non Centralised Contract Management,Main Funding,BARCHESTER HEALTHCARE LTD,NUPS13_21304,344023.01,Programme Template
BIS,Skills Funding Agency,14/01/2014,16-18 Apprenticeships - Non Centralised Contract Management,Main Funding,BARCHESTER HEALTHCARE LTD,NUPS13_24752,-344023.01,Programme Template
BIS,Skills Funding Agency,14/01/2014,16-18 Apprenticeships - Non Centralised Contract Management,Main Funding,BARCHESTER HEALTHCARE LTD,NUPS13_28131,397970.27,Programme Template
BIS,Skills Funding Agency,14/01/2014,16-18 Apprenticeships - Non Centralised Contract Management,Main Funding,BARFORD EDUCATION & TRAINING NORTH EAST LTD,NUPS13_30692,2016.13,Programme Template
BIS,Skills Funding Agency,14/01/2014,16-18 Apprenticeships - Non Centralised Contract Management,Main Funding,BARKING COLLEGE,NUPS13_24705,-424237.62,Programme Template
BIS,Skills Funding Agency,14/01/2014,16-18 Apprenticeships - Non Centralised Contract Management,Main Funding,BARKING COLLEGE,NUPS13_28064,529591.44,Programme Template
BIS,Skills Funding Agency,14/01/2014,16-18 Apprenticeships - Non Centralised Contract Management,Main Funding,BARNET COLLEGE,NUPS13_26360,-54318.44,Programme Template
BIS,Skills Funding Agency,14/01/2014,16-18 Apprenticeships - Non Centralised Contract Management,Main Funding,BARNET COLLEGE,NUPS13_30434,96893.45,Programme Template
BIS,Skills Funding Agency,14/01/2014,16-18 Apprenticeships - Non Centralised Contract Management,Main Funding,BARNSLEY COLLEGE,NUPS13_24614,-771373.80,Programme Template
BIS,Skills Funding Agency,14/01/2014,16-18 Apprenticeships - Non Centralised Contract Management,Main Funding,BARNSLEY COLLEGE,NUPS13_27983,924857.59,Programme Template
BIS,Skills Funding Agency,14/01/2014,16-18 Apprenticeships - Non Centralised Contract Management,Main Funding,BASINGSTOKE COLLEGE OF TECHNOLOGY,NUPS13_24726,-389983.95,Programme Template
BIS,Skills Funding Agency,14/01/2014,16-18 Apprenticeships - Non Centralised Contract Management,Main Funding,BASINGSTOKE COLLEGE OF TECHNOLOGY,NUPS13_28090,486293.62,Programme Template
BIS,Skills Funding Agency,14/01/2014,16-18 Apprenticeships - Non Centralised Contract Management,Main Funding,BASINGSTOKE YOUTH ACTION TRUST LTD,NUPS13_24974,-135207.01,Programme Template
BIS,Skills Funding Agency,14/01/2014,16-18 Apprenticeships - Non Centralised Contract Management,Main Funding,BASINGSTOKE YOUTH ACTION TRUST LTD,NUPS13_28342,168263.05,Programme Template
BIS,Skills Funding Agency,14/01/2014,16-18 Apprenticeships - Non Centralised Contract Management,Main Funding,BE TOTALLY YOU,NUPS13_26515,-10281.00,Programme Template
BIS,Skills Funding Agency,14/01/2014,16-18 Apprenticeships - Non Centralised Contract Management,Main Funding,BE TOTALLY YOU,NUPS13_30642,12274.00,Programme Template
BIS,Skills Funding Agency,14/01/2014,16-18 Apprenticeships - Non Centralised Contract Management,Main Funding,BEDFORD COLLEGE,NUPS13_24641,-602427.68,Programme Template
BIS,Skills Funding Agency,14/01/2014,16-18 Apprenticeships - Non Centralised Contract Management,Main Funding,BEDFORD COLLEGE,NUPS13_28005,786327.22,Programme Template
BIS,Skills Funding Agency,14/01/2014,16-18 Apprenticeships - Non Centralised Contract Management,Main Funding,BESTLAND SOLUTIONS LTD,NUPS13_25021,-110681.17,Programme Template
BIS,Skills Funding Agency,14/01/2014,16-18 Apprenticeships - Non Centralised Contract Management,Main Funding,BESTLAND SOLUTIONS LTD,NUPS13_28377,149158.27,Programme Template
BIS,Skills Funding Agency,14/01/2014,16-18 Apprenticeships - Non Centralised Contract Management,Main Funding,BEXHILL COLLEGE,NUPS13_26483,-18892.83,Programme Template
BIS,Skills Funding Agency,14/01/2014,16-18 Apprenticeships - Non Centralised Contract Management,Main Funding,BEXHILL COLLEGE,NUPS13_30607,24579.64,Programme Template
BIS,Skills Funding Agency,14/01/2014,16-18 Apprenticeships - Non Centralised Contract Management,Main Funding,BEXLEY COLLEGE,NUPS13_24937,-161104.95,Programme Template
BIS,Skills Funding Agency,14/01/2014,16-18 Apprenticeships - Non Centralised Contract Management,Main Funding,BEXLEY COLLEGE,NUPS13_28315,196466.63,Programme Template
BIS,Skills Funding Agency,14/01/2014,16-18 Apprenticeships - Non Centralised Contract Management,Main Funding,BEXLEY YOUTH TRAINING GROUP,NUPS13_24732,-379155.83,Programme Template
BIS,Skills Funding Agency,14/01/2014,16-18 Apprenticeships - Non Centralised Contract Management,Main Funding,BEXLEY YOUTH TRAINING GROUP,NUPS13_28097,473120.14,Programme Template
BIS,Skills Funding Agency,14/01/2014,16-18 Apprenticeships - Non Centralised Contract Management,Main Funding,BHS LTD,NUPS13_15237,-18255.00,Programme Template
BIS,Skills Funding Agency,14/01/2014,16-18 Apprenticeships - Non Centralised Contract Management,Main Funding,BHS LTD,NUPS13_16984,-18255,Programme Template
BIS,Skills Funding Agency,14/01/2014,16-18 Apprenticeships - Non Centralised Contract Management,Main Funding,BHS LTD,NUPS13_19507,-18256.00,Programme Template
BIS,Skills Funding Agency,14/01/2014,16-18 Apprenticeships - Non Centralised Contract Management,Main Funding,BHS LTD,NUPS13_21737,39372.05,Programme Template
BIS,Skills Funding Agency,14/01/2014,16-18 Apprenticeships - Non Centralised Contract Management,Main Funding,BHS LTD,NUPS13_26410,-39372.05,Programme Template
BIS,Skills Funding Agency,14/01/2014,16-18 Apprenticeships - Non Centralised Contract Management,Main Funding,BHS LTD,NUPS13_30543,46832.61,Programme Template
BIS,Skills Funding Agency,14/01/2014,16-18 Apprenticeships - Non Centralised Contract Management,Main Funding,BICTON COLLEGE,NUPS13_24900,-186212.51,Programme Template
BIS,Skills Funding Agency,14/01/2014,16-18 Apprenticeships - Non Centralised Contract Management,Main Funding,BICTON COLLEGE,NUPS13_28266,234587.49,Programme Template
BIS,Skills Funding Agency,14/01/2014,16-18 Apprenticeships - Non Centralised Contract Management,Main Funding,BIRMINGHAM ELECTRICAL TRAINING LTD,NUPS13_24946,-153713.57,Programme Template
BIS,Skills Funding Agency,14/01/2014,16-18 Apprenticeships - Non Centralised Contract Management,Main Funding,BIRMINGHAM ELECTRICAL TRAINING LTD,NUPS13_28326,186300.98,Programme Template
BIS,Skills Funding Agency,14/01/2014,16-18 Apprenticeships - Non Centralised Contract Management,Main Funding,BISHOP AUCKLAND COLLEGE,NUPS13_25004,-120946.2,Programme Template
BIS,Skills Funding Agency,14/01/2014,16-18 Apprenticeships - Non Centralised Contract Management,Main Funding,BISHOP AUCKLAND COLLEGE,NUPS13_28363,156589.66,Programme Template
BIS,Skills Funding Agency,14/01/2014,16-18 Apprenticeships - Non Centralised Contract Management,Main Funding,BISHOP BURTON COLLEGE,NUPS13_24871,-205744.9,Programme Template
BIS,Skills Funding Agency,14/01/2014,16-18 Apprenticeships - Non Centralised Contract Management,Main Funding,BISHOP BURTON COLLEGE,NUPS13_28250,253485.37,Programme Template
BIS,Skills Funding Agency,14/01/2014,16-18 Apprenticeships - Non Centralised Contract Management,Main Funding,BLACK COUNTRY TRAINING GROUP LTD,NUPS13_24721,-397033.86,Programme Template
BIS,Skills Funding Agency,14/01/2014,16-18 Apprenticeships - Non Centralised Contract Management,Main Funding,BLACK COUNTRY TRAINING GROUP LTD,NUPS13_28077,512822.74,Programme Template
BIS,Skills Funding Agency,14/01/2014,16-18 Apprenticeships - Non Centralised Contract Management,Main Funding,BLACKBURN COLLEGE,NUPS13_24699,-432639.19,Programme Template
BIS,Skills Funding Agency,14/01/2014,16-18 Apprenticeships - Non Centralised Contract Management,Main Funding,BLACKBURN COLLEGE,NUPS13_28066,533177.01,Programme Template
BIS,Skills Funding Agency,14/01/2014,16-18 Apprenticeships - Non Centralised Contract Management,Main Funding,BLACKPOOL & THE FYLDE COLLEGE,NUPS13_24722,-396404.86,Programme Template
BIS,Skills Funding Agency,14/01/2014,16-18 Apprenticeships - Non Centralised Contract Management,Main Funding,BLACKPOOL & THE FYLDE COLLEGE,NUPS13_28091,485708.26,Programme Template
BIS,Skills Funding Agency,14/01/2014,16-18 Apprenticeships - Non Centralised Contract Management,Main Funding,BLUE TRAINING UK LTD,NUPS13_26302,-81407.9,Programme Template
BIS,Skills Funding Agency,14/01/2014,16-18 Apprenticeships - Non Centralised Contract Management,Main Funding,BLUE TRAINING UK LTD,NUPS13_30422,104379.76,Programme Template
BIS,Skills Funding Agency,14/01/2014,16-18 Apprenticeships - Non Centralised Contract Management,Main Funding,BOLTON COMMUNITY COLLEGE,NUPS13_24744,-358764.83,Programme Template
BIS,Skills Funding Agency,14/01/2014,16-18 Apprenticeships - Non Centralised Contract Management,Main Funding,BOLTON COMMUNITY COLLEGE,NUPS13_28115,420556.9,Programme Template
BIS,Skills Funding Agency,14/01/2014,16-18 Apprenticeships - Non Centralised Contract Management,Main Funding,BOOTS OPTICIANS PROFESSIONAL SERVICES LTD,NUPS13_26456,-26248.62,Programme Template
BIS,Skills Funding Agency,14/01/2014,16-18 Apprenticeships - Non Centralised Contract Management,Main Funding,BOOTS OPTICIANS PROFESSIONAL SERVICES LTD,NUPS13_30577,33864.76,Programme Template
BIS,Skills Funding Agency,14/01/2014,16-18 Apprenticeships - Non Centralised Contract Management,Main Funding,BOROUGH OF POOLE,NUPS13_26462,-24870.02,Programme Template
BIS,Skills Funding Agency,14/01/2014,16-18 Apprenticeships - Non Centralised Contract Management,Main Funding,BOROUGH OF POOLE,NUPS13_30590,29525.90,Programme Template
BIS,Skills Funding Agency,14/01/2014,16-18 Apprenticeships - Non Centralised Contract Management,Main Funding,BOURNEMOUTH & POOLE COLLEGE,NUPS13_24610,-815695.80,Programme Template
BIS,Skills Funding Agency,14/01/2014,16-18 Apprenticeships - Non Centralised Contract Management,Main Funding,BOURNEMOUTH & POOLE COLLEGE,NUPS13_27976,1022694.63,Programme Template
BIS,Skills Funding Agency,14/01/2014,16-18 Apprenticeships - Non Centralised Contract Management,Main Funding,BOURNVILLE COLLEGE OF HE,NUPS13_24766,-315387.22,Programme Template
BIS,Skills Funding Agency,14/01/2014,16-18 Apprenticeships - Non Centralised Contract Management,Main Funding,BOURNVILLE COLLEGE OF HE,NUPS13_28129,399517.85,Programme Template
BIS,Skills Funding Agency,14/01/2014,16-18 Apprenticeships - Non Centralised Contract Management,Main Funding,BPP HOLDINGS PLC,NUPS13_24810,-258649.75,Programme Template
BIS,Skills Funding Agency,14/01/2014,16-18 Apprenticeships - Non Centralised Contract Management,Main Funding,BPP HOLDINGS PLC,NUPS13_28176,326295.71,Programme Template
BIS,Skills Funding Agency,14/01/2014,16-18 Apprenticeships - Non Centralised Contract Management,Main Funding,BRACKNELL & WOKINGHAM COLLEGE,NUPS13_24848,-228419.42,Programme Template
BIS,Skills Funding Agency,14/01/2014,16-18 Apprenticeships - Non Centralised Contract Management,Main Funding,BRACKNELL & WOKINGHAM COLLEGE,NUPS13_28213,289756.92,Programme Template
BIS,Skills Funding Agency,14/01/2014,16-18 Apprenticeships - Non Centralised Contract Management,Main Funding,BRADFORD CITY COUNCIL,NUPS13_26477,-20049.83,Programme Template
BIS,Skills Funding Agency,14/01/2014,16-18 Apprenticeships - Non Centralised Contract Management,Main Funding,BRADFORD CITY COUNCIL,NUPS13_30601,26414.69,Programme Template
BIS,Skills Funding Agency,14/01/2014,16-18 Apprenticeships - Non Centralised Contract Management,Main Funding,BRADFORD COLLEGE,NUPS13_24618,-746719.65,Programme Template
BIS,Skills Funding Agency,14/01/2014,16-18 Apprenticeships - Non Centralised Contract Management,Main Funding,BRADFORD COLLEGE,NUPS13_27981,962468.52,Programme Template
BIS,Skills Funding Agency,14/01/2014,16-18 Apprenticeships - Non Centralised Contract Management,Main Funding,BRADFORD TRAINING ASSOCIATION LTD,NUPS13_24789,-287668.47,Programme Template
BIS,Skills Funding Agency,14/01/2014,16-18 Apprenticeships - Non Centralised Contract Management,Main Funding,BRADFORD TRAINING ASSOCIATION LTD,NUPS13_28141,382506.25,Programme Template
BIS,Skills Funding Agency,14/01/2014,16-18 Apprenticeships - Non Centralised Contract Management,Main Funding,BRIDGWATER COLLEGE CANNINGTON,NUPS13_24630,-687650.96,Programme Template
BIS,Skills Funding Agency,14/01/2014,16-18 Apprenticeships - Non Centralised Contract Management,Main Funding,BRIDGWATER COLLEGE CANNINGTON,NUPS13_28000,820391.88,Programme Template
BIS,Skills Funding Agency,14/01/2014,16-18 Apprenticeships - Non Centralised Contract Management,Main Funding,BRINSWORTH TRAINING LTD,NUPS13_24883,-197693.08,Programme Template
BIS,Skills Funding Agency,14/01/2014,16-18 Apprenticeships - Non Centralised Contract Management,Main Funding,BRINSWORTH TRAINING LTD,NUPS13_28254,250640.35,Programme Template
BIS,Skills Funding Agency,14/01/2014,16-18 Apprenticeships - Non Centralised Contract Management,Main Funding,BRISTOL CITY COUNCIL,NUPS13_24873,-205577.35,Programme Template
BIS,Skills Funding Agency,14/01/2014,16-18 Apprenticeships - Non Centralised Contract Management,Main Funding,BRISTOL CITY COUNCIL,NUPS13_28199,304656.5,Programme Template
BIS,Skills Funding Agency,14/01/2014,16-18 Apprenticeships - Non Centralised Contract Management,Main Funding,BRITISH GAS PLC,NUPS13_15259,-202633,Programme Template
BIS,Skills Funding Agency,14/01/2014,16-18 Apprenticeships - Non Centralised Contract Management,Main Funding,BRITISH GAS PLC,NUPS13_30416,107574.83,Programme Template
BIS,Skills Funding Agency,14/01/2014,16-18 Apprenticeships - Non Centralised Contract Management,Main Funding,BRITISH PRINTING INDUSTRIES FEDERATION LTD,NUPS13_24970,-137885.91,Programme Template
BIS,Skills Funding Agency,14/01/2014,16-18 Apprenticeships - Non Centralised Contract Management,Main Funding,BRITISH PRINTING INDUSTRIES FEDERATION LTD,NUPS13_28344,165864,Programme Template
BIS,Skills Funding Agency,14/01/2014,16-18 Apprenticeships - Non Centralised Contract Management,Main Funding,BRITISH TELECOM PLC,NUPS13_18967,-286244,Programme Template
BIS,Skills Funding Agency,14/01/2014,16-18 Apprenticeships - Non Centralised Contract Management,Main Funding,BRITISH TELECOM PLC,NUPS13_21236,462228.74,Programme Template
BIS,Skills Funding Agency,14/01/2014,16-18 Apprenticeships - Non Centralised Contract Management,Main Funding,BRITISH TELECOM PLC,NUPS13_24684,-462228.74,Programme Template
BIS,Skills Funding Agency,14/01/2014,16-18 Apprenticeships - Non Centralised Contract Management,Main Funding,BRITISH TELECOM PLC,NUPS13_28040,592416.77,Programme Template
BIS,Skills Funding Agency,14/01/2014,16-18 Apprenticeships - Non Centralised Contract Management,Main Funding,BROADLAND DISTRICT COUNCIL,NUPS13_24854,-224893.87,Programme Template
BIS,Skills Funding Agency,14/01/2014,16-18 Apprenticeships - Non Centralised Contract Management,Main Funding,BROADLAND DISTRICT COUNCIL,NUPS13_28226,276020.43,Programme Template
BIS,Skills Funding Agency,14/01/2014,16-18 Apprenticeships - Non Centralised Contract Management,Main Funding,BROCKENHURST COLLEGE,NUPS13_25066,-87287.21,Programme Template
BIS,Skills Funding Agency,14/01/2014,16-18 Apprenticeships - Non Centralised Contract Management,Main Funding,BROCKENHURST COLLEGE,NUPS13_28418,122094.17,Programme Template
BIS,Skills Funding Agency,14/01/2014,16-18 Apprenticeships - Non Centralised Contract Management,Main Funding,BROMLEY COLLEGE OF FURTHER & HE,NUPS13_24688,-455454.73,Programme Template
BIS,Skills Funding Agency,14/01/2014,16-18 Apprenticeships - Non Centralised Contract Management,Main Funding,BROMLEY COLLEGE OF FURTHER & HE,NUPS13_28052,556125.56,Programme Template
BIS,Skills Funding Agency,14/01/2014,16-18 Apprenticeships - Non Centralised Contract Management,Main Funding,BROOKLANDS TECHNICAL COLLEGE,NUPS13_24605,-910155.34,Programme Template
BIS,Skills Funding Agency,14/01/2014,16-18 Apprenticeships - Non Centralised Contract Management,Main Funding,BROOKLANDS TECHNICAL COLLEGE,NUPS13_27972,1123373.52,Programme Template
BIS,Skills Funding Agency,14/01/2014,16-18 Apprenticeships - Non Centralised Contract Management,Main Funding,BROOKSBY MELTON COLLEGE,NUPS13_25031,-105469.97,Programme Template
BIS,Skills Funding Agency,14/01/2014,16-18 Apprenticeships - Non Centralised Contract Management,Main Funding,BROOKSBY MELTON COLLEGE,NUPS13_28404,132390.77,Programme Template
BIS,Skills Funding Agency,14/01/2014,16-18 Apprenticeships - Non Centralised Contract Management,Main Funding,BUCKINGHAMSHIRE COUNTY COUNCIL,NUPS13_26344,-60042.38,Programme Template
BIS,Skills Funding Agency,14/01/2014,16-18 Apprenticeships - Non Centralised Contract Management,Main Funding,BUCKINGHAMSHIRE COUNTY COUNCIL,NUPS13_30462,79960.30,Programme Template
BIS,Skills Funding Agency,14/01/2014,16-18 Apprenticeships - Non Centralised Contract Management,Main Funding,BUILDING CRAFTS COLLEGE,NUPS13_26382,-47451.95,Programme Template
BIS,Skills Funding Agency,14/01/2014,16-18 Apprenticeships - Non Centralised Contract Management,Main Funding,BUILDING CRAFTS COLLEGE,NUPS13_30512,57005.62,Programme Template
BIS,Skills Funding Agency,14/01/2014,16-18 Apprenticeships - Non Centralised Contract Management,Main Funding,BUILDING ENGINEERING SERVICES TRAINING LTD,NUPS13_24681,-470279.02,Programme Template
BIS,Skills Funding Agency,14/01/2014,16-18 Apprenticeships - Non Centralised Contract Management,Main Funding,BUILDING ENGINEERING SERVICES TRAINING LTD,NUPS13_28045,582117.54,Programme Template
BIS,Skills Funding Agency,14/01/2014,16-18 Apprenticeships - Non Centralised Contract Management,Main Funding,BURNLEY COLLEGE,NUPS13_24676,-477356.64,Programme Template
BIS,Skills Funding Agency,14/01/2014,16-18 Apprenticeships - Non Centralised Contract Management,Main Funding,BURNLEY COLLEGE,NUPS13_28046,582051.14,Programme Template
BIS,Skills Funding Agency,14/01/2014,16-18 Apprenticeships - Non Centralised Contract Management,Main Funding,BURTON COLLEGE,NUPS13_24857,-222462.52,Programme Template
BIS,Skills Funding Agency,14/01/2014,16-18 Apprenticeships - Non Centralised Contract Management,Main Funding,BURTON COLLEGE,NUPS13_28173,328055.93,Programme Template
BIS,Skills Funding Agency,14/01/2014,16-18 Apprenticeships - Non Centralised Contract Management,Main Funding,BURY COLLEGE,NUPS13_24723,-395833.91,Programme Template
BIS,Skills Funding Agency,14/01/2014,16-18 Apprenticeships - Non Centralised Contract Management,Main Funding,BURY COLLEGE,NUPS13_28096,479597.40,Programme Template
BIS,Skills Funding Agency,14/01/2014,16-18 Apprenticeships - Non Centralised Contract Management,Main Funding,BURY METRO BOROUGH COUNCIL,NUPS13_26572,-72.61,Programme Template
BIS,Skills Funding Agency,14/01/2014,16-18 Apprenticeships - Non Centralised Contract Management,Main Funding,BURY METRO BOROUGH COUNCIL,NUPS13_30701,54.46,Programme Template
BIS,Skills Funding Agency,14/01/2014,16-18 Apprenticeships - Non Centralised Contract Management,Main Funding,BUSINESS IMPACT UK LIMITED,NUPS13_24664,-508819.09,Programme Template
BIS,Skills Funding Agency,14/01/2014,16-18 Apprenticeships - Non Centralised Contract Management,Main Funding,BUSINESS IMPACT UK LIMITED,NUPS13_28037,598476.52,Programme Template
BIS,Skills Funding Agency,14/01/2014,16-18 Apprenticeships - Non Centralised Contract Management,Main Funding,BUSY BEES FRADLEY PARK LTD,NUPS13_24843,-232605.98,Programme Template
BIS,Skills Funding Agency,14/01/2014,16-18 Apprenticeships - Non Centralised Contract Management,Main Funding,BUSY BEES FRADLEY PARK LTD,NUPS13_28219,287023.35,Programme Template
BIS,Skills Funding Agency,14/01/2014,16-18 Apprenticeships - Non Centralised Contract Management,Main Funding,CABLECOM TRAINING LTD,NUPS13_26466,-23136.31,Programme Template
BIS,Skills Funding Agency,14/01/2014,16-18 Apprenticeships - Non Centralised Contract Management,Main Funding,CABLECOM TRAINING LTD,NUPS13_30586,30679.22,Programme Template
BIS,Skills Funding Agency,14/01/2014,16-18 Apprenticeships - Non Centralised Contract Management,Main Funding,CADCENTRE UK LTD,NUPS13_26387,-45030.94,Programme Template
BIS,Skills Funding Agency,14/01/2014,16-18 Apprenticeships - Non Centralised Contract Management,Main Funding,CADCENTRE UK LTD,NUPS13_30532,51573.73,Programme Template
BIS,Skills Funding Agency,14/01/2014,16-18 Apprenticeships - Non Centralised Contract Management,Main Funding,CALDERDALE COLLEGE,NUPS13_24809,-260652.89,Programme Template
BIS,Skills Funding Agency,14/01/2014,16-18 Apprenticeships - Non Centralised Contract Management,Main Funding,CALDERDALE COLLEGE,NUPS13_28158,351955.73,Programme Template
BIS,Skills Funding Agency,14/01/2014,16-18 Apprenticeships - Non Centralised Contract Management,Main Funding,CAMBRIDGE REGIONAL COLLEGE,NUPS13_24596,-1079998.27,Programme Template
BIS,Skills Funding Agency,14/01/2014,16-18 Apprenticeships - Non Centralised Contract Management,Main Funding,CAMBRIDGE REGIONAL COLLEGE,NUPS13_27961,1377393.38,Programme Template
BIS,Skills Funding Agency,14/01/2014,16-18 Apprenticeships - Non Centralised Contract Management,Main Funding,CANTERBURY COLLEGE,NUPS13_24877,-202414.66,Programme Template
BIS,Skills Funding Agency,14/01/2014,16-18 Apprenticeships - Non Centralised Contract Management,Main Funding,CANTERBURY COLLEGE,NUPS13_28159,351257.25,Programme Template
BIS,Skills Funding Agency,14/01/2014,16-18 Apprenticeships - Non Centralised Contract Management,Main Funding,CAPEL MANOR COLLEGE,NUPS13_26303,-80748.79,Programme Template
BIS,Skills Funding Agency,14/01/2014,16-18 Apprenticeships - Non Centralised Contract Management,Main Funding,CAPEL MANOR COLLEGE,NUPS13_30432,99093.64,Programme Template
BIS,Skills Funding Agency,14/01/2014,16-18 Apprenticeships - Non Centralised Contract Management,Main Funding,CAPITAL ENGINEERING GROUP HOLDINGS LTD,NUPS13_24942,-158493.95,Programme Template
BIS,Skills Funding Agency,14/01/2014,16-18 Apprenticeships - Non Centralised Contract Management,Main Funding,CAPITAL ENGINEERING GROUP HOLDINGS LTD,NUPS13_28307,200808.83,Programme Template
BIS,Skills Funding Agency,14/01/2014,16-18 Apprenticeships - Non Centralised Contract Management,Main Funding,CARE LEARNING CENTRE ISLE OF WIGHT LTD,NUPS13_26385,-45755.2,Programme Template
BIS,Skills Funding Agency,14/01/2014,16-18 Apprenticeships - Non Centralised Contract Management,Main Funding,CARE LEARNING CENTRE ISLE OF WIGHT LTD,NUPS13_30523,55226.22,Programme Template
BIS,Skills Funding Agency,14/01/2014,16-18 Apprenticeships - Non Centralised Contract Management,Main Funding,CARE TRAINING EAST MIDLANDS LTD,NUPS13_25041,-100830.58,Programme Template
BIS,Skills Funding Agency,14/01/2014,16-18 Apprenticeships - Non Centralised Contract Management,Main Funding,CARE TRAINING EAST MIDLANDS LTD,NUPS13_28414,125948.62,Programme Template
BIS,Skills Funding Agency,14/01/2014,16-18 Apprenticeships - Non Centralised Contract Management,Main Funding,CAREER DEVELOPMENT CENTRE HOLDINGS LTD,NUPS13_26423,-34193.02,Programme Template
BIS,Skills Funding Agency,14/01/2014,16-18 Apprenticeships - Non Centralised Contract Management,Main Funding,CAREER DEVELOPMENT CENTRE HOLDINGS LTD,NUPS13_30555,42225.02,Programme Template
BIS,Skills Funding Agency,14/01/2014,16-18 Apprenticeships - Non Centralised Contract Management,Main Funding,CARILLION CONSTRUCTION LTD,NUPS13_15288,-575674,Programme Template
BIS,Skills Funding Agency,14/01/2014,16-18 Apprenticeships - Non Centralised Contract Management,Main Funding,CARILLION CONSTRUCTION LTD,NUPS13_17033,-575674.00,Programme Template
BIS,Skills Funding Agency,14/01/2014,16-18 Apprenticeships - Non Centralised Contract Management,Main Funding,CARILLION CONSTRUCTION LTD,NUPS13_18944,-575673.00,Programme Template
BIS,Skills Funding Agency,14/01/2014,16-18 Apprenticeships - Non Centralised Contract Management,Main Funding,CARILLION CONSTRUCTION LTD,NUPS13_21134,1687271.43,Programme Template
BIS,Skills Funding Agency,14/01/2014,16-18 Apprenticeships - Non Centralised Contract Management,Main Funding,CARILLION CONSTRUCTION LTD,NUPS13_24582,-1687271.43,Programme Template
BIS,Skills Funding Agency,14/01/2014,16-18 Apprenticeships - Non Centralised Contract Management,Main Funding,CARILLION CONSTRUCTION LTD,NUPS13_27946,2160211.50,Programme Template
BIS,Skills Funding Agency,14/01/2014,16-18 Apprenticeships - Non Centralised Contract Management,Main Funding,CARLISLE COLLEGE,NUPS13_24923,-171147.31,Programme Template
BIS,Skills Funding Agency,14/01/2014,16-18 Apprenticeships - Non Centralised Contract Management,Main Funding,CARLISLE COLLEGE,NUPS13_28285,215493.39,Programme Template
BIS,Skills Funding Agency,14/01/2014,16-18 Apprenticeships - Non Centralised Contract Management,Main Funding,CARSHALTON COLLEGE,NUPS13_24867,-210493.06,Programme Template
BIS,Skills Funding Agency,14/01/2014,16-18 Apprenticeships - Non Centralised Contract Management,Main Funding,CARSHALTON COLLEGE,NUPS13_28225,276618.43,Programme Template
BIS,Skills Funding Agency,14/01/2014,16-18 Apprenticeships - Non Centralised Contract Management,Main Funding,CATCH22 SOUTH EAST TRAINING,NUPS13_24662,-511313.52,Programme Template
BIS,Skills Funding Agency,14/01/2014,16-18 Apprenticeships - Non Centralised Contract Management,Main Funding,CATCH22 SOUTH EAST TRAINING,NUPS13_28031,616622.58,Programme Template
BIS,Skills Funding Agency,14/01/2014,16-18 Apprenticeships - Non Centralised Contract Management,Main Funding,CENTRAL BEDFORDSHIRE COUNCIL,NUPS13_26548,-4381.00,Programme Template
BIS,Skills Funding Agency,14/01/2014,16-18 Apprenticeships - Non Centralised Contract Management,Main Funding,CENTRAL BEDFORDSHIRE COUNCIL,NUPS13_30679,4381.00,Programme Template
BIS,Skills Funding Agency,14/01/2014,16-18 Apprenticeships - Non Centralised Contract Management,Main Funding,CENTRAL HAIRDRESSING TRAINING CENTRE,NUPS13_24625,-706821.98,Programme Template
BIS,Skills Funding Agency,14/01/2014,16-18 Apprenticeships - Non Centralised Contract Management,Main Funding,CENTRAL HAIRDRESSING TRAINING CENTRE,NUPS13_27987,896035.02,Programme Template
BIS,Skills Funding Agency,14/01/2014,16-18 Apprenticeships - Non Centralised Contract Management,Main Funding,CENTRAL SUSSEX COLLEGE,NUPS13_24709,-411469.23,Programme Template
BIS,Skills Funding Agency,14/01/2014,16-18 Apprenticeships - Non Centralised Contract Management,Main Funding,CENTRAL SUSSEX COLLEGE,NUPS13_28087,488802.59,Programme Template
BIS,Skills Funding Agency,14/01/2014,16-18 Apprenticeships - Non Centralised Contract Management,Main Funding,CHAMBER TRAINING HUMBER LTD,NUPS13_24819,-253293.33,Programme Template
BIS,Skills Funding Agency,14/01/2014,16-18 Apprenticeships - Non Centralised Contract Management,Main Funding,CHAMBER TRAINING HUMBER LTD,NUPS13_28192,307746.10,Programme Template
BIS,Skills Funding Agency,14/01/2014,16-18 Apprenticeships - Non Centralised Contract Management,Main Funding,CHAPMAN BENNETT ASSOCIATES LTD,NUPS13_26325,-67497.42,Programme Template
BIS,Skills Funding Agency,14/01/2014,16-18 Apprenticeships - Non Centralised Contract Management,Main Funding,CHAPMAN BENNETT ASSOCIATES LTD,NUPS13_30449,85518.11,Programme Template
BIS,Skills Funding Agency,14/01/2014,16-18 Apprenticeships - Non Centralised Contract Management,Main Funding,CHARNWOOD TRAINING CONSULTANTS LTD,NUPS13_24840,-234476.3,Programme Template
BIS,Skills Funding Agency,14/01/2014,16-18 Apprenticeships - Non Centralised Contract Management,Main Funding,CHARNWOOD TRAINING CONSULTANTS LTD,NUPS13_28202,302165.35,Programme Template
BIS,Skills Funding Agency,14/01/2014,16-18 Apprenticeships - Non Centralised Contract Management,Main Funding,CHELMSFORD COLLEGE,NUPS13_24918,-172478.40,Programme Template
BIS,Skills Funding Agency,14/01/2014,16-18 Apprenticeships - Non Centralised Contract Management,Main Funding,CHELMSFORD COLLEGE,NUPS13_28300,204320.01,Programme Template
BIS,Skills Funding Agency,14/01/2014,16-18 Apprenticeships - Non Centralised Contract Management,Main Funding,CHESTERFIELD COLLEGE,NUPS13_24590,-1238426.92,Programme Template
BIS,Skills Funding Agency,14/01/2014,16-18 Apprenticeships - Non Centralised Contract Management,Main Funding,CHESTERFIELD COLLEGE,NUPS13_27955,1529484.39,Programme Template
BIS,Skills Funding Agency,14/01/2014,16-18 Apprenticeships - Non Centralised Contract Management,Main Funding,CHEYNES MANAGEMENT LTD,NUPS13_24784,-291681.95,Programme Template
BIS,Skills Funding Agency,14/01/2014,16-18 Apprenticeships - Non Centralised Contract Management,Main Funding,CHEYNES MANAGEMENT LTD,NUPS13_28132,397626.53,Programme Template
BIS,Skills Funding Agency,14/01/2014,16-18 Apprenticeships - Non Centralised Contract Management,Main Funding,CHICHESTER COLLEGE,NUPS13_24673,-482436.29,Programme Template
BIS,Skills Funding Agency,14/01/2014,16-18 Apprenticeships - Non Centralised Contract Management,Main Funding,CHICHESTER COLLEGE,NUPS13_28032,615852.54,Programme Template
BIS,Skills Funding Agency,14/01/2014,16-18 Apprenticeships - Non Centralised Contract Management,Main Funding,CHILDRENS LINKS,NUPS13_15306,-13154,Programme Template
BIS,Skills Funding Agency,14/01/2014,16-18 Apprenticeships - Non Centralised Contract Management,Main Funding,CHILDRENS LINKS,NUPS13_17051,-13154.00,Programme Template
BIS,Skills Funding Agency,14/01/2014,16-18 Apprenticeships - Non Centralised Contract Management,Main Funding,CHILDRENS LINKS,NUPS13_19549,-13154,Programme Template
BIS,Skills Funding Agency,14/01/2014,16-18 Apprenticeships - Non Centralised Contract Management,Main Funding,CHILDRENS LINKS,NUPS13_21754,33625.95,Programme Template
BIS,Skills Funding Agency,14/01/2014,16-18 Apprenticeships - Non Centralised Contract Management,Main Funding,CHILDRENS LINKS,NUPS13_26427,-33625.95,Programme Template
BIS,Skills Funding Agency,14/01/2014,16-18 Apprenticeships - Non Centralised Contract Management,Main Funding,CHILDRENS LINKS,NUPS13_30554,42249.07,Programme Template
BIS,Skills Funding Agency,14/01/2014,16-18 Apprenticeships - Non Centralised Contract Management,Main Funding,CHILTERN TRAINING LTD,NUPS13_24690,-452151.27,Programme Template
BIS,Skills Funding Agency,14/01/2014,16-18 Apprenticeships - Non Centralised Contract Management,Main Funding,CHILTERN TRAINING LTD,NUPS13_28059,544811.3,Programme Template
BIS,Skills Funding Agency,14/01/2014,16-18 Apprenticeships - Non Centralised Contract Management,Main Funding,CIRENCESTER TERTIARY COLLEGE,NUPS13_25032,-104902.06,Programme Template
BIS,Skills Funding Agency,14/01/2014,16-18 Apprenticeships - Non Centralised Contract Management,Main Funding,CIRENCESTER TERTIARY COLLEGE,NUPS13_28411,128061.71,Programme Template
